{"text_format":"1","workbook":"xlsx","n_sheets":7,"sheets":["Inputs - Chemical Properties","Inputs - Environment","Concentrations","Results","Diagram","Chemical Database","Environment Database"],"not_rendered":{"charts":0,"images":8,"macros":1,"external_links":0,"defined_names":22,"comments":2,"pivot_tables":0},"unopened":[],"bounds":{"document_bytes":16777216,"sheet_cells":100000,"rows_first":2000,"rows_last":500,"rows_between":2000,"halvings":0,"cell_chars":16384,"cell_head_chars":4096},"cells_cut":0,"cells_raw":0,"read":"whole","date_system":"1900"}

{"sheet":"Inputs - Chemical Properties","index":0,"n_rows":18,"n_cols":6,"rows_kept":18,"cut":false,"hidden":false,"merged":[]}
[]
[]
[null,null,"CHEMICAL PROPERTIES","Please complete all required fields below"]
[null,null,null,"or"]
[null,null,null,"Select a chemical from the database:"]
[null,null,"* indicates required input"]
[]
[null,null,null,null,null,"References and Notes"]
[null,"*","Chemical Name"]
[null,null,"CAS"]
[]
[null,"*","Molar Mass (g/mol)"]
[null,"*","Data Temperature (°C)"]
[null,"*","Melting Point (°C)"]
[null,"*","Vapor Pressure (Pa)"]
[null,"*","Henry's Law Constant (Pa·m³/mol)"]
[null,null,"logKOW"]
[null,"*","KOC"]

{"sheet":"Inputs - Environment","index":1,"n_rows":22,"n_cols":7,"rows_kept":22,"cut":false,"hidden":false,"merged":[[21,5,23,6]]}
[]
[]
[null,null,"ENVIRONMENTAL PROPERTIES"]
[]
[null,null,"Please complete all fields or select an environment from the database:"]
[]
[null,null,"Environment Name","EnvAirWater86"]
[]
[]
[null,null,"Dimensions",null,null,"Particle Concentrations"]
[null,null,"Area (m2)",1,null,"Suspended Particles (g/m³)",12]
[null,null,"Water Depth (m)",10,null,"Aerosols in Air (µg/m³)",100]
[null,null,"Atmosphere Height (m)",1000]
[null,null,null,null,null,"Transport Velocities"]
[null,null,"Density",null,null,"Water-Side MTC (m/h)",7.1999999999999995E-2]
[null,null,"Air (kg/m³)",1.23,null,"Air-Side MTC (m/h)",18]
[null,null,"Aerosol (kg/m³)",2000,null,"Dry Deposition Velocity (cm/s)",0.3]
[null,null,"Water (kg/m³)",1000,null,"Rain Rate (m/year)",0.5]
[null,null,"Suspended Particles (kg/m³)",1500,null,"Scavenging Coefficient",200000]
[]
[null,null,"Organic Carbon",null,null,"Additional Comments"]
[null,null,"Suspended Particles (g/g)",0.05]

{"sheet":"Concentrations","index":2,"n_rows":6,"n_cols":4,"rows_kept":6,"cut":false,"hidden":false,"merged":[]}
[]
[]
[null,null,"CHEMICAL QUANTITY"]
[]
[null,null,"Total Chemical Concentration in Water (ng/L)",1]
[null,null,"Total Chemical Concentration in Air (ng/m3)",6]

{"sheet":"Results","index":3,"n_rows":43,"n_cols":14,"rows_kept":43,"cut":false,"hidden":false,"merged":[[11,9,11,10],[33,2,33,3],[31,2,31,3],[22,2,22,3],[6,9,6,10],[17,10,17,12],[15,2,15,3],[17,2,17,3],[19,2,19,3],[14,2,14,3],[6,11,6,12],[20,2,20,3],[21,2,21,3],[38,11,38,12],[26,5,26,6],[28,2,28,3],[29,2,29,3],[30,2,30,3],[35,2,35,3],[34,2,34,3],[32,2,32,3]]}
[]
[]
[null,null,"Air-Water Results"]
[]
[null,null,"Chemical Name",{"$f":"ChemName","v":0},null,null,null,null,"System Totals"]
[null,null,"Environment Name",{"$f":"EnvName","v":"EnvAirWater86"}]
[null,null,null,null,null,null,null,null,null,"Amount of Chemical",null,"Rate of Transfer",null,"Residence Time"]
[null,null,null,null,null,null,null,null,null,"mol","kg","mol/h","kg/h","h"]
[null,null,"Fugacity Ratio",{"$f":"IF(P=\"-\",1,IF(MeltPt>DataTemp,EXP(6.79*(1-(MeltPt+273.15)/(DataTemp+273.15))),1))","v":1},null,null,null,null,"Air",{"$f":"(Concentrations!D6*0.000000001/MolarMass)*'Inputs - Environment'!D11*'Inputs - Environment'!D13","v":{"$error":"#DIV/0!"}},{"$f":"J9*MolarMass/1000","v":{"$error":"#DIV/0!"}},{"$f":"F34","v":{"$error":"#DIV/0!"}},{"$f":"F34*MolarMass/1000","v":{"$error":"#DIV/0!"}},{"$f":"IF(Concentrations!D6=0,\"-\",K9/M9)","v":{"$error":"#DIV/0!"}}]
[null,null,null,null,null,null,null,null,"Water",{"$f":"(Concentrations!D5*0.000001/MolarMass)*'Inputs - Environment'!D12*'Inputs - Environment'!D11","v":{"$error":"#DIV/0!"}},{"$f":"J10*MolarMass/1000","v":{"$error":"#DIV/0!"}},{"$f":"F35","v":{"$error":"#DIV/0!"}},{"$f":"F35*MolarMass/1000","v":{"$error":"#DIV/0!"}},{"$f":"IF(Concentrations!D5=0,\"-\",K10/M10)","v":{"$error":"#DIV/0!"}}]
[null,null,"Subcooled Liq. Vap. Press.",{"$f":"IF(P=\"-\",\"N/A\",P/D9)","v":0},"Pa"]
[null,null,null,null,null,null,null,null,null,"Ratio By"]
[null,null,"Fugacity",null,null,null,null,null,null,"Volume","Mass"]
[null,null,null,null,"Pa",null,null,null,"Washout Ratio",{"$f":"IF(Concentrations!D6=0,\"-\",K24/(Concentrations!D6*0.000000001/MolarMass))","v":{"$error":"#DIV/0!"}},{"$f":"IF(Concentrations!D6=0,\"-\",J14*AirVol/1000)","v":{"$error":"#DIV/0!"}}]
[null,null,"Air",null,{"$f":"Concentrations!D6*0.000000001/MolarMass/J21","v":{"$error":"#DIV/0!"}}]
[null,null,"Water",null,{"$f":"Concentrations!D5*0.000001/MolarMass/J26","v":{"$error":"#DIV/0!"}},null,null,null,"Phase Properties"]
[]
[null,null,"Ratio of Water to Air Fugacities",null,{"$f":"IF(OR(Concentrations!D5=0,Concentrations!D6=0),\"-\",E16/E15)","v":{"$error":"#DIV/0!"}},null,null,null,null,"Z Value","Concentration"]
[null,null,null,null,null,null,null,null,null,"mol/m³*Pa","mol/m³","g/m³","g/m³ of Bulk Phase"]
[null,null,"Predicition of Fugacities at Steady-State",null,null,null,null,null,"Air"]
[null,null,"Ratio of Water to Air",null,{"$f":"(E29+E31+E32+E33)/E29","v":{"$error":"#DIV/0!"}},null,null,null,"Bulk",{"$f":"(J22*(1-('Inputs - Environment'!G12*0.000000001/'Inputs - Environment'!D17)))+(Results!J23*'Inputs - Environment'!G12*0.000000001/'Inputs - Environment'!D17)","v":{"$error":"#DIV/0!"}},{"$f":"J21*E15","v":{"$error":"#DIV/0!"}},{"$f":"K21*MolarMass","v":{"$error":"#DIV/0!"}},"-"]
[null,null,"Water Fugacity",null,{"$f":"E15*E21","v":{"$error":"#DIV/0!"}},null,null,null,"Air (Gaseous) Vapor",{"$f":"1/(8.314*(DataTemp + 273.15))","v":4.4034064576219909E-4},{"$f":"J22*E15","v":{"$error":"#DIV/0!"}},{"$error":"#DIV/0!"},"-"]
[null,null,"Air Fugacity",null,{"$f":"E16/E21","v":{"$error":"#DIV/0!"}},null,null,null,"Aerosol",{"$f":"(J22*6000000)/D11","v":{"$error":"#DIV/0!"}},{"$f":"J23*E15","v":{"$error":"#DIV/0!"}},{"$error":"#DIV/0!"},{"$f":"L23*'Inputs - Environment'!G12*0.000000001/'Inputs - Environment'!D17","v":{"$error":"#DIV/0!"}}]
[null,null,null,null,null,null,null,null,"Rain","-",{"$f":"(F31+F33)/('Inputs - Environment'!D11*'Inputs - Environment'!G18/365/24)","v":{"$error":"#DIV/0!"}},{"$error":"#DIV/0!"},"-"]
[null,null,"Intermedia Transfer",null,null,null,null,null,"Water"]
[null,null,null,null,null,null,null,null,"Bulk",{"$f":"J27*(1-Org_Susp*0.001/'Inputs - Environment'!D19)+Results!J28*Org_Susp*0.001/'Inputs - Environment'!D19","v":{"$error":"#DIV/0!"}},{"$f":"J26*E16","v":{"$error":"#DIV/0!"}},{"$f":"K26*MolarMass","v":{"$error":"#DIV/0!"}},"-"]
[null,null,null,null,"D Value","Rate of Transfer",null,null,"Water (Dissolved)",{"$f":"1/Henry_Const","v":{"$error":"#DIV/0!"}},{"$f":"J27*E16","v":{"$error":"#DIV/0!"}},{"$error":"#DIV/0!"},"-"]
[null,null,null,null,"mol/Pa*h","mol/h","µg/day",null,"Susp. Particles",{"$f":"J27*KOC*Lipid_Fish*'Inputs - Environment'!D19/1000","v":{"$error":"#DIV/0!"}},{"$f":"J28*E16","v":{"$error":"#DIV/0!"}},{"$error":"#DIV/0!"},{"$f":"L28*Org_Susp*0.001/'Inputs - Environment'!D19","v":{"$error":"#DIV/0!"}}]
[null,null,"Volatilization",null,{"$f":"1/(1/K42+1/K41)","v":{"$error":"#DIV/0!"}},{"$f":"E29*E16","v":{"$error":"#DIV/0!"}},{"$f":"F29*24*MolarMass*1000000","v":{"$error":"#DIV/0!"}}]
[null,null,"Absorption",null,{"$f":"E29","v":{"$error":"#DIV/0!"}},{"$f":"E15*E29","v":{"$error":"#DIV/0!"}},{"$error":"#DIV/0!"},null,null,"µg/kg","%"]
[null,null,"Rain Dissolution",null,{"$f":"J27*'Inputs - Environment'!D11*'Inputs - Environment'!G18/365/24","v":{"$error":"#DIV/0!"}},{"$f":"E15*E31","v":{"$error":"#DIV/0!"}},{"$error":"#DIV/0!"},null,"Mass Conc. in Aerosol",{"$f":"E15*J23*MolarMass/0.000001/'Inputs - Environment'!D17","v":{"$error":"#DIV/0!"}},{"$f":"J23*'Inputs - Environment'!G12*0.000000001/'Inputs - Environment'!D17/J21*100","v":{"$error":"#DIV/0!"}}]
[null,null,"Dry Deposition",null,{"$f":"J23*'Inputs - Environment'!D11*'Inputs - Environment'!G12*0.000000001/'Inputs - Environment'!D17*'Inputs - Environment'!G17*3600/100","v":{"$error":"#DIV/0!"}},{"$f":"E15*E32","v":{"$error":"#DIV/0!"}},{"$error":"#DIV/0!"},null,"Mass Conc. in Susp. Particles",{"$f":"J28*E16*MolarMass/0.000001/'Inputs - Environment'!D19","v":{"$error":"#DIV/0!"}},{"$f":"J28*Org_Susp*0.001/'Inputs - Environment'!D19/J26*100","v":{"$error":"#DIV/0!"}}]
[null,null,"Wet Deposition",null,{"$f":"J23*('Inputs - Environment'!G19*'Inputs - Environment'!G12*0.000000001/'Inputs - Environment'!D17)*'Inputs - Environment'!D11*'Inputs - Environment'!G18/365/24","v":{"$error":"#DIV/0!"}},{"$f":"E33*E15","v":{"$error":"#DIV/0!"}},{"$error":"#DIV/0!"}]
[null,null,"Air to Water Transfer (gross)",null,{"$f":"IF(Concentrations!D6=0,\"-\",F34/E15)","v":{"$error":"#DIV/0!"}},{"$f":"F30+F31+F32+F33","v":{"$error":"#DIV/0!"}},{"$error":"#DIV/0!"},null,null,"ng/m³"]
[null,null,"Water to Air Transfer (gross)",null,{"$f":"E29","v":{"$error":"#DIV/0!"}},{"$f":"E16*E29","v":{"$error":"#DIV/0!"}},{"$error":"#DIV/0!"},null,"TSP x A/F",{"$f":"IF(Concentrations!D6=0,\"-\",'Inputs - Environment'!G12*1000*Results!L22/Results!M23)","v":{"$error":"#DIV/0!"}}]
[null,null,"Overall Air to Water Transfer (net)",null,"-",{"$f":"IF(OR(Concentrations!D5=0, Concentrations!D6=0),\"-\",(F34*E18-F35*E18)/E18)","v":{"$error":"#DIV/0!"}},{"$f":"IF(OR(Concentrations!D5=0, Concentrations!D6=0),\"-\",F36*24*MolarMass*1000000)","v":{"$error":"#DIV/0!"}}]
[null,null,null,null,null,null,null,null,"Diffusion"]
[]
[null,null,null,null,null,null,null,null,null,"Overall MTC","D Value","Resistance"]
[null,null,null,null,null,null,null,null,null,"m/h","mol/Pa*h","Pa*h/mol","%"]
[null,null,null,null,null,null,null,null,"Air Side",{"$f":"$E$29/'Inputs - Environment'!$D$11/Results!$J$22","v":{"$error":"#DIV/0!"}},{"$f":"'Inputs - Environment'!$D$11*'Inputs - Environment'!$G$16*Results!$J$22","v":7.9261316237195841E-3},{"$f":"1/$K41","v":126.16494999999998},{"$f":"100*L41/L43","v":{"$error":"#DIV/0!"}}]
[null,null,null,null,null,null,null,null,"Water Side",{"$f":"$E$29/'Inputs - Environment'!$D$11/Results!$J$27","v":{"$error":"#DIV/0!"}},{"$f":"'Inputs - Environment'!$G$15*'Inputs - Environment'!$D$11*Results!$J$27","v":{"$error":"#DIV/0!"}},{"$f":"1/K42","v":{"$error":"#DIV/0!"}},{"$f":"100*L42/L43","v":{"$error":"#DIV/0!"}}]
[null,null,null,null,null,null,null,null,"Total","-",{"$f":"1/(1/K42+1/K41)","v":{"$error":"#DIV/0!"}},{"$f":"L41+L42","v":{"$error":"#DIV/0!"}},{"$f":"M41+M42","v":{"$error":"#DIV/0!"}}]

{"sheet":"Diagram","index":4,"n_rows":32,"n_cols":16,"rows_kept":32,"cut":false,"hidden":false,"merged":[]}
[]
[]
[null,null,null,null,null,"Chemical Name:",null,{"$f":"Results!D5","v":0}]
[]
[null,null,null,null,null,"Environment:",null,{"$f":"Results!D6","v":"EnvAirWater86"}]
[]
[]
[null,null,"Fugacity =",{"$f":"Results!E15*1000000","v":{"$error":"#DIV/0!"}},"µPa"]
[null,null,"Concentration =",{"$f":"Results!L21","v":{"$error":"#DIV/0!"}},"g/m3"]
[null,null,null,null,null,null,null,null,null,"On Particles (%) =",{"$f":"Results!K31","v":{"$error":"#DIV/0!"}}]
[]
[]
[]
[null,null,null,null,{"$f":"Results!G32","v":{"$error":"#DIV/0!"}},"µg/day",null,{"$f":"Results!G30","v":{"$error":"#DIV/0!"}},"µg/day",null,{"$f":"Results!G31","v":{"$error":"#DIV/0!"}},"µg/day",null,{"$f":"Results!G33","v":{"$error":"#DIV/0!"}},"µg/day"]
[]
[]
[]
[]
[]
[]
[]
[]
[]
[]
[]
[]
[]
[]
[null,null,null,null,null,null,null,null,null,"On Particles (%) =",{"$f":"Results!K32","v":{"$error":"#DIV/0!"}}]
[]
[null,null,null,null,null,null,null,null,null,null,null,null,null,"Fugacity =",{"$f":"Results!E16*1000000","v":{"$error":"#DIV/0!"}},"µPa"]
[null,null,null,{"$f":"Results!G29","v":{"$error":"#DIV/0!"}},"µg/day",null,null,null,null,null,null,null,null,"Concentration =",{"$f":"Results!L26","v":{"$error":"#DIV/0!"}},"g/m3"]

{"sheet":"Chemical Database","index":5,"n_rows":3080,"n_cols":17,"rows_kept":3080,"cut":false,"hidden":false,"merged":[[7,6,7,7],[7,8,7,9],[7,4,7,5],[7,12,7,13],[7,14,7,15]]}
[]
[]
[]
[]
[]
[]
[]
["CAS","Chemical Name","Molar Mass","Data Temp.","Melting Point",null,"Vapor pressure",null,"Solubility in Water",null,"Henry's Law Constant",null,"logKOW",null,"KOC",null,"NOTES"]
[null,null,"(g/mol)","°C","°C","Ref.","(Pa)","Ref.","(g/m³ or mg/L)","Ref.","(Pa·m³/mol)","Ref.","unitless","Ref.","unitless","Ref."]
[null,"Specimen Type 1",250,25,275,null,0.02,null,30,null,{"$f":"IF(OR(B10=\"\",G10=\"\",B10=\"-\",G10=\"-\"),\"\",G10*C10/I10)","v":0.16666666666666666},null,2.5,null,{"$f":"IF(OR(M10=\"\",M10=\"-\"),\"\",0.35*10^M10)","v":110.67971810589339},{"$f":"IF(O10=0.35*10^M10,\"Seth method\",\"\")","v":"Seth method"},"Example values for type 1 chemicals such as  benzene"]
[null,"Specimen Type 2",250,25,300,null,9.9999999999999998E-13,null,"-",null,9.9999999999999994E-12,null,3,null,{"$f":"IF(OR(M11=\"\",M11=\"-\"),\"\",0.35*10^M11)","v":350},{"$f":"IF(O11=0.35*10^M11,\"Seth method\",\"\")","v":"Seth method"},"Example values for type 2 chemical such as alkylbenzene sulfonates"]
[null,"Specimen Type 3",131.4,25,40,null,1.0000000000000001E-5,null,"-",null,10000000,null,10,null,3500000000,"Seth method","Example values for type 3 chemicals such as mineral oil"]
[null,"Benzene",78.11,25,5.53,null,12700,null,1780,null,{"$f":"IF(OR(B13=\"\",G13=\"\",B13=\"-\",G13=\"-\"),\"\",G13*C13/I13)","v":557.30168539325848},null,2.13,null,47.213700890707877,"Seth method"]
[null,"Toluene",92.13,25,-95,null,3800,null,515,null,{"$f":"IF(OR(B14=\"\",G14=\"\",B14=\"-\",G14=\"-\"),\"\",G14*C14/I14)","v":679.79417475728155},null,2.69,null,171.42258677895617,"Seth method"]
[null,"Chlorobenzene",112.6,25,-45.6,null,1580,null,484,null,367.57851239669424,null,2.8,null,220.83507056806761,"Seth method"]
[null,"1,4-Dichlorobenzene",147.01,25,53.1,null,130,null,83,null,230.25662650602408,null,3.4,null,879.1602510283534,"Seth method"]
[null,"Hexachlorobenzene ",284.8,25,230,null,2.3E-3,null,5.0000000000000001E-3,null,131.00800000000001,null,5.5,null,110679.71810589336,"Seth method"]
[null,"N-hexane",86.17,25,-95,null,20200,null,9.5,null,183224.63157894736,null,4.1100000000000003,null,4508.8734309259753,"Seth method"]
[null,"Tricholoroethylene",131.38999999999999,25,-73,null,9900,null,1100,null,1182.5099999999998,null,2.5299999999999998,null,118.59545464872086,"Seth method"]
[null,"1-Pentanol",88.149000000000001,25,-78.2,null,300,null,22000,null,1.2020318181818181,null,1.5,null,11.067971810589331,"Seth method"]
[null,"Aniline",93.12,25,-6.3,null,65.19,null,36070,null,0.16829755475464375,null,0.9,null,2.7801488215349859,"Seth method"]
[null,"Benzo[a]pyrene",252.13,25,175,null,6.9999999999999997E-7,null,3.8E-3,null,4.6445E-2,null,6.04,null,383767.36865011504,"Seth method"]
[null,"Naphthalene",128.19,25,80.5,null,10.4,null,31,null,43.005677419354839,null,3.37,null,820.48008536197324,"Seth method"]
[null,"Phenanthrene",178.2,25,101,null,0.02,null,1.1000000000000001,null,3.2399999999999998,null,4.57,null,13003.733018401072,"Seth method"]
[null,"Pyrene",202.3,25,156,null,5.9999999999999995E-4,null,0.13200000000000001,null,0.91954545454545455,null,5.18,null,52974.643695267288,"Seth method"]
[null,"PCB-15",223.1,25,149,null,4.7999999999999996E-3,null,0.06,null,17.847999999999999,null,5.3,null,69834.181023910845,"Seth method"]
[null,"PCB-52",292,25,87,null,4.8999999999999998E-3,null,0.03,null,47.693333333333328,null,6.1,null,440623.89412795869,"Seth method"]
[null,"PCB-209",498.7,25,305.89999999999998,null,5.02E-8,null,1.0000000000000001E-5,null,2.5034739999999998,null,8.26,null,63689530.051349603,"Seth method"]
[null,"Dibenzo-p-dioxin",184,25,123,null,5.5E-2,null,0.86499999999999999,null,11.699421965317919,null,4.3,null,6983.4181023910769,"Seth method"]
[null,"4-chlorophenol",128.56,25,43,null,20,null,27000,null,9.5229629629629622E-2,null,2.4,null,87.91602510283532,"Seth method"]
[null,"Pentachlorophenol",266.33999999999997,25,190,null,4.15E-3,null,14,null,7.8950785714285709E-2,null,5.05,null,39270.645900568779,"Seth method"]
[null,"DEHP",390.54,25,-50,null,1.33E-5,null,0.28499999999999998,null,1.8225200000000004E-2,null,5.1100000000000003,null,45088.734309259809,"Seth method"]
[null,"p,p'-DDT",354.5,25,108.5,null,2.0000000000000002E-5,null,5.4999999999999997E-3,null,1.2890909090909093,null,6.19,null,542085.81661937013,"Seth method"]
[null,"Lindane",290.85000000000002,25,112,null,3.7399999999999998E-3,null,7.3,null,0.14901082191780823,null,3.7,null,1754.1553176954562,"Seth method"]
[null,"Atrazine",215.68,25,174,null,4.0000000000000003E-5,null,30,null,2.8757333333333338E-4,null,2.75,null,196.81946381662223,"Seth method"]
[null,"Hypothene",200,27.5,"-",null,"-",null,"-",null,"",null,5,null,35000,"Seth method","Hypothetical chemical"]
[null,"AirWater86",350,15,5,null,5.0000000000000001E-3,null,3.5000000000000003E-2,null,50,null,6,null,350000,"Seth method","Hypothetical chemical"]
[null,null,null,null,null,null,null,null,null,null,"",null,null,null,"",""]
[null,null,null,null,null,null,null,null,null,null,"",null,null,null,"",""]
[null,null,null,null,null,null,null,null,null,null,"",null,null,null,"",""]
[null,null,null,null,null,null,null,null,null,null,"",null,null,null,"",""]
[null,null,null,null,null,null,null,null,null,null,"",null,null,null,"",""]
[null,null,null,null,null,null,null,null,null,null,"",null,null,null,"",""]
[null,null,null,null,null,null,null,null,null,null,"",null,null,null,"",""]
[null,null,null,null,null,null,null,null,null,null,"",null,null,null,"",""]
[null,null,null,null,null,null,null,null,null,null,"",null,null,null,"",""]
[null,null,null,null,null,null,null,null,null,null,"",null,null,null,"",""]
[null,null,null,null,null,null,null,null,null,null,"",null,null,null,"",""]
[null,null,null,null,null,null,null,null,null,null,"",null,null,null,"",""]
[null,null,null,null,null,null,null,null,null,null,"",null,null,null,"",""]
[null,null,null,null,null,null,null,null,null,null,"",null,null,null,"",""]
[null,null,null,null,null,null,null,null,null,null,"",null,null,null,"",""]
[null,null,null,null,null,null,null,null,null,null,"",null,null,null,"",""]
[null,null,null,null,null,null,null,null,null,null,"",null,null,null,"",""]
[null,null,null,null,null,null,null,null,null,null,"",null,null,null,"",""]
[null,null,null,null,null,null,null,null,null,null,"",null,null,null,"",""]
[null,null,null,null,null,null,null,null,null,null,"",null,null,null,"",""]
[null,null,null,null,null,null,null,null,null,null,"",null,null,null,"",""]
[null,null,null,null,null,null,null,null,null,null,"",null,null,null,"",""]
[null,null,null,null,null,null,null,null,null,null,"",null,null,null,"",""]
[null,null,null,null,null,null,null,null,null,null,"",null,null,null,"",""]
[null,null,null,null,null,null,null,null,null,null,"",null,null,null,"",""]
[null,null,null,null,null,null,null,null,null,null,"",null,null,null,"",""]
[null,null,null,null,null,null,null,null,null,null,"",null,null,null,"",""]
[null,null,null,null,null,null,null,null,null,null,"",null,null,null,"",""]
[null,null,null,null,null,null,null,null,null,null,"",null,null,null,"",""]
[null,null,null,null,null,null,null,null,null,null,"",null,null,null,"",""]
[null,null,null,null,null,null,null,null,null,null,"",null,null,null,"",""]
[null,null,null,null,null,null,null,null,null,null,"",null,null,null,"",""]
[null,null,null,null,null,null,null,null,null,null,"",null,null,null,"",""]
[null,null,null,null,null,null,null,null,null,null,"",null,null,null,"",""]
[null,null,null,null,null,null,null,null,null,null,{"$f":"IF(OR(B72=\"\",G72=\"\",B72=\"-\",G72=\"-\"),\"\",G72*C72/I72)","v":""},null,null,null,"",""]
[null,null,null,null,null,null,null,null,null,null,"",null,null,null,"",""]
[null,null,null,null,null,null,null,null,null,null,"",null,null,null,"",""]
[null,null,null,null,null,null,null,null,null,null,"",null,null,null,{"$f":"IF(OR(M75=\"\",M75=\"-\"),\"\",0.35*10^M75)","v":""},{"$f":"IF(O75=0.35*10^M75,\"Seth method\",\"\")","v":""}]
[null,null,null,null,null,null,null,null,null,null,"",null,null,null,"",""]
[null,null,null,null,null,null,null,null,null,null,"",null,null,null,"",""]
[null,null,null,null,null,null,null,null,null,null,"",null,null,null,"",""]
[null,null,null,null,null,null,null,null,null,null,"",null,null,null,"",""]
[null,null,null,null,null,null,null,null,null,null,"",null,null,null,"",""]
[null,null,null,null,null,null,null,null,null,null,"",null,null,null,"",""]
[null,null,null,null,null,null,null,null,null,null,"",null,null,null,"",""]
[null,null,null,null,null,null,null,null,null,null,"",null,null,null,"",""]
[null,null,null,null,null,null,null,null,null,null,"",null,null,null,"",""]
[null,null,null,null,null,null,null,null,null,null,"",null,null,null,"",""]
[null,null,null,null,null,null,null,null,null,null,"",null,null,null,"",""]
[null,null,null,null,null,null,null,null,null,null,"",null,null,null,"",""]
[null,null,null,null,null,null,null,null,null,null,"",null,null,null,"",""]
[null,null,null,null,null,null,null,null,null,null,"",null,null,null,"",""]
[null,null,null,null,null,null,null,null,null,null,"",null,null,null,"",""]
[null,null,null,null,null,null,null,null,null,null,"",null,null,null,"",""]
[null,null,null,null,null,null,null,null,null,null,"",null,null,null,"",""]
[null,null,null,null,null,null,null,null,null,null,"",null,null,null,"",""]
[null,null,null,null,null,null,null,null,null,null,"",null,null,null,"",""]
[null,null,null,null,null,null,null,null,null,null,"",null,null,null,"",""]
[null,null,null,null,null,null,null,null,null,null,"",null,null,null,"",""]
[null,null,null,null,null,null,null,null,null,null,"",null,null,null,"",""]
[null,null,null,null,null,null,null,null,null,null,"",null,null,null,"",""]
[null,null,null,null,null,null,null,null,null,null,"",null,null,null,"",""]
[null,null,null,null,null,null,null,null,null,null,"",null,null,null,"",""]
[null,null,null,null,null,null,null,null,null,null,"",null,null,null,"",""]
[null,null,null,null,null,null,null,null,null,null,"",null,null,null,"",""]
[null,null,null,null,null,null,null,null,null,null,"",null,null,null,"",""]
[null,null,null,null,null,null,null,null,null,null,"",null,null,null,"",""]
[null,null,null,null,null,null,null,null,null,null,"",null,null,null,"",""]
[null,null,null,null,null,null,null,null,null,null,"",null,null,null,"",""]
[null,null,null,null,null,null,null,null,null,null,"",null,null,null,"",""]
[null,null,null,null,null,null,null,null,null,null,"",null,null,null,"",""]
[null,null,null,null,null,null,null,null,null,null,"",null,null,null,"",""]
[null,null,null,null,null,null,null,null,null,null,"",null,null,null,"",""]
[null,null,null,null,null,null,null,null,null,null,"",null,null,null,"",""]
[null,null,null,null,null,null,null,null,null,null,"",null,null,null,"",""]
[null,null,null,null,null,null,null,null,null,null,"",null,null,null,"",""]
[null,null,null,null,null,null,null,null,null,null,"",null,null,null,"",""]
[null,null,null,null,null,null,null,null,null,null,"",null,null,null,"",""]
[null,null,null,null,null,null,null,null,null,null,"",null,null,null,"",""]
[null,null,null,null,null,null,null,null,null,null,"",null,null,null,"",""]
[null,null,null,null,null,null,null,null,null,null,"",null,null,null,"",""]
[null,null,null,null,null,null,null,null,null,null,"",null,null,null,"",""]
[null,null,null,null,null,null,null,null,null,null,"",null,null,null,"",""]
[null,null,null,null,null,null,null,null,null,null,"",null,null,null,"",""]
[null,null,null,null,null,null,null,null,null,null,"",null,null,null,"",""]
[null,null,null,null,null,null,null,null,null,null,"",null,null,null,"",""]
[null,null,null,null,null,null,null,null,null,null,"",null,null,null,"",""]
[null,null,null,null,null,null,null,null,null,null,"",null,null,null,"",""]
[null,null,null,null,null,null,null,null,null,null,"",null,null,null,"",""]
[null,null,null,null,null,null,null,null,null,null,"",null,null,null,"",""]
[null,null,null,null,null,null,null,null,null,null,"",null,null,null,"",""]
[null,null,null,null,null,null,null,null,null,null,"",null,null,null,"",""]
[null,null,null,null,null,null,null,null,null,null,"",null,null,null,"",""]
[null,null,null,null,null,null,null,null,null,null,"",null,null,null,"",""]
[null,null,null,null,null,null,null,null,null,null,"",null,null,null,"",""]
[null,null,null,null,null,null,null,null,null,null,"",null,null,null,"",""]
[null,null,null,null,null,null,null,null,null,null,"",null,null,null,"",""]
[null,null,null,null,null,null,null,null,null,null,"",null,null,null,"",""]
[null,null,null,null,null,null,null,null,null,null,{"$f":"IF(OR(B136=\"\",G136=\"\",B136=\"-\",G136=\"-\"),\"\",G136*C136/I136)","v":""},null,null,null,"",""]
[null,null,null,null,null,null,null,null,null,null,"",null,null,null,"",""]
[null,null,null,null,null,null,null,null,null,null,"",null,null,null,"",""]
[null,null,null,null,null,null,null,null,null,null,"",null,null,null,{"$f":"IF(OR(M139=\"\",M139=\"-\"),\"\",0.35*10^M139)","v":""},{"$f":"IF(O139=0.35*10^M139,\"Seth method\",\"\")","v":""}]
[null,null,null,null,null,null,null,null,null,null,"",null,null,null,"",""]
[null,null,null,null,null,null,null,null,null,null,"",null,null,null,"",""]
[null,null,null,null,null,null,null,null,null,null,"",null,null,null,"",""]
[null,null,null,null,null,null,null,null,null,null,"",null,null,null,"",""]
[null,null,null,null,null,null,null,null,null,null,"",null,null,null,"",""]
[null,null,null,null,null,null,null,null,null,null,"",null,null,null,"",""]
[null,null,null,null,null,null,null,null,null,null,"",null,null,null,"",""]
[null,null,null,null,null,null,null,null,null,null,"",null,null,null,"",""]
[null,null,null,null,null,null,null,null,null,null,"",null,null,null,"",""]
[null,null,null,null,null,null,null,null,null,null,"",null,null,null,"",""]
[null,null,null,null,null,null,null,null,null,null,"",null,null,null,"",""]
[null,null,null,null,null,null,null,null,null,null,"",null,null,null,"",""]
[null,null,null,null,null,null,null,null,null,null,"",null,null,null,"",""]
[null,null,null,null,null,null,null,null,null,null,"",null,null,null,"",""]
[null,null,null,null,null,null,null,null,null,null,"",null,null,null,"",""]
[null,null,null,null,null,null,null,null,null,null,"",null,null,null,"",""]
[null,null,null,null,null,null,null,null,null,null,"",null,null,null,"",""]
[null,null,null,null,null,null,null,null,null,null,"",null,null,null,"",""]
[null,null,null,null,null,null,null,null,null,null,"",null,null,null,"",""]
[null,null,null,null,null,null,null,null,null,null,"",null,null,null,"",""]
[null,null,null,null,null,null,null,null,null,null,"",null,null,null,"",""]
[null,null,null,null,null,null,null,null,null,null,"",null,null,null,"",""]
[null,null,null,null,null,null,null,null,null,null,"",null,null,null,"",""]
[null,null,null,null,null,null,null,null,null,null,"",null,null,null,"",""]
[null,null,null,null,null,null,null,null,null,null,"",null,null,null,"",""]
[null,null,null,null,null,null,null,null,null,null,"",null,null,null,"",""]
[null,null,null,null,null,null,null,null,null,null,"",null,null,null,"",""]
[null,null,null,null,null,null,null,null,null,null,"",null,null,null,"",""]
[null,null,null,null,null,null,null,null,null,null,"",null,null,null,"",""]
[null,null,null,null,null,null,null,null,null,null,"",null,null,null,"",""]
[null,null,null,null,null,null,null,null,null,null,"",null,null,null,"",""]
[null,null,null,null,null,null,null,null,null,null,"",null,null,null,"",""]
[null,null,null,null,null,null,null,null,null,null,"",null,null,null,"",""]
[null,null,null,null,null,null,null,null,null,null,"",null,null,null,"",""]
[null,null,null,null,null,null,null,null,null,null,"",null,null,null,"",""]
[null,null,null,null,null,null,null,null,null,null,"",null,null,null,"",""]
[null,null,null,null,null,null,null,null,null,null,"",null,null,null,"",""]
[null,null,null,null,null,null,null,null,null,null,"",null,null,null,"",""]
[null,null,null,null,null,null,null,null,null,null,"",null,null,null,"",""]
[null,null,null,null,null,null,null,null,null,null,"",null,null,null,"",""]
[null,null,null,null,null,null,null,null,null,null,"",null,null,null,"",""]
[null,null,null,null,null,null,null,null,null,null,"",null,null,null,"",""]
[null,null,null,null,null,null,null,null,null,null,"",null,null,null,"",""]
[null,null,null,null,null,null,null,null,null,null,"",null,null,null,"",""]
[null,null,null,null,null,null,null,null,null,null,"",null,null,null,"",""]
[null,null,null,null,null,null,null,null,null,null,"",null,null,null,"",""]
[null,null,null,null,null,null,null,null,null,null,"",null,null,null,"",""]
[null,null,null,null,null,null,null,null,null,null,"",null,null,null,"",""]
[null,null,null,null,null,null,null,null,null,null,"",null,null,null,"",""]
[null,null,null,null,null,null,null,null,null,null,"",null,null,null,"",""]
[null,null,null,null,null,null,null,null,null,null,"",null,null,null,"",""]
[null,null,null,null,null,null,null,null,null,null,"",null,null,null,""]
[null,null,null,null,null,null,null,null,null,null,"",null,null,null,""]
[null,null,null,null,null,null,null,null,null,null,"",null,null,null,""]
[null,null,null,null,null,null,null,null,null,null,"",null,null,null,""]
[null,null,null,null,null,null,null,null,null,null,"",null,null,null,""]
[null,null,null,null,null,null,null,null,null,null,"",null,null,null,""]
[null,null,null,null,null,null,null,null,null,null,"",null,null,null,""]
[null,null,null,null,null,null,null,null,null,null,"",null,null,null,""]
[null,null,null,null,null,null,null,null,null,null,"",null,null,null,""]
[null,null,null,null,null,null,null,null,null,null,{"$f":"IF(OR(B200=\"\",G200=\"\",B200=\"-\",G200=\"-\"),\"\",G200*C200/I200)","v":""},null,null,null,""]
[null,null,null,null,null,null,null,null,null,null,"",null,null,null,""]
[null,null,null,null,null,null,null,null,null,null,"",null,null,null,""]
[null,null,null,null,null,null,null,null,null,null,"",null,null,null,{"$f":"IF(OR(M203=\"\",M203=\"-\"),\"\",0.35*10^M203)","v":""}]
[null,null,null,null,null,null,null,null,null,null,"",null,null,null,""]
[null,null,null,null,null,null,null,null,null,null,"",null,null,null,""]
[null,null,null,null,null,null,null,null,null,null,"",null,null,null,""]
[null,null,null,null,null,null,null,null,null,null,"",null,null,null,""]
[null,null,null,null,null,null,null,null,null,null,"",null,null,null,""]
[null,null,null,null,null,null,null,null,null,null,"",null,null,null,""]
[null,null,null,null,null,null,null,null,null,null,"",null,null,null,""]
[null,null,null,null,null,null,null,null,null,null,"",null,null,null,""]
[null,null,null,null,null,null,null,null,null,null,"",null,null,null,""]
[null,null,null,null,null,null,null,null,null,null,"",null,null,null,""]
[null,null,null,null,null,null,null,null,null,null,"",null,null,null,""]
[null,null,null,null,null,null,null,null,null,null,"",null,null,null,""]
[null,null,null,null,null,null,null,null,null,null,"",null,null,null,""]
[null,null,null,null,null,null,null,null,null,null,"",null,null,null,""]
[null,null,null,null,null,null,null,null,null,null,"",null,null,null,""]
[null,null,null,null,null,null,null,null,null,null,"",null,null,null,""]
[null,null,null,null,null,null,null,null,null,null,"",null,null,null,""]
[null,null,null,null,null,null,null,null,null,null,"",null,null,null,""]
[null,null,null,null,null,null,null,null,null,null,"",null,null,null,""]
[null,null,null,null,null,null,null,null,null,null,"",null,null,null,""]
[null,null,null,null,null,null,null,null,null,null,"",null,null,null,""]
[null,null,null,null,null,null,null,null,null,null,"",null,null,null,""]
[null,null,null,null,null,null,null,null,null,null,"",null,null,null,""]
[null,null,null,null,null,null,null,null,null,null,"",null,null,null,""]
[null,null,null,null,null,null,null,null,null,null,"",null,null,null,""]
[null,null,null,null,null,null,null,null,null,null,"",null,null,null,""]
[null,null,null,null,null,null,null,null,null,null,"",null,null,null,""]
[null,null,null,null,null,null,null,null,null,null,"",null,null,null,""]
[null,null,null,null,null,null,null,null,null,null,"",null,null,null,""]
[null,null,null,null,null,null,null,null,null,null,"",null,null,null,""]
[null,null,null,null,null,null,null,null,null,null,"",null,null,null,""]
[null,null,null,null,null,null,null,null,null,null,"",null,null,null,""]
[null,null,null,null,null,null,null,null,null,null,"",null,null,null,""]
[null,null,null,null,null,null,null,null,null,null,"",null,null,null,""]
[null,null,null,null,null,null,null,null,null,null,"",null,null,null,""]
[null,null,null,null,null,null,null,null,null,null,"",null,null,null,""]
[null,null,null,null,null,null,null,null,null,null,"",null,null,null,""]
[null,null,null,null,null,null,null,null,null,null,"",null,null,null,""]
[null,null,null,null,null,null,null,null,null,null,"",null,null,null,""]
[null,null,null,null,null,null,null,null,null,null,"",null,null,null,""]
[null,null,null,null,null,null,null,null,null,null,"",null,null,null,""]
[null,null,null,null,null,null,null,null,null,null,"",null,null,null,""]
[null,null,null,null,null,null,null,null,null,null,"",null,null,null,""]
[null,null,null,null,null,null,null,null,null,null,"",null,null,null,""]
[null,null,null,null,null,null,null,null,null,null,"",null,null,null,""]
[null,null,null,null,null,null,null,null,null,null,"",null,null,null,""]
[null,null,null,null,null,null,null,null,null,null,"",null,null,null,""]
[null,null,null,null,null,null,null,null,null,null,"",null,null,null,""]
[null,null,null,null,null,null,null,null,null,null,"",null,null,null,""]
[null,null,null,null,null,null,null,null,null,null,"",null,null,null,""]
[null,null,null,null,null,null,null,null,null,null,"",null,null,null,""]
[null,null,null,null,null,null,null,null,null,null,"",null,null,null,""]
[null,null,null,null,null,null,null,null,null,null,"",null,null,null,""]
[null,null,null,null,null,null,null,null,null,null,"",null,null,null,""]
[null,null,null,null,null,null,null,null,null,null,"",null,null,null,""]
[null,null,null,null,null,null,null,null,null,null,"",null,null,null,""]
[null,null,null,null,null,null,null,null,null,null,"",null,null,null,""]
[null,null,null,null,null,null,null,null,null,null,"",null,null,null,""]
[null,null,null,null,null,null,null,null,null,null,"",null,null,null,""]
[null,null,null,null,null,null,null,null,null,null,"",null,null,null,""]
[null,null,null,null,null,null,null,null,null,null,{"$f":"IF(OR(B264=\"\",G264=\"\",B264=\"-\",G264=\"-\"),\"\",G264*C264/I264)","v":""},null,null,null,""]
[null,null,null,null,null,null,null,null,null,null,"",null,null,null,""]
[null,null,null,null,null,null,null,null,null,null,"",null,null,null,""]
[null,null,null,null,null,null,null,null,null,null,"",null,null,null,{"$f":"IF(OR(M267=\"\",M267=\"-\"),\"\",0.35*10^M267)","v":""}]
[null,null,null,null,null,null,null,null,null,null,"",null,null,null,""]
[null,null,null,null,null,null,null,null,null,null,"",null,null,null,""]
[null,null,null,null,null,null,null,null,null,null,"",null,null,null,""]
[null,null,null,null,null,null,null,null,null,null,"",null,null,null,""]
[null,null,null,null,null,null,null,null,null,null,"",null,null,null,""]
[null,null,null,null,null,null,null,null,null,null,"",null,null,null,""]
[null,null,null,null,null,null,null,null,null,null,"",null,null,null,""]
[null,null,null,null,null,null,null,null,null,null,"",null,null,null,""]
[null,null,null,null,null,null,null,null,null,null,"",null,null,null,""]
[null,null,null,null,null,null,null,null,null,null,"",null,null,null,""]
[null,null,null,null,null,null,null,null,null,null,"",null,null,null,""]
[null,null,null,null,null,null,null,null,null,null,"",null,null,null,""]
[null,null,null,null,null,null,null,null,null,null,"",null,null,null,""]
[null,null,null,null,null,null,null,null,null,null,"",null,null,null,""]
[null,null,null,null,null,null,null,null,null,null,"",null,null,null,""]
[null,null,null,null,null,null,null,null,null,null,"",null,null,null,""]
[null,null,null,null,null,null,null,null,null,null,"",null,null,null,""]
[null,null,null,null,null,null,null,null,null,null,"",null,null,null,""]
[null,null,null,null,null,null,null,null,null,null,"",null,null,null,""]
[null,null,null,null,null,null,null,null,null,null,"",null,null,null,""]
[null,null,null,null,null,null,null,null,null,null,"",null,null,null,""]
[null,null,null,null,null,null,null,null,null,null,"",null,null,null,""]
[null,null,null,null,null,null,null,null,null,null,"",null,null,null,""]
[null,null,null,null,null,null,null,null,null,null,"",null,null,null,""]
[null,null,null,null,null,null,null,null,null,null,"",null,null,null,""]
[null,null,null,null,null,null,null,null,null,null,"",null,null,null,""]
[null,null,null,null,null,null,null,null,null,null,"",null,null,null,""]
[null,null,null,null,null,null,null,null,null,null,"",null,null,null,""]
[null,null,null,null,null,null,null,null,null,null,"",null,null,null,""]
[null,null,null,null,null,null,null,null,null,null,"",null,null,null,""]
[null,null,null,null,null,null,null,null,null,null,"",null,null,null,""]
[null,null,null,null,null,null,null,null,null,null,"",null,null,null,""]
[null,null,null,null,null,null,null,null,null,null,"",null,null,null,""]
[null,null,null,null,null,null,null,null,null,null,"",null,null,null,""]
[null,null,null,null,null,null,null,null,null,null,"",null,null,null,""]
[null,null,null,null,null,null,null,null,null,null,"",null,null,null,""]
[null,null,null,null,null,null,null,null,null,null,"",null,null,null,""]
[null,null,null,null,null,null,null,null,null,null,"",null,null,null,""]
[null,null,null,null,null,null,null,null,null,null,"",null,null,null,""]
[null,null,null,null,null,null,null,null,null,null,"",null,null,null,""]
[null,null,null,null,null,null,null,null,null,null,"",null,null,null,""]
[null,null,null,null,null,null,null,null,null,null,"",null,null,null,""]
[null,null,null,null,null,null,null,null,null,null,"",null,null,null,""]
[null,null,null,null,null,null,null,null,null,null,"",null,null,null,""]
[null,null,null,null,null,null,null,null,null,null,"",null,null,null,""]
[null,null,null,null,null,null,null,null,null,null,"",null,null,null,""]
[null,null,null,null,null,null,null,null,null,null,"",null,null,null,""]
[null,null,null,null,null,null,null,null,null,null,"",null,null,null,""]
[null,null,null,null,null,null,null,null,null,null,"",null,null,null,""]
[null,null,null,null,null,null,null,null,null,null,"",null,null,null,""]
[null,null,null,null,null,null,null,null,null,null,"",null,null,null,""]
[null,null,null,null,null,null,null,null,null,null,"",null,null,null,""]
[null,null,null,null,null,null,null,null,null,null,"",null,null,null,""]
[null,null,null,null,null,null,null,null,null,null,"",null,null,null,""]
[null,null,null,null,null,null,null,null,null,null,"",null,null,null,""]
[null,null,null,null,null,null,null,null,null,null,"",null,null,null,""]
[null,null,null,null,null,null,null,null,null,null,"",null,null,null,""]
[null,null,null,null,null,null,null,null,null,null,"",null,null,null,""]
[null,null,null,null,null,null,null,null,null,null,"",null,null,null,""]
[null,null,null,null,null,null,null,null,null,null,"",null,null,null,""]
[null,null,null,null,null,null,null,null,null,null,{"$f":"IF(OR(B328=\"\",G328=\"\",B328=\"-\",G328=\"-\"),\"\",G328*C328/I328)","v":""},null,null,null,""]
[null,null,null,null,null,null,null,null,null,null,"",null,null,null,""]
[null,null,null,null,null,null,null,null,null,null,"",null,null,null,""]
[null,null,null,null,null,null,null,null,null,null,"",null,null,null,{"$f":"IF(OR(M331=\"\",M331=\"-\"),\"\",0.35*10^M331)","v":""}]
[null,null,null,null,null,null,null,null,null,null,"",null,null,null,""]
[null,null,null,null,null,null,null,null,null,null,"",null,null,null,""]
[null,null,null,null,null,null,null,null,null,null,"",null,null,null,""]
[null,null,null,null,null,null,null,null,null,null,"",null,null,null,""]
[null,null,null,null,null,null,null,null,null,null,"",null,null,null,""]
[null,null,null,null,null,null,null,null,null,null,"",null,null,null,""]
[null,null,null,null,null,null,null,null,null,null,"",null,null,null,""]
[null,null,null,null,null,null,null,null,null,null,"",null,null,null,""]
[null,null,null,null,null,null,null,null,null,null,"",null,null,null,""]
[null,null,null,null,null,null,null,null,null,null,"",null,null,null,""]
[null,null,null,null,null,null,null,null,null,null,"",null,null,null,""]
[null,null,null,null,null,null,null,null,null,null,"",null,null,null,""]
[null,null,null,null,null,null,null,null,null,null,"",null,null,null,""]
[null,null,null,null,null,null,null,null,null,null,"",null,null,null,""]
[null,null,null,null,null,null,null,null,null,null,"",null,null,null,""]
[null,null,null,null,null,null,null,null,null,null,"",null,null,null,""]
[null,null,null,null,null,null,null,null,null,null,"",null,null,null,""]
[null,null,null,null,null,null,null,null,null,null,"",null,null,null,""]
[null,null,null,null,null,null,null,null,null,null,"",null,null,null,""]
[null,null,null,null,null,null,null,null,null,null,"",null,null,null,""]
[null,null,null,null,null,null,null,null,null,null,"",null,null,null,""]
[null,null,null,null,null,null,null,null,null,null,"",null,null,null,""]
[null,null,null,null,null,null,null,null,null,null,"",null,null,null,""]
[null,null,null,null,null,null,null,null,null,null,"",null,null,null,""]
[null,null,null,null,null,null,null,null,null,null,"",null,null,null,""]
[null,null,null,null,null,null,null,null,null,null,"",null,null,null,""]
[null,null,null,null,null,null,null,null,null,null,"",null,null,null,""]
[null,null,null,null,null,null,null,null,null,null,"",null,null,null,""]
[null,null,null,null,null,null,null,null,null,null,"",null,null,null,""]
[null,null,null,null,null,null,null,null,null,null,"",null,null,null,""]
[null,null,null,null,null,null,null,null,null,null,"",null,null,null,""]
[null,null,null,null,null,null,null,null,null,null,"",null,null,null,""]
[null,null,null,null,null,null,null,null,null,null,"",null,null,null,""]
[null,null,null,null,null,null,null,null,null,null,"",null,null,null,""]
[null,null,null,null,null,null,null,null,null,null,"",null,null,null,""]
[null,null,null,null,null,null,null,null,null,null,"",null,null,null,""]
[null,null,null,null,null,null,null,null,null,null,"",null,null,null,""]
[null,null,null,null,null,null,null,null,null,null,"",null,null,null,""]
[null,null,null,null,null,null,null,null,null,null,"",null,null,null,""]
[null,null,null,null,null,null,null,null,null,null,"",null,null,null,""]
[null,null,null,null,null,null,null,null,null,null,"",null,null,null,""]
[null,null,null,null,null,null,null,null,null,null,"",null,null,null,""]
[null,null,null,null,null,null,null,null,null,null,"",null,null,null,""]
[null,null,null,null,null,null,null,null,null,null,"",null,null,null,""]
[null,null,null,null,null,null,null,null,null,null,"",null,null,null,""]
[null,null,null,null,null,null,null,null,null,null,"",null,null,null,""]
[null,null,null,null,null,null,null,null,null,null,"",null,null,null,""]
[null,null,null,null,null,null,null,null,null,null,"",null,null,null,""]
[null,null,null,null,null,null,null,null,null,null,"",null,null,null,""]
[null,null,null,null,null,null,null,null,null,null,"",null,null,null,""]
[null,null,null,null,null,null,null,null,null,null,"",null,null,null,""]
[null,null,null,null,null,null,null,null,null,null,"",null,null,null,""]
[null,null,null,null,null,null,null,null,null,null,"",null,null,null,""]
[null,null,null,null,null,null,null,null,null,null,"",null,null,null,""]
[null,null,null,null,null,null,null,null,null,null,"",null,null,null,""]
[null,null,null,null,null,null,null,null,null,null,"",null,null,null,""]
[null,null,null,null,null,null,null,null,null,null,"",null,null,null,""]
[null,null,null,null,null,null,null,null,null,null,"",null,null,null,""]
[null,null,null,null,null,null,null,null,null,null,"",null,null,null,""]
[null,null,null,null,null,null,null,null,null,null,"",null,null,null,""]
[null,null,null,null,null,null,null,null,null,null,{"$f":"IF(OR(B392=\"\",G392=\"\",B392=\"-\",G392=\"-\"),\"\",G392*C392/I392)","v":""},null,null,null,""]
[null,null,null,null,null,null,null,null,null,null,"",null,null,null,""]
[null,null,null,null,null,null,null,null,null,null,"",null,null,null,""]
[null,null,null,null,null,null,null,null,null,null,"",null,null,null,{"$f":"IF(OR(M395=\"\",M395=\"-\"),\"\",0.35*10^M395)","v":""}]
[null,null,null,null,null,null,null,null,null,null,"",null,null,null,""]
[null,null,null,null,null,null,null,null,null,null,"",null,null,null,""]
[null,null,null,null,null,null,null,null,null,null,"",null,null,null,""]
[null,null,null,null,null,null,null,null,null,null,"",null,null,null,""]
[null,null,null,null,null,null,null,null,null,null,"",null,null,null,""]
[null,null,null,null,null,null,null,null,null,null,"",null,null,null,""]
[null,null,null,null,null,null,null,null,null,null,"",null,null,null,""]
[null,null,null,null,null,null,null,null,null,null,"",null,null,null,""]
[null,null,null,null,null,null,null,null,null,null,"",null,null,null,""]
[null,null,null,null,null,null,null,null,null,null,"",null,null,null,""]
[null,null,null,null,null,null,null,null,null,null,"",null,null,null,""]
[null,null,null,null,null,null,null,null,null,null,"",null,null,null,""]
[null,null,null,null,null,null,null,null,null,null,"",null,null,null,""]
[null,null,null,null,null,null,null,null,null,null,"",null,null,null,""]
[null,null,null,null,null,null,null,null,null,null,"",null,null,null,""]
[null,null,null,null,null,null,null,null,null,null,"",null,null,null,""]
[null,null,null,null,null,null,null,null,null,null,"",null,null,null,""]
[null,null,null,null,null,null,null,null,null,null,"",null,null,null,""]
[null,null,null,null,null,null,null,null,null,null,"",null,null,null,""]
[null,null,null,null,null,null,null,null,null,null,"",null,null,null,""]
[null,null,null,null,null,null,null,null,null,null,"",null,null,null,""]
[null,null,null,null,null,null,null,null,null,null,"",null,null,null,""]
[null,null,null,null,null,null,null,null,null,null,"",null,null,null,""]
[null,null,null,null,null,null,null,null,null,null,"",null,null,null,""]
[null,null,null,null,null,null,null,null,null,null,"",null,null,null,""]
[null,null,null,null,null,null,null,null,null,null,"",null,null,null,""]
[null,null,null,null,null,null,null,null,null,null,"",null,null,null,""]
[null,null,null,null,null,null,null,null,null,null,"",null,null,null,""]
[null,null,null,null,null,null,null,null,null,null,"",null,null,null,""]
[null,null,null,null,null,null,null,null,null,null,"",null,null,null,""]
[null,null,null,null,null,null,null,null,null,null,"",null,null,null,""]
[null,null,null,null,null,null,null,null,null,null,"",null,null,null,""]
[null,null,null,null,null,null,null,null,null,null,"",null,null,null,""]
[null,null,null,null,null,null,null,null,null,null,"",null,null,null,""]
[null,null,null,null,null,null,null,null,null,null,"",null,null,null,""]
[null,null,null,null,null,null,null,null,null,null,"",null,null,null,""]
[null,null,null,null,null,null,null,null,null,null,"",null,null,null,""]
[null,null,null,null,null,null,null,null,null,null,"",null,null,null,""]
[null,null,null,null,null,null,null,null,null,null,"",null,null,null,""]
[null,null,null,null,null,null,null,null,null,null,"",null,null,null,""]
[null,null,null,null,null,null,null,null,null,null,"",null,null,null,""]
[null,null,null,null,null,null,null,null,null,null,"",null,null,null,""]
[null,null,null,null,null,null,null,null,null,null,"",null,null,null,""]
[null,null,null,null,null,null,null,null,null,null,"",null,null,null,""]
[null,null,null,null,null,null,null,null,null,null,"",null,null,null,""]
[null,null,null,null,null,null,null,null,null,null,"",null,null,null,""]
[null,null,null,null,null,null,null,null,null,null,"",null,null,null,""]
[null,null,null,null,null,null,null,null,null,null,"",null,null,null,""]
[null,null,null,null,null,null,null,null,null,null,"",null,null,null,""]
[null,null,null,null,null,null,null,null,null,null,"",null,null,null,""]
[null,null,null,null,null,null,null,null,null,null,"",null,null,null,""]
[null,null,null,null,null,null,null,null,null,null,"",null,null,null,""]
[null,null,null,null,null,null,null,null,null,null,"",null,null,null,""]
[null,null,null,null,null,null,null,null,null,null,"",null,null,null,""]
[null,null,null,null,null,null,null,null,null,null,"",null,null,null,""]
[null,null,null,null,null,null,null,null,null,null,"",null,null,null,""]
[null,null,null,null,null,null,null,null,null,null,"",null,null,null,""]
[null,null,null,null,null,null,null,null,null,null,"",null,null,null,""]
[null,null,null,null,null,null,null,null,null,null,"",null,null,null,""]
[null,null,null,null,null,null,null,null,null,null,"",null,null,null,""]
[null,null,null,null,null,null,null,null,null,null,{"$f":"IF(OR(B456=\"\",G456=\"\",B456=\"-\",G456=\"-\"),\"\",G456*C456/I456)","v":""},null,null,null,""]
[null,null,null,null,null,null,null,null,null,null,"",null,null,null,""]
[null,null,null,null,null,null,null,null,null,null,"",null,null,null,""]
[null,null,null,null,null,null,null,null,null,null,"",null,null,null,{"$f":"IF(OR(M459=\"\",M459=\"-\"),\"\",0.35*10^M459)","v":""}]
[null,null,null,null,null,null,null,null,null,null,"",null,null,null,""]
[null,null,null,null,null,null,null,null,null,null,"",null,null,null,""]
[null,null,null,null,null,null,null,null,null,null,"",null,null,null,""]
[null,null,null,null,null,null,null,null,null,null,"",null,null,null,""]
[null,null,null,null,null,null,null,null,null,null,"",null,null,null,""]
[null,null,null,null,null,null,null,null,null,null,"",null,null,null,""]
[null,null,null,null,null,null,null,null,null,null,"",null,null,null,""]
[null,null,null,null,null,null,null,null,null,null,"",null,null,null,""]
[null,null,null,null,null,null,null,null,null,null,"",null,null,null,""]
[null,null,null,null,null,null,null,null,null,null,"",null,null,null,""]
[null,null,null,null,null,null,null,null,null,null,"",null,null,null,""]
[null,null,null,null,null,null,null,null,null,null,"",null,null,null,""]
[null,null,null,null,null,null,null,null,null,null,"",null,null,null,""]
[null,null,null,null,null,null,null,null,null,null,"",null,null,null,""]
[null,null,null,null,null,null,null,null,null,null,"",null,null,null,""]
[null,null,null,null,null,null,null,null,null,null,"",null,null,null,""]
[null,null,null,null,null,null,null,null,null,null,"",null,null,null,""]
[null,null,null,null,null,null,null,null,null,null,"",null,null,null,""]
[null,null,null,null,null,null,null,null,null,null,"",null,null,null,""]
[null,null,null,null,null,null,null,null,null,null,"",null,null,null,""]
[null,null,null,null,null,null,null,null,null,null,"",null,null,null,""]
[null,null,null,null,null,null,null,null,null,null,"",null,null,null,""]
[null,null,null,null,null,null,null,null,null,null,"",null,null,null,""]
[null,null,null,null,null,null,null,null,null,null,"",null,null,null,""]
[null,null,null,null,null,null,null,null,null,null,"",null,null,null,""]
[null,null,null,null,null,null,null,null,null,null,"",null,null,null,""]
[null,null,null,null,null,null,null,null,null,null,"",null,null,null,""]
[null,null,null,null,null,null,null,null,null,null,"",null,null,null,""]
[null,null,null,null,null,null,null,null,null,null,"",null,null,null,""]
[null,null,null,null,null,null,null,null,null,null,"",null,null,null,""]
[null,null,null,null,null,null,null,null,null,null,"",null,null,null,""]
[null,null,null,null,null,null,null,null,null,null,"",null,null,null,""]
[null,null,null,null,null,null,null,null,null,null,"",null,null,null,""]
[null,null,null,null,null,null,null,null,null,null,"",null,null,null,""]
[null,null,null,null,null,null,null,null,null,null,"",null,null,null,""]
[null,null,null,null,null,null,null,null,null,null,"",null,null,null,""]
[null,null,null,null,null,null,null,null,null,null,"",null,null,null,""]
[null,null,null,null,null,null,null,null,null,null,"",null,null,null,""]
[null,null,null,null,null,null,null,null,null,null,"",null,null,null,""]
[null,null,null,null,null,null,null,null,null,null,"",null,null,null,""]
[null,null,null,null,null,null,null,null,null,null,"",null,null,null,""]
[null,null,null,null,null,null,null,null,null,null,"",null,null,null,""]
[null,null,null,null,null,null,null,null,null,null,"",null,null,null,""]
[null,null,null,null,null,null,null,null,null,null,"",null,null,null,""]
[null,null,null,null,null,null,null,null,null,null,"",null,null,null,""]
[null,null,null,null,null,null,null,null,null,null,"",null,null,null,""]
[null,null,null,null,null,null,null,null,null,null,"",null,null,null,""]
[null,null,null,null,null,null,null,null,null,null,"",null,null,null,""]
[null,null,null,null,null,null,null,null,null,null,"",null,null,null,""]
[null,null,null,null,null,null,null,null,null,null,"",null,null,null,""]
[null,null,null,null,null,null,null,null,null,null,"",null,null,null,""]
[null,null,null,null,null,null,null,null,null,null,"",null,null,null,""]
[null,null,null,null,null,null,null,null,null,null,"",null,null,null,""]
[null,null,null,null,null,null,null,null,null,null,"",null,null,null,""]
[null,null,null,null,null,null,null,null,null,null,"",null,null,null,""]
[null,null,null,null,null,null,null,null,null,null,"",null,null,null,""]
[null,null,null,null,null,null,null,null,null,null,"",null,null,null,""]
[null,null,null,null,null,null,null,null,null,null,"",null,null,null,""]
[null,null,null,null,null,null,null,null,null,null,"",null,null,null,""]
[null,null,null,null,null,null,null,null,null,null,"",null,null,null,""]
[null,null,null,null,null,null,null,null,null,null,{"$f":"IF(OR(B520=\"\",G520=\"\",B520=\"-\",G520=\"-\"),\"\",G520*C520/I520)","v":""},null,null,null,""]
[null,null,null,null,null,null,null,null,null,null,"",null,null,null,""]
[null,null,null,null,null,null,null,null,null,null,"",null,null,null,""]
[null,null,null,null,null,null,null,null,null,null,"",null,null,null,{"$f":"IF(OR(M523=\"\",M523=\"-\"),\"\",0.35*10^M523)","v":""}]
[null,null,null,null,null,null,null,null,null,null,"",null,null,null,""]
[null,null,null,null,null,null,null,null,null,null,"",null,null,null,""]
[null,null,null,null,null,null,null,null,null,null,"",null,null,null,""]
[null,null,null,null,null,null,null,null,null,null,"",null,null,null,""]
[null,null,null,null,null,null,null,null,null,null,"",null,null,null,""]
[null,null,null,null,null,null,null,null,null,null,"",null,null,null,""]
[null,null,null,null,null,null,null,null,null,null,"",null,null,null,""]
[null,null,null,null,null,null,null,null,null,null,"",null,null,null,""]
[null,null,null,null,null,null,null,null,null,null,"",null,null,null,""]
[null,null,null,null,null,null,null,null,null,null,"",null,null,null,""]
[null,null,null,null,null,null,null,null,null,null,"",null,null,null,""]
[null,null,null,null,null,null,null,null,null,null,"",null,null,null,""]
[null,null,null,null,null,null,null,null,null,null,"",null,null,null,""]
[null,null,null,null,null,null,null,null,null,null,"",null,null,null,""]
[null,null,null,null,null,null,null,null,null,null,"",null,null,null,""]
[null,null,null,null,null,null,null,null,null,null,"",null,null,null,""]
[null,null,null,null,null,null,null,null,null,null,"",null,null,null,""]
[null,null,null,null,null,null,null,null,null,null,"",null,null,null,""]
[null,null,null,null,null,null,null,null,null,null,"",null,null,null,""]
[null,null,null,null,null,null,null,null,null,null,"",null,null,null,""]
[null,null,null,null,null,null,null,null,null,null,"",null,null,null,""]
[null,null,null,null,null,null,null,null,null,null,"",null,null,null,""]
[null,null,null,null,null,null,null,null,null,null,"",null,null,null,""]
[null,null,null,null,null,null,null,null,null,null,"",null,null,null,""]
[null,null,null,null,null,null,null,null,null,null,"",null,null,null,""]
[null,null,null,null,null,null,null,null,null,null,"",null,null,null,""]
[null,null,null,null,null,null,null,null,null,null,"",null,null,null,""]
[null,null,null,null,null,null,null,null,null,null,"",null,null,null,""]
[null,null,null,null,null,null,null,null,null,null,"",null,null,null,""]
[null,null,null,null,null,null,null,null,null,null,"",null,null,null,""]
[null,null,null,null,null,null,null,null,null,null,"",null,null,null,""]
[null,null,null,null,null,null,null,null,null,null,"",null,null,null,""]
[null,null,null,null,null,null,null,null,null,null,"",null,null,null,""]
[null,null,null,null,null,null,null,null,null,null,"",null,null,null,""]
[null,null,null,null,null,null,null,null,null,null,"",null,null,null,""]
[null,null,null,null,null,null,null,null,null,null,"",null,null,null,""]
[null,null,null,null,null,null,null,null,null,null,"",null,null,null,""]
[null,null,null,null,null,null,null,null,null,null,"",null,null,null,""]
[null,null,null,null,null,null,null,null,null,null,"",null,null,null,""]
[null,null,null,null,null,null,null,null,null,null,"",null,null,null,""]
[null,null,null,null,null,null,null,null,null,null,"",null,null,null,""]
[null,null,null,null,null,null,null,null,null,null,"",null,null,null,""]
[null,null,null,null,null,null,null,null,null,null,"",null,null,null,""]
[null,null,null,null,null,null,null,null,null,null,"",null,null,null,""]
[null,null,null,null,null,null,null,null,null,null,"",null,null,null,""]
[null,null,null,null,null,null,null,null,null,null,"",null,null,null,""]
[null,null,null,null,null,null,null,null,null,null,"",null,null,null,""]
[null,null,null,null,null,null,null,null,null,null,"",null,null,null,""]
[null,null,null,null,null,null,null,null,null,null,"",null,null,null,""]
[null,null,null,null,null,null,null,null,null,null,"",null,null,null,""]
[null,null,null,null,null,null,null,null,null,null,"",null,null,null,""]
[null,null,null,null,null,null,null,null,null,null,"",null,null,null,""]
[null,null,null,null,null,null,null,null,null,null,"",null,null,null,""]
[null,null,null,null,null,null,null,null,null,null,"",null,null,null,""]
[null,null,null,null,null,null,null,null,null,null,"",null,null,null,""]
[null,null,null,null,null,null,null,null,null,null,"",null,null,null,""]
[null,null,null,null,null,null,null,null,null,null,"",null,null,null,""]
[null,null,null,null,null,null,null,null,null,null,"",null,null,null,""]
[null,null,null,null,null,null,null,null,null,null,"",null,null,null,""]
[null,null,null,null,null,null,null,null,null,null,"",null,null,null,""]
[null,null,null,null,null,null,null,null,null,null,{"$f":"IF(OR(B584=\"\",G584=\"\",B584=\"-\",G584=\"-\"),\"\",G584*C584/I584)","v":""},null,null,null,""]
[null,null,null,null,null,null,null,null,null,null,"",null,null,null,""]
[null,null,null,null,null,null,null,null,null,null,"",null,null,null,""]
[null,null,null,null,null,null,null,null,null,null,"",null,null,null,{"$f":"IF(OR(M587=\"\",M587=\"-\"),\"\",0.35*10^M587)","v":""}]
[null,null,null,null,null,null,null,null,null,null,"",null,null,null,""]
[null,null,null,null,null,null,null,null,null,null,"",null,null,null,""]
[null,null,null,null,null,null,null,null,null,null,"",null,null,null,""]
[null,null,null,null,null,null,null,null,null,null,"",null,null,null,""]
[null,null,null,null,null,null,null,null,null,null,"",null,null,null,""]
[null,null,null,null,null,null,null,null,null,null,"",null,null,null,""]
[null,null,null,null,null,null,null,null,null,null,"",null,null,null,""]
[null,null,null,null,null,null,null,null,null,null,"",null,null,null,""]
[null,null,null,null,null,null,null,null,null,null,"",null,null,null,""]
[null,null,null,null,null,null,null,null,null,null,"",null,null,null,""]
[null,null,null,null,null,null,null,null,null,null,"",null,null,null,""]
[null,null,null,null,null,null,null,null,null,null,"",null,null,null,""]
[null,null,null,null,null,null,null,null,null,null,"",null,null,null,""]
[null,null,null,null,null,null,null,null,null,null,"",null,null,null,""]
[null,null,null,null,null,null,null,null,null,null,"",null,null,null,""]
[null,null,null,null,null,null,null,null,null,null,"",null,null,null,""]
[null,null,null,null,null,null,null,null,null,null,"",null,null,null,""]
[null,null,null,null,null,null,null,null,null,null,"",null,null,null,""]
[null,null,null,null,null,null,null,null,null,null,"",null,null,null,""]
[null,null,null,null,null,null,null,null,null,null,"",null,null,null,""]
[null,null,null,null,null,null,null,null,null,null,"",null,null,null,""]
[null,null,null,null,null,null,null,null,null,null,"",null,null,null,""]
[null,null,null,null,null,null,null,null,null,null,"",null,null,null,""]
[null,null,null,null,null,null,null,null,null,null,"",null,null,null,""]
[null,null,null,null,null,null,null,null,null,null,"",null,null,null,""]
[null,null,null,null,null,null,null,null,null,null,"",null,null,null,""]
[null,null,null,null,null,null,null,null,null,null,"",null,null,null,""]
[null,null,null,null,null,null,null,null,null,null,"",null,null,null,""]
[null,null,null,null,null,null,null,null,null,null,"",null,null,null,""]
[null,null,null,null,null,null,null,null,null,null,"",null,null,null,""]
[null,null,null,null,null,null,null,null,null,null,"",null,null,null,""]
[null,null,null,null,null,null,null,null,null,null,"",null,null,null,""]
[null,null,null,null,null,null,null,null,null,null,"",null,null,null,""]
[null,null,null,null,null,null,null,null,null,null,"",null,null,null,""]
[null,null,null,null,null,null,null,null,null,null,"",null,null,null,""]
[null,null,null,null,null,null,null,null,null,null,"",null,null,null,""]
[null,null,null,null,null,null,null,null,null,null,"",null,null,null,""]
[null,null,null,null,null,null,null,null,null,null,"",null,null,null,""]
[null,null,null,null,null,null,null,null,null,null,"",null,null,null,""]
[null,null,null,null,null,null,null,null,null,null,"",null,null,null,""]
[null,null,null,null,null,null,null,null,null,null,"",null,null,null,""]
[null,null,null,null,null,null,null,null,null,null,"",null,null,null,""]
[null,null,null,null,null,null,null,null,null,null,"",null,null,null,""]
[null,null,null,null,null,null,null,null,null,null,"",null,null,null,""]
[null,null,null,null,null,null,null,null,null,null,"",null,null,null,""]
[null,null,null,null,null,null,null,null,null,null,"",null,null,null,""]
[null,null,null,null,null,null,null,null,null,null,"",null,null,null,""]
[null,null,null,null,null,null,null,null,null,null,"",null,null,null,""]
[null,null,null,null,null,null,null,null,null,null,"",null,null,null,""]
[null,null,null,null,null,null,null,null,null,null,"",null,null,null,""]
[null,null,null,null,null,null,null,null,null,null,"",null,null,null,""]
[null,null,null,null,null,null,null,null,null,null,"",null,null,null,""]
[null,null,null,null,null,null,null,null,null,null,"",null,null,null,""]
[null,null,null,null,null,null,null,null,null,null,"",null,null,null,""]
[null,null,null,null,null,null,null,null,null,null,"",null,null,null,""]
[null,null,null,null,null,null,null,null,null,null,"",null,null,null,""]
[null,null,null,null,null,null,null,null,null,null,"",null,null,null,""]
[null,null,null,null,null,null,null,null,null,null,"",null,null,null,""]
[null,null,null,null,null,null,null,null,null,null,"",null,null,null,""]
[null,null,null,null,null,null,null,null,null,null,"",null,null,null,""]
[null,null,null,null,null,null,null,null,null,null,{"$f":"IF(OR(B648=\"\",G648=\"\",B648=\"-\",G648=\"-\"),\"\",G648*C648/I648)","v":""},null,null,null,""]
[null,null,null,null,null,null,null,null,null,null,"",null,null,null,""]
[null,null,null,null,null,null,null,null,null,null,"",null,null,null,""]
[null,null,null,null,null,null,null,null,null,null,"",null,null,null,{"$f":"IF(OR(M651=\"\",M651=\"-\"),\"\",0.35*10^M651)","v":""}]
[null,null,null,null,null,null,null,null,null,null,"",null,null,null,""]
[null,null,null,null,null,null,null,null,null,null,"",null,null,null,""]
[null,null,null,null,null,null,null,null,null,null,"",null,null,null,""]
[null,null,null,null,null,null,null,null,null,null,"",null,null,null,""]
[null,null,null,null,null,null,null,null,null,null,"",null,null,null,""]
[null,null,null,null,null,null,null,null,null,null,"",null,null,null,""]
[null,null,null,null,null,null,null,null,null,null,"",null,null,null,""]
[null,null,null,null,null,null,null,null,null,null,"",null,null,null,""]
[null,null,null,null,null,null,null,null,null,null,"",null,null,null,""]
[null,null,null,null,null,null,null,null,null,null,"",null,null,null,""]
[null,null,null,null,null,null,null,null,null,null,"",null,null,null,""]
[null,null,null,null,null,null,null,null,null,null,"",null,null,null,""]
[null,null,null,null,null,null,null,null,null,null,"",null,null,null,""]
[null,null,null,null,null,null,null,null,null,null,"",null,null,null,""]
[null,null,null,null,null,null,null,null,null,null,"",null,null,null,""]
[null,null,null,null,null,null,null,null,null,null,"",null,null,null,""]
[null,null,null,null,null,null,null,null,null,null,"",null,null,null,""]
[null,null,null,null,null,null,null,null,null,null,"",null,null,null,""]
[null,null,null,null,null,null,null,null,null,null,"",null,null,null,""]
[null,null,null,null,null,null,null,null,null,null,"",null,null,null,""]
[null,null,null,null,null,null,null,null,null,null,"",null,null,null,""]
[null,null,null,null,null,null,null,null,null,null,"",null,null,null,""]
[null,null,null,null,null,null,null,null,null,null,"",null,null,null,""]
[null,null,null,null,null,null,null,null,null,null,"",null,null,null,""]
[null,null,null,null,null,null,null,null,null,null,"",null,null,null,""]
[null,null,null,null,null,null,null,null,null,null,"",null,null,null,""]
[null,null,null,null,null,null,null,null,null,null,"",null,null,null,""]
[null,null,null,null,null,null,null,null,null,null,"",null,null,null,""]
[null,null,null,null,null,null,null,null,null,null,"",null,null,null,""]
[null,null,null,null,null,null,null,null,null,null,"",null,null,null,""]
[null,null,null,null,null,null,null,null,null,null,"",null,null,null,""]
[null,null,null,null,null,null,null,null,null,null,"",null,null,null,""]
[null,null,null,null,null,null,null,null,null,null,"",null,null,null,""]
[null,null,null,null,null,null,null,null,null,null,"",null,null,null,""]
[null,null,null,null,null,null,null,null,null,null,"",null,null,null,""]
[null,null,null,null,null,null,null,null,null,null,"",null,null,null,""]
[null,null,null,null,null,null,null,null,null,null,"",null,null,null,""]
[null,null,null,null,null,null,null,null,null,null,"",null,null,null,""]
[null,null,null,null,null,null,null,null,null,null,"",null,null,null,""]
[null,null,null,null,null,null,null,null,null,null,"",null,null,null,""]
[null,null,null,null,null,null,null,null,null,null,"",null,null,null,""]
[null,null,null,null,null,null,null,null,null,null,"",null,null,null,""]
[null,null,null,null,null,null,null,null,null,null,"",null,null,null,""]
[null,null,null,null,null,null,null,null,null,null,"",null,null,null,""]
[null,null,null,null,null,null,null,null,null,null,"",null,null,null,""]
[null,null,null,null,null,null,null,null,null,null,"",null,null,null,""]
[null,null,null,null,null,null,null,null,null,null,"",null,null,null,""]
[null,null,null,null,null,null,null,null,null,null,"",null,null,null,""]
[null,null,null,null,null,null,null,null,null,null,"",null,null,null,""]
[null,null,null,null,null,null,null,null,null,null,"",null,null,null,""]
[null,null,null,null,null,null,null,null,null,null,"",null,null,null,""]
[null,null,null,null,null,null,null,null,null,null,"",null,null,null,""]
[null,null,null,null,null,null,null,null,null,null,"",null,null,null,""]
[null,null,null,null,null,null,null,null,null,null,"",null,null,null,""]
[null,null,null,null,null,null,null,null,null,null,"",null,null,null,""]
[null,null,null,null,null,null,null,null,null,null,"",null,null,null,""]
[null,null,null,null,null,null,null,null,null,null,"",null,null,null,""]
[null,null,null,null,null,null,null,null,null,null,"",null,null,null,""]
[null,null,null,null,null,null,null,null,null,null,"",null,null,null,""]
[null,null,null,null,null,null,null,null,null,null,"",null,null,null,""]
[null,null,null,null,null,null,null,null,null,null,{"$f":"IF(OR(B712=\"\",G712=\"\",B712=\"-\",G712=\"-\"),\"\",G712*C712/I712)","v":""},null,null,null,""]
[null,null,null,null,null,null,null,null,null,null,"",null,null,null,""]
[null,null,null,null,null,null,null,null,null,null,"",null,null,null,""]
[null,null,null,null,null,null,null,null,null,null,"",null,null,null,{"$f":"IF(OR(M715=\"\",M715=\"-\"),\"\",0.35*10^M715)","v":""}]
[null,null,null,null,null,null,null,null,null,null,"",null,null,null,""]
[null,null,null,null,null,null,null,null,null,null,"",null,null,null,""]
[null,null,null,null,null,null,null,null,null,null,"",null,null,null,""]
[null,null,null,null,null,null,null,null,null,null,"",null,null,null,""]
[null,null,null,null,null,null,null,null,null,null,"",null,null,null,""]
[null,null,null,null,null,null,null,null,null,null,"",null,null,null,""]
[null,null,null,null,null,null,null,null,null,null,"",null,null,null,""]
[null,null,null,null,null,null,null,null,null,null,"",null,null,null,""]
[null,null,null,null,null,null,null,null,null,null,"",null,null,null,""]
[null,null,null,null,null,null,null,null,null,null,"",null,null,null,""]
[null,null,null,null,null,null,null,null,null,null,"",null,null,null,""]
[null,null,null,null,null,null,null,null,null,null,"",null,null,null,""]
[null,null,null,null,null,null,null,null,null,null,"",null,null,null,""]
[null,null,null,null,null,null,null,null,null,null,"",null,null,null,""]
[null,null,null,null,null,null,null,null,null,null,"",null,null,null,""]
[null,null,null,null,null,null,null,null,null,null,"",null,null,null,""]
[null,null,null,null,null,null,null,null,null,null,"",null,null,null,""]
[null,null,null,null,null,null,null,null,null,null,"",null,null,null,""]
[null,null,null,null,null,null,null,null,null,null,"",null,null,null,""]
[null,null,null,null,null,null,null,null,null,null,"",null,null,null,""]
[null,null,null,null,null,null,null,null,null,null,"",null,null,null,""]
[null,null,null,null,null,null,null,null,null,null,"",null,null,null,""]
[null,null,null,null,null,null,null,null,null,null,"",null,null,null,""]
[null,null,null,null,null,null,null,null,null,null,"",null,null,null,""]
[null,null,null,null,null,null,null,null,null,null,"",null,null,null,""]
[null,null,null,null,null,null,null,null,null,null,"",null,null,null,""]
[null,null,null,null,null,null,null,null,null,null,"",null,null,null,""]
[null,null,null,null,null,null,null,null,null,null,"",null,null,null,""]
[null,null,null,null,null,null,null,null,null,null,"",null,null,null,""]
[null,null,null,null,null,null,null,null,null,null,"",null,null,null,""]
[null,null,null,null,null,null,null,null,null,null,"",null,null,null,""]
[null,null,null,null,null,null,null,null,null,null,"",null,null,null,""]
[null,null,null,null,null,null,null,null,null,null,"",null,null,null,""]
[null,null,null,null,null,null,null,null,null,null,"",null,null,null,""]
[null,null,null,null,null,null,null,null,null,null,"",null,null,null,""]
[null,null,null,null,null,null,null,null,null,null,"",null,null,null,""]
[null,null,null,null,null,null,null,null,null,null,"",null,null,null,""]
[null,null,null,null,null,null,null,null,null,null,"",null,null,null,""]
[null,null,null,null,null,null,null,null,null,null,"",null,null,null,""]
[null,null,null,null,null,null,null,null,null,null,"",null,null,null,""]
[null,null,null,null,null,null,null,null,null,null,"",null,null,null,""]
[null,null,null,null,null,null,null,null,null,null,"",null,null,null,""]
[null,null,null,null,null,null,null,null,null,null,"",null,null,null,""]
[null,null,null,null,null,null,null,null,null,null,"",null,null,null,""]
[null,null,null,null,null,null,null,null,null,null,"",null,null,null,""]
[null,null,null,null,null,null,null,null,null,null,"",null,null,null,""]
[null,null,null,null,null,null,null,null,null,null,"",null,null,null,""]
[null,null,null,null,null,null,null,null,null,null,"",null,null,null,""]
[null,null,null,null,null,null,null,null,null,null,"",null,null,null,""]
[null,null,null,null,null,null,null,null,null,null,"",null,null,null,""]
[null,null,null,null,null,null,null,null,null,null,"",null,null,null,""]
[null,null,null,null,null,null,null,null,null,null,"",null,null,null,""]
[null,null,null,null,null,null,null,null,null,null,"",null,null,null,""]
[null,null,null,null,null,null,null,null,null,null,"",null,null,null,""]
[null,null,null,null,null,null,null,null,null,null,"",null,null,null,""]
[null,null,null,null,null,null,null,null,null,null,"",null,null,null,""]
[null,null,null,null,null,null,null,null,null,null,"",null,null,null,""]
[null,null,null,null,null,null,null,null,null,null,"",null,null,null,""]
[null,null,null,null,null,null,null,null,null,null,"",null,null,null,""]
[null,null,null,null,null,null,null,null,null,null,"",null,null,null,""]
[null,null,null,null,null,null,null,null,null,null,{"$f":"IF(OR(B776=\"\",G776=\"\",B776=\"-\",G776=\"-\"),\"\",G776*C776/I776)","v":""},null,null,null,""]
[null,null,null,null,null,null,null,null,null,null,"",null,null,null,""]
[null,null,null,null,null,null,null,null,null,null,"",null,null,null,""]
[null,null,null,null,null,null,null,null,null,null,"",null,null,null,{"$f":"IF(OR(M779=\"\",M779=\"-\"),\"\",0.35*10^M779)","v":""}]
[null,null,null,null,null,null,null,null,null,null,"",null,null,null,""]
[null,null,null,null,null,null,null,null,null,null,"",null,null,null,""]
[null,null,null,null,null,null,null,null,null,null,"",null,null,null,""]
[null,null,null,null,null,null,null,null,null,null,"",null,null,null,""]
[null,null,null,null,null,null,null,null,null,null,"",null,null,null,""]
[null,null,null,null,null,null,null,null,null,null,"",null,null,null,""]
[null,null,null,null,null,null,null,null,null,null,"",null,null,null,""]
[null,null,null,null,null,null,null,null,null,null,"",null,null,null,""]
[null,null,null,null,null,null,null,null,null,null,"",null,null,null,""]
[null,null,null,null,null,null,null,null,null,null,"",null,null,null,""]
[null,null,null,null,null,null,null,null,null,null,"",null,null,null,""]
[null,null,null,null,null,null,null,null,null,null,"",null,null,null,""]
[null,null,null,null,null,null,null,null,null,null,"",null,null,null,""]
[null,null,null,null,null,null,null,null,null,null,"",null,null,null,""]
[null,null,null,null,null,null,null,null,null,null,"",null,null,null,""]
[null,null,null,null,null,null,null,null,null,null,"",null,null,null,""]
[null,null,null,null,null,null,null,null,null,null,"",null,null,null,""]
[null,null,null,null,null,null,null,null,null,null,"",null,null,null,""]
[null,null,null,null,null,null,null,null,null,null,"",null,null,null,""]
[null,null,null,null,null,null,null,null,null,null,"",null,null,null,""]
[null,null,null,null,null,null,null,null,null,null,"",null,null,null,""]
[null,null,null,null,null,null,null,null,null,null,"",null,null,null,""]
[null,null,null,null,null,null,null,null,null,null,"",null,null,null,""]
[null,null,null,null,null,null,null,null,null,null,"",null,null,null,""]
[null,null,null,null,null,null,null,null,null,null,"",null,null,null,""]
[null,null,null,null,null,null,null,null,null,null,"",null,null,null,""]
[null,null,null,null,null,null,null,null,null,null,"",null,null,null,""]
[null,null,null,null,null,null,null,null,null,null,"",null,null,null,""]
[null,null,null,null,null,null,null,null,null,null,"",null,null,null,""]
[null,null,null,null,null,null,null,null,null,null,"",null,null,null,""]
[null,null,null,null,null,null,null,null,null,null,"",null,null,null,""]
[null,null,null,null,null,null,null,null,null,null,"",null,null,null,""]
[null,null,null,null,null,null,null,null,null,null,"",null,null,null,""]
[null,null,null,null,null,null,null,null,null,null,"",null,null,null,""]
[null,null,null,null,null,null,null,null,null,null,"",null,null,null,""]
[null,null,null,null,null,null,null,null,null,null,"",null,null,null,""]
[null,null,null,null,null,null,null,null,null,null,"",null,null,null,""]
[null,null,null,null,null,null,null,null,null,null,"",null,null,null,""]
[null,null,null,null,null,null,null,null,null,null,"",null,null,null,""]
[null,null,null,null,null,null,null,null,null,null,"",null,null,null,""]
[null,null,null,null,null,null,null,null,null,null,"",null,null,null,""]
[null,null,null,null,null,null,null,null,null,null,"",null,null,null,""]
[null,null,null,null,null,null,null,null,null,null,"",null,null,null,""]
[null,null,null,null,null,null,null,null,null,null,"",null,null,null,""]
[null,null,null,null,null,null,null,null,null,null,"",null,null,null,""]
[null,null,null,null,null,null,null,null,null,null,"",null,null,null,""]
[null,null,null,null,null,null,null,null,null,null,"",null,null,null,""]
[null,null,null,null,null,null,null,null,null,null,"",null,null,null,""]
[null,null,null,null,null,null,null,null,null,null,"",null,null,null,""]
[null,null,null,null,null,null,null,null,null,null,"",null,null,null,""]
[null,null,null,null,null,null,null,null,null,null,"",null,null,null,""]
[null,null,null,null,null,null,null,null,null,null,"",null,null,null,""]
[null,null,null,null,null,null,null,null,null,null,"",null,null,null,""]
[null,null,null,null,null,null,null,null,null,null,"",null,null,null,""]
[null,null,null,null,null,null,null,null,null,null,"",null,null,null,""]
[null,null,null,null,null,null,null,null,null,null,"",null,null,null,""]
[null,null,null,null,null,null,null,null,null,null,"",null,null,null,""]
[null,null,null,null,null,null,null,null,null,null,"",null,null,null,""]
[null,null,null,null,null,null,null,null,null,null,"",null,null,null,""]
[null,null,null,null,null,null,null,null,null,null,"",null,null,null,""]
[null,null,null,null,null,null,null,null,null,null,{"$f":"IF(OR(B840=\"\",G840=\"\",B840=\"-\",G840=\"-\"),\"\",G840*C840/I840)","v":""},null,null,null,""]
[null,null,null,null,null,null,null,null,null,null,"",null,null,null,""]
[null,null,null,null,null,null,null,null,null,null,"",null,null,null,""]
[null,null,null,null,null,null,null,null,null,null,"",null,null,null,{"$f":"IF(OR(M843=\"\",M843=\"-\"),\"\",0.35*10^M843)","v":""}]
[null,null,null,null,null,null,null,null,null,null,"",null,null,null,""]
[null,null,null,null,null,null,null,null,null,null,"",null,null,null,""]
[null,null,null,null,null,null,null,null,null,null,"",null,null,null,""]
[null,null,null,null,null,null,null,null,null,null,"",null,null,null,""]
[null,null,null,null,null,null,null,null,null,null,"",null,null,null,""]
[null,null,null,null,null,null,null,null,null,null,"",null,null,null,""]
[null,null,null,null,null,null,null,null,null,null,"",null,null,null,""]
[null,null,null,null,null,null,null,null,null,null,"",null,null,null,""]
[null,null,null,null,null,null,null,null,null,null,"",null,null,null,""]
[null,null,null,null,null,null,null,null,null,null,"",null,null,null,""]
[null,null,null,null,null,null,null,null,null,null,"",null,null,null,""]
[null,null,null,null,null,null,null,null,null,null,"",null,null,null,""]
[null,null,null,null,null,null,null,null,null,null,"",null,null,null,""]
[null,null,null,null,null,null,null,null,null,null,"",null,null,null,""]
[null,null,null,null,null,null,null,null,null,null,"",null,null,null,""]
[null,null,null,null,null,null,null,null,null,null,"",null,null,null,""]
[null,null,null,null,null,null,null,null,null,null,"",null,null,null,""]
[null,null,null,null,null,null,null,null,null,null,"",null,null,null,""]
[null,null,null,null,null,null,null,null,null,null,"",null,null,null,""]
[null,null,null,null,null,null,null,null,null,null,"",null,null,null,""]
[null,null,null,null,null,null,null,null,null,null,"",null,null,null,""]
[null,null,null,null,null,null,null,null,null,null,"",null,null,null,""]
[null,null,null,null,null,null,null,null,null,null,"",null,null,null,""]
[null,null,null,null,null,null,null,null,null,null,"",null,null,null,""]
[null,null,null,null,null,null,null,null,null,null,"",null,null,null,""]
[null,null,null,null,null,null,null,null,null,null,"",null,null,null,""]
[null,null,null,null,null,null,null,null,null,null,"",null,null,null,""]
[null,null,null,null,null,null,null,null,null,null,"",null,null,null,""]
[null,null,null,null,null,null,null,null,null,null,"",null,null,null,""]
[null,null,null,null,null,null,null,null,null,null,"",null,null,null,""]
[null,null,null,null,null,null,null,null,null,null,"",null,null,null,""]
[null,null,null,null,null,null,null,null,null,null,"",null,null,null,""]
[null,null,null,null,null,null,null,null,null,null,"",null,null,null,""]
[null,null,null,null,null,null,null,null,null,null,"",null,null,null,""]
[null,null,null,null,null,null,null,null,null,null,"",null,null,null,""]
[null,null,null,null,null,null,null,null,null,null,"",null,null,null,""]
[null,null,null,null,null,null,null,null,null,null,"",null,null,null,""]
[null,null,null,null,null,null,null,null,null,null,"",null,null,null,""]
[null,null,null,null,null,null,null,null,null,null,"",null,null,null,""]
[null,null,null,null,null,null,null,null,null,null,"",null,null,null,""]
[null,null,null,null,null,null,null,null,null,null,"",null,null,null,""]
[null,null,null,null,null,null,null,null,null,null,"",null,null,null,""]
[null,null,null,null,null,null,null,null,null,null,"",null,null,null,""]
[null,null,null,null,null,null,null,null,null,null,"",null,null,null,""]
[null,null,null,null,null,null,null,null,null,null,"",null,null,null,""]
[null,null,null,null,null,null,null,null,null,null,"",null,null,null,""]
[null,null,null,null,null,null,null,null,null,null,"",null,null,null,""]
[null,null,null,null,null,null,null,null,null,null,"",null,null,null,""]
[null,null,null,null,null,null,null,null,null,null,"",null,null,null,""]
[null,null,null,null,null,null,null,null,null,null,"",null,null,null,""]
[null,null,null,null,null,null,null,null,null,null,"",null,null,null,""]
[null,null,null,null,null,null,null,null,null,null,"",null,null,null,""]
[null,null,null,null,null,null,null,null,null,null,"",null,null,null,""]
[null,null,null,null,null,null,null,null,null,null,"",null,null,null,""]
[null,null,null,null,null,null,null,null,null,null,"",null,null,null,""]
[null,null,null,null,null,null,null,null,null,null,"",null,null,null,""]
[null,null,null,null,null,null,null,null,null,null,"",null,null,null,""]
[null,null,null,null,null,null,null,null,null,null,"",null,null,null,""]
[null,null,null,null,null,null,null,null,null,null,"",null,null,null,""]
[null,null,null,null,null,null,null,null,null,null,"",null,null,null,""]
[null,null,null,null,null,null,null,null,null,null,{"$f":"IF(OR(B904=\"\",G904=\"\",B904=\"-\",G904=\"-\"),\"\",G904*C904/I904)","v":""},null,null,null,""]
[null,null,null,null,null,null,null,null,null,null,"",null,null,null,""]
[null,null,null,null,null,null,null,null,null,null,"",null,null,null,""]
[null,null,null,null,null,null,null,null,null,null,"",null,null,null,{"$f":"IF(OR(M907=\"\",M907=\"-\"),\"\",0.35*10^M907)","v":""}]
[null,null,null,null,null,null,null,null,null,null,"",null,null,null,""]
[null,null,null,null,null,null,null,null,null,null,"",null,null,null,""]
[null,null,null,null,null,null,null,null,null,null,"",null,null,null,""]
[null,null,null,null,null,null,null,null,null,null,"",null,null,null,""]
[null,null,null,null,null,null,null,null,null,null,"",null,null,null,""]
[null,null,null,null,null,null,null,null,null,null,"",null,null,null,""]
[null,null,null,null,null,null,null,null,null,null,"",null,null,null,""]
[null,null,null,null,null,null,null,null,null,null,"",null,null,null,""]
[null,null,null,null,null,null,null,null,null,null,"",null,null,null,""]
[null,null,null,null,null,null,null,null,null,null,"",null,null,null,""]
[null,null,null,null,null,null,null,null,null,null,"",null,null,null,""]
[null,null,null,null,null,null,null,null,null,null,"",null,null,null,""]
[null,null,null,null,null,null,null,null,null,null,"",null,null,null,""]
[null,null,null,null,null,null,null,null,null,null,"",null,null,null,""]
[null,null,null,null,null,null,null,null,null,null,"",null,null,null,""]
[null,null,null,null,null,null,null,null,null,null,"",null,null,null,""]
[null,null,null,null,null,null,null,null,null,null,"",null,null,null,""]
[null,null,null,null,null,null,null,null,null,null,"",null,null,null,""]
[null,null,null,null,null,null,null,null,null,null,"",null,null,null,""]
[null,null,null,null,null,null,null,null,null,null,"",null,null,null,""]
[null,null,null,null,null,null,null,null,null,null,"",null,null,null,""]
[null,null,null,null,null,null,null,null,null,null,"",null,null,null,""]
[null,null,null,null,null,null,null,null,null,null,"",null,null,null,""]
[null,null,null,null,null,null,null,null,null,null,"",null,null,null,""]
[null,null,null,null,null,null,null,null,null,null,"",null,null,null,""]
[null,null,null,null,null,null,null,null,null,null,"",null,null,null,""]
[null,null,null,null,null,null,null,null,null,null,"",null,null,null,""]
[null,null,null,null,null,null,null,null,null,null,"",null,null,null,""]
[null,null,null,null,null,null,null,null,null,null,"",null,null,null,""]
[null,null,null,null,null,null,null,null,null,null,"",null,null,null,""]
[null,null,null,null,null,null,null,null,null,null,"",null,null,null,""]
[null,null,null,null,null,null,null,null,null,null,"",null,null,null,""]
[null,null,null,null,null,null,null,null,null,null,"",null,null,null,""]
[null,null,null,null,null,null,null,null,null,null,"",null,null,null,""]
[null,null,null,null,null,null,null,null,null,null,"",null,null,null,""]
[null,null,null,null,null,null,null,null,null,null,"",null,null,null,""]
[null,null,null,null,null,null,null,null,null,null,"",null,null,null,""]
[null,null,null,null,null,null,null,null,null,null,"",null,null,null,""]
[null,null,null,null,null,null,null,null,null,null,"",null,null,null,""]
[null,null,null,null,null,null,null,null,null,null,"",null,null,null,""]
[null,null,null,null,null,null,null,null,null,null,"",null,null,null,""]
[null,null,null,null,null,null,null,null,null,null,"",null,null,null,""]
[null,null,null,null,null,null,null,null,null,null,"",null,null,null,""]
[null,null,null,null,null,null,null,null,null,null,"",null,null,null,""]
[null,null,null,null,null,null,null,null,null,null,"",null,null,null,""]
[null,null,null,null,null,null,null,null,null,null,"",null,null,null,""]
[null,null,null,null,null,null,null,null,null,null,"",null,null,null,""]
[null,null,null,null,null,null,null,null,null,null,"",null,null,null,""]
[null,null,null,null,null,null,null,null,null,null,"",null,null,null,""]
[null,null,null,null,null,null,null,null,null,null,"",null,null,null,""]
[null,null,null,null,null,null,null,null,null,null,"",null,null,null,""]
[null,null,null,null,null,null,null,null,null,null,"",null,null,null,""]
[null,null,null,null,null,null,null,null,null,null,"",null,null,null,""]
[null,null,null,null,null,null,null,null,null,null,"",null,null,null,""]
[null,null,null,null,null,null,null,null,null,null,"",null,null,null,""]
[null,null,null,null,null,null,null,null,null,null,"",null,null,null,""]
[null,null,null,null,null,null,null,null,null,null,"",null,null,null,""]
[null,null,null,null,null,null,null,null,null,null,"",null,null,null,""]
[null,null,null,null,null,null,null,null,null,null,"",null,null,null,""]
[null,null,null,null,null,null,null,null,null,null,"",null,null,null,""]
[null,null,null,null,null,null,null,null,null,null,{"$f":"IF(OR(B968=\"\",G968=\"\",B968=\"-\",G968=\"-\"),\"\",G968*C968/I968)","v":""},null,null,null,""]
[null,null,null,null,null,null,null,null,null,null,"",null,null,null,""]
[null,null,null,null,null,null,null,null,null,null,"",null,null,null,""]
[null,null,null,null,null,null,null,null,null,null,"",null,null,null,{"$f":"IF(OR(M971=\"\",M971=\"-\"),\"\",0.35*10^M971)","v":""}]
[null,null,null,null,null,null,null,null,null,null,"",null,null,null,""]
[null,null,null,null,null,null,null,null,null,null,"",null,null,null,""]
[null,null,null,null,null,null,null,null,null,null,"",null,null,null,""]
[null,null,null,null,null,null,null,null,null,null,"",null,null,null,""]
[null,null,null,null,null,null,null,null,null,null,"",null,null,null,""]
[null,null,null,null,null,null,null,null,null,null,"",null,null,null,""]
[null,null,null,null,null,null,null,null,null,null,"",null,null,null,""]
[null,null,null,null,null,null,null,null,null,null,"",null,null,null,""]
[null,null,null,null,null,null,null,null,null,null,"",null,null,null,""]
[null,null,null,null,null,null,null,null,null,null,"",null,null,null,""]
[null,null,null,null,null,null,null,null,null,null,"",null,null,null,""]
[null,null,null,null,null,null,null,null,null,null,"",null,null,null,""]
[null,null,null,null,null,null,null,null,null,null,"",null,null,null,""]
[null,null,null,null,null,null,null,null,null,null,"",null,null,null,""]
[null,null,null,null,null,null,null,null,null,null,"",null,null,null,""]
[null,null,null,null,null,null,null,null,null,null,"",null,null,null,""]
[null,null,null,null,null,null,null,null,null,null,"",null,null,null,""]
[null,null,null,null,null,null,null,null,null,null,"",null,null,null,""]
[null,null,null,null,null,null,null,null,null,null,"",null,null,null,""]
[null,null,null,null,null,null,null,null,null,null,"",null,null,null,""]
[null,null,null,null,null,null,null,null,null,null,"",null,null,null,""]
[null,null,null,null,null,null,null,null,null,null,"",null,null,null,""]
[null,null,null,null,null,null,null,null,null,null,"",null,null,null,""]
[null,null,null,null,null,null,null,null,null,null,"",null,null,null,""]
[null,null,null,null,null,null,null,null,null,null,"",null,null,null,""]
[null,null,null,null,null,null,null,null,null,null,"",null,null,null,""]
[null,null,null,null,null,null,null,null,null,null,"",null,null,null,""]
[null,null,null,null,null,null,null,null,null,null,"",null,null,null,""]
[null,null,null,null,null,null,null,null,null,null,"",null,null,null,""]
[null,null,null,null,null,null,null,null,null,null,"",null,null,null,""]
[null,null,null,null,null,null,null,null,null,null,"",null,null,null,""]
[null,null,null,null,null,null,null,null,null,null,"",null,null,null,""]
[null,null,null,null,null,null,null,null,null,null,"",null,null,null,""]
[null,null,null,null,null,null,null,null,null,null,"",null,null,null,""]
[null,null,null,null,null,null,null,null,null,null,"",null,null,null,""]
[null,null,null,null,null,null,null,null,null,null,"",null,null,null,""]
[null,null,null,null,null,null,null,null,null,null,"",null,null,null,""]
[null,null,null,null,null,null,null,null,null,null,"",null,null,null,""]
[null,null,null,null,null,null,null,null,null,null,"",null,null,null,""]
[null,null,null,null,null,null,null,null,null,null,"",null,null,null,""]
[null,null,null,null,null,null,null,null,null,null,"",null,null,null,""]
[null,null,null,null,null,null,null,null,null,null,"",null,null,null,""]
[null,null,null,null,null,null,null,null,null,null,"",null,null,null,""]
[null,null,null,null,null,null,null,null,null,null,"",null,null,null,""]
[null,null,null,null,null,null,null,null,null,null,"",null,null,null,""]
[null,null,null,null,null,null,null,null,null,null,"",null,null,null,""]
[null,null,null,null,null,null,null,null,null,null,"",null,null,null,""]
[null,null,null,null,null,null,null,null,null,null,"",null,null,null,""]
[null,null,null,null,null,null,null,null,null,null,"",null,null,null,""]
[null,null,null,null,null,null,null,null,null,null,"",null,null,null,""]
[null,null,null,null,null,null,null,null,null,null,"",null,null,null,""]
[null,null,null,null,null,null,null,null,null,null,"",null,null,null,""]
[null,null,null,null,null,null,null,null,null,null,"",null,null,null,""]
[null,null,null,null,null,null,null,null,null,null,"",null,null,null,""]
[null,null,null,null,null,null,null,null,null,null,"",null,null,null,""]
[null,null,null,null,null,null,null,null,null,null,"",null,null,null,""]
[null,null,null,null,null,null,null,null,null,null,"",null,null,null,""]
[null,null,null,null,null,null,null,null,null,null,"",null,null,null,""]
[null,null,null,null,null,null,null,null,null,null,"",null,null,null,""]
[null,null,null,null,null,null,null,null,null,null,"",null,null,null,""]
[null,null,null,null,null,null,null,null,null,null,{"$f":"IF(OR(B1032=\"\",G1032=\"\",B1032=\"-\",G1032=\"-\"),\"\",G1032*C1032/I1032)","v":""},null,null,null,""]
[null,null,null,null,null,null,null,null,null,null,"",null,null,null,""]
[null,null,null,null,null,null,null,null,null,null,"",null,null,null,""]
[null,null,null,null,null,null,null,null,null,null,"",null,null,null,{"$f":"IF(OR(M1035=\"\",M1035=\"-\"),\"\",0.35*10^M1035)","v":""}]
[null,null,null,null,null,null,null,null,null,null,"",null,null,null,""]
[null,null,null,null,null,null,null,null,null,null,"",null,null,null,""]
[null,null,null,null,null,null,null,null,null,null,"",null,null,null,""]
[null,null,null,null,null,null,null,null,null,null,"",null,null,null,""]
[null,null,null,null,null,null,null,null,null,null,"",null,null,null,""]
[null,null,null,null,null,null,null,null,null,null,"",null,null,null,""]
[null,null,null,null,null,null,null,null,null,null,"",null,null,null,""]
[null,null,null,null,null,null,null,null,null,null,"",null,null,null,""]
[null,null,null,null,null,null,null,null,null,null,"",null,null,null,""]
[null,null,null,null,null,null,null,null,null,null,"",null,null,null,""]
[null,null,null,null,null,null,null,null,null,null,"",null,null,null,""]
[null,null,null,null,null,null,null,null,null,null,"",null,null,null,""]
[null,null,null,null,null,null,null,null,null,null,"",null,null,null,""]
[null,null,null,null,null,null,null,null,null,null,"",null,null,null,""]
[null,null,null,null,null,null,null,null,null,null,"",null,null,null,""]
[null,null,null,null,null,null,null,null,null,null,"",null,null,null,""]
[null,null,null,null,null,null,null,null,null,null,"",null,null,null,""]
[null,null,null,null,null,null,null,null,null,null,"",null,null,null,""]
[null,null,null,null,null,null,null,null,null,null,"",null,null,null,""]
[null,null,null,null,null,null,null,null,null,null,"",null,null,null,""]
[null,null,null,null,null,null,null,null,null,null,"",null,null,null,""]
[null,null,null,null,null,null,null,null,null,null,"",null,null,null,""]
[null,null,null,null,null,null,null,null,null,null,"",null,null,null,""]
[null,null,null,null,null,null,null,null,null,null,"",null,null,null,""]
[null,null,null,null,null,null,null,null,null,null,"",null,null,null,""]
[null,null,null,null,null,null,null,null,null,null,"",null,null,null,""]
[null,null,null,null,null,null,null,null,null,null,"",null,null,null,""]
[null,null,null,null,null,null,null,null,null,null,"",null,null,null,""]
[null,null,null,null,null,null,null,null,null,null,"",null,null,null,""]
[null,null,null,null,null,null,null,null,null,null,"",null,null,null,""]
[null,null,null,null,null,null,null,null,null,null,"",null,null,null,""]
[null,null,null,null,null,null,null,null,null,null,"",null,null,null,""]
[null,null,null,null,null,null,null,null,null,null,"",null,null,null,""]
[null,null,null,null,null,null,null,null,null,null,"",null,null,null,""]
[null,null,null,null,null,null,null,null,null,null,"",null,null,null,""]
[null,null,null,null,null,null,null,null,null,null,"",null,null,null,""]
[null,null,null,null,null,null,null,null,null,null,"",null,null,null,""]
[null,null,null,null,null,null,null,null,null,null,"",null,null,null,""]
[null,null,null,null,null,null,null,null,null,null,"",null,null,null,""]
[null,null,null,null,null,null,null,null,null,null,"",null,null,null,""]
[null,null,null,null,null,null,null,null,null,null,"",null,null,null,""]
[null,null,null,null,null,null,null,null,null,null,"",null,null,null,""]
[null,null,null,null,null,null,null,null,null,null,"",null,null,null,""]
[null,null,null,null,null,null,null,null,null,null,"",null,null,null,""]
[null,null,null,null,null,null,null,null,null,null,"",null,null,null,""]
[null,null,null,null,null,null,null,null,null,null,"",null,null,null,""]
[null,null,null,null,null,null,null,null,null,null,"",null,null,null,""]
[null,null,null,null,null,null,null,null,null,null,"",null,null,null,""]
[null,null,null,null,null,null,null,null,null,null,"",null,null,null,""]
[null,null,null,null,null,null,null,null,null,null,"",null,null,null,""]
[null,null,null,null,null,null,null,null,null,null,"",null,null,null,""]
[null,null,null,null,null,null,null,null,null,null,"",null,null,null,""]
[null,null,null,null,null,null,null,null,null,null,"",null,null,null,""]
[null,null,null,null,null,null,null,null,null,null,"",null,null,null,""]
[null,null,null,null,null,null,null,null,null,null,"",null,null,null,""]
[null,null,null,null,null,null,null,null,null,null,"",null,null,null,""]
[null,null,null,null,null,null,null,null,null,null,"",null,null,null,""]
[null,null,null,null,null,null,null,null,null,null,"",null,null,null,""]
[null,null,null,null,null,null,null,null,null,null,"",null,null,null,""]
[null,null,null,null,null,null,null,null,null,null,"",null,null,null,""]
[null,null,null,null,null,null,null,null,null,null,{"$f":"IF(OR(B1096=\"\",G1096=\"\",B1096=\"-\",G1096=\"-\"),\"\",G1096*C1096/I1096)","v":""},null,null,null,""]
[null,null,null,null,null,null,null,null,null,null,"",null,null,null,""]
[null,null,null,null,null,null,null,null,null,null,"",null,null,null,""]
[null,null,null,null,null,null,null,null,null,null,"",null,null,null,{"$f":"IF(OR(M1099=\"\",M1099=\"-\"),\"\",0.35*10^M1099)","v":""}]
[null,null,null,null,null,null,null,null,null,null,"",null,null,null,""]
[null,null,null,null,null,null,null,null,null,null,"",null,null,null,""]
[null,null,null,null,null,null,null,null,null,null,"",null,null,null,""]
[null,null,null,null,null,null,null,null,null,null,"",null,null,null,""]
[null,null,null,null,null,null,null,null,null,null,"",null,null,null,""]
[null,null,null,null,null,null,null,null,null,null,"",null,null,null,""]
[null,null,null,null,null,null,null,null,null,null,"",null,null,null,""]
[null,null,null,null,null,null,null,null,null,null,"",null,null,null,""]
[null,null,null,null,null,null,null,null,null,null,"",null,null,null,""]
[null,null,null,null,null,null,null,null,null,null,"",null,null,null,""]
[null,null,null,null,null,null,null,null,null,null,"",null,null,null,""]
[null,null,null,null,null,null,null,null,null,null,"",null,null,null,""]
[null,null,null,null,null,null,null,null,null,null,"",null,null,null,""]
[null,null,null,null,null,null,null,null,null,null,"",null,null,null,""]
[null,null,null,null,null,null,null,null,null,null,"",null,null,null,""]
[null,null,null,null,null,null,null,null,null,null,"",null,null,null,""]
[null,null,null,null,null,null,null,null,null,null,"",null,null,null,""]
[null,null,null,null,null,null,null,null,null,null,"",null,null,null,""]
[null,null,null,null,null,null,null,null,null,null,"",null,null,null,""]
[null,null,null,null,null,null,null,null,null,null,"",null,null,null,""]
[null,null,null,null,null,null,null,null,null,null,"",null,null,null,""]
[null,null,null,null,null,null,null,null,null,null,"",null,null,null,""]
[null,null,null,null,null,null,null,null,null,null,"",null,null,null,""]
[null,null,null,null,null,null,null,null,null,null,"",null,null,null,""]
[null,null,null,null,null,null,null,null,null,null,"",null,null,null,""]
[null,null,null,null,null,null,null,null,null,null,"",null,null,null,""]
[null,null,null,null,null,null,null,null,null,null,"",null,null,null,""]
[null,null,null,null,null,null,null,null,null,null,"",null,null,null,""]
[null,null,null,null,null,null,null,null,null,null,"",null,null,null,""]
[null,null,null,null,null,null,null,null,null,null,"",null,null,null,""]
[null,null,null,null,null,null,null,null,null,null,"",null,null,null,""]
[null,null,null,null,null,null,null,null,null,null,"",null,null,null,""]
[null,null,null,null,null,null,null,null,null,null,"",null,null,null,""]
[null,null,null,null,null,null,null,null,null,null,"",null,null,null,""]
[null,null,null,null,null,null,null,null,null,null,"",null,null,null,""]
[null,null,null,null,null,null,null,null,null,null,"",null,null,null,""]
[null,null,null,null,null,null,null,null,null,null,"",null,null,null,""]
[null,null,null,null,null,null,null,null,null,null,"",null,null,null,""]
[null,null,null,null,null,null,null,null,null,null,"",null,null,null,""]
[null,null,null,null,null,null,null,null,null,null,"",null,null,null,""]
[null,null,null,null,null,null,null,null,null,null,"",null,null,null,""]
[null,null,null,null,null,null,null,null,null,null,"",null,null,null,""]
[null,null,null,null,null,null,null,null,null,null,"",null,null,null,""]
[null,null,null,null,null,null,null,null,null,null,"",null,null,null,""]
[null,null,null,null,null,null,null,null,null,null,"",null,null,null,""]
[null,null,null,null,null,null,null,null,null,null,"",null,null,null,""]
[null,null,null,null,null,null,null,null,null,null,"",null,null,null,""]
[null,null,null,null,null,null,null,null,null,null,"",null,null,null,""]
[null,null,null,null,null,null,null,null,null,null,"",null,null,null,""]
[null,null,null,null,null,null,null,null,null,null,"",null,null,null,""]
[null,null,null,null,null,null,null,null,null,null,"",null,null,null,""]
[null,null,null,null,null,null,null,null,null,null,"",null,null,null,""]
[null,null,null,null,null,null,null,null,null,null,"",null,null,null,""]
[null,null,null,null,null,null,null,null,null,null,"",null,null,null,""]
[null,null,null,null,null,null,null,null,null,null,"",null,null,null,""]
[null,null,null,null,null,null,null,null,null,null,"",null,null,null,""]
[null,null,null,null,null,null,null,null,null,null,"",null,null,null,""]
[null,null,null,null,null,null,null,null,null,null,"",null,null,null,""]
[null,null,null,null,null,null,null,null,null,null,"",null,null,null,""]
[null,null,null,null,null,null,null,null,null,null,"",null,null,null,""]
[null,null,null,null,null,null,null,null,null,null,{"$f":"IF(OR(B1160=\"\",G1160=\"\",B1160=\"-\",G1160=\"-\"),\"\",G1160*C1160/I1160)","v":""},null,null,null,""]
[null,null,null,null,null,null,null,null,null,null,"",null,null,null,""]
[null,null,null,null,null,null,null,null,null,null,"",null,null,null,""]
[null,null,null,null,null,null,null,null,null,null,"",null,null,null,{"$f":"IF(OR(M1163=\"\",M1163=\"-\"),\"\",0.35*10^M1163)","v":""}]
[null,null,null,null,null,null,null,null,null,null,"",null,null,null,""]
[null,null,null,null,null,null,null,null,null,null,"",null,null,null,""]
[null,null,null,null,null,null,null,null,null,null,"",null,null,null,""]
[null,null,null,null,null,null,null,null,null,null,"",null,null,null,""]
[null,null,null,null,null,null,null,null,null,null,"",null,null,null,""]
[null,null,null,null,null,null,null,null,null,null,"",null,null,null,""]
[null,null,null,null,null,null,null,null,null,null,"",null,null,null,""]
[null,null,null,null,null,null,null,null,null,null,"",null,null,null,""]
[null,null,null,null,null,null,null,null,null,null,"",null,null,null,""]
[null,null,null,null,null,null,null,null,null,null,"",null,null,null,""]
[null,null,null,null,null,null,null,null,null,null,"",null,null,null,""]
[null,null,null,null,null,null,null,null,null,null,"",null,null,null,""]
[null,null,null,null,null,null,null,null,null,null,"",null,null,null,""]
[null,null,null,null,null,null,null,null,null,null,"",null,null,null,""]
[null,null,null,null,null,null,null,null,null,null,"",null,null,null,""]
[null,null,null,null,null,null,null,null,null,null,"",null,null,null,""]
[null,null,null,null,null,null,null,null,null,null,"",null,null,null,""]
[null,null,null,null,null,null,null,null,null,null,"",null,null,null,""]
[null,null,null,null,null,null,null,null,null,null,"",null,null,null,""]
[null,null,null,null,null,null,null,null,null,null,"",null,null,null,""]
[null,null,null,null,null,null,null,null,null,null,"",null,null,null,""]
[null,null,null,null,null,null,null,null,null,null,"",null,null,null,""]
[null,null,null,null,null,null,null,null,null,null,"",null,null,null,""]
[null,null,null,null,null,null,null,null,null,null,"",null,null,null,""]
[null,null,null,null,null,null,null,null,null,null,"",null,null,null,""]
[null,null,null,null,null,null,null,null,null,null,"",null,null,null,""]
[null,null,null,null,null,null,null,null,null,null,"",null,null,null,""]
[null,null,null,null,null,null,null,null,null,null,"",null,null,null,""]
[null,null,null,null,null,null,null,null,null,null,"",null,null,null,""]
[null,null,null,null,null,null,null,null,null,null,"",null,null,null,""]
[null,null,null,null,null,null,null,null,null,null,"",null,null,null,""]
[null,null,null,null,null,null,null,null,null,null,"",null,null,null,""]
[null,null,null,null,null,null,null,null,null,null,"",null,null,null,""]
[null,null,null,null,null,null,null,null,null,null,"",null,null,null,""]
[null,null,null,null,null,null,null,null,null,null,"",null,null,null,""]
[null,null,null,null,null,null,null,null,null,null,"",null,null,null,""]
[null,null,null,null,null,null,null,null,null,null,"",null,null,null,""]
[null,null,null,null,null,null,null,null,null,null,"",null,null,null,""]
[null,null,null,null,null,null,null,null,null,null,"",null,null,null,""]
[null,null,null,null,null,null,null,null,null,null,"",null,null,null,""]
[null,null,null,null,null,null,null,null,null,null,"",null,null,null,""]
[null,null,null,null,null,null,null,null,null,null,"",null,null,null,""]
[null,null,null,null,null,null,null,null,null,null,"",null,null,null,""]
[null,null,null,null,null,null,null,null,null,null,"",null,null,null,""]
[null,null,null,null,null,null,null,null,null,null,"",null,null,null,""]
[null,null,null,null,null,null,null,null,null,null,"",null,null,null,""]
[null,null,null,null,null,null,null,null,null,null,"",null,null,null,""]
[null,null,null,null,null,null,null,null,null,null,"",null,null,null,""]
[null,null,null,null,null,null,null,null,null,null,"",null,null,null,""]
[null,null,null,null,null,null,null,null,null,null,"",null,null,null,""]
[null,null,null,null,null,null,null,null,null,null,"",null,null,null,""]
[null,null,null,null,null,null,null,null,null,null,"",null,null,null,""]
[null,null,null,null,null,null,null,null,null,null,"",null,null,null,""]
[null,null,null,null,null,null,null,null,null,null,"",null,null,null,""]
[null,null,null,null,null,null,null,null,null,null,"",null,null,null,""]
[null,null,null,null,null,null,null,null,null,null,"",null,null,null,""]
[null,null,null,null,null,null,null,null,null,null,"",null,null,null,""]
[null,null,null,null,null,null,null,null,null,null,"",null,null,null,""]
[null,null,null,null,null,null,null,null,null,null,"",null,null,null,""]
[null,null,null,null,null,null,null,null,null,null,"",null,null,null,""]
[null,null,null,null,null,null,null,null,null,null,{"$f":"IF(OR(B1224=\"\",G1224=\"\",B1224=\"-\",G1224=\"-\"),\"\",G1224*C1224/I1224)","v":""},null,null,null,""]
[null,null,null,null,null,null,null,null,null,null,"",null,null,null,""]
[null,null,null,null,null,null,null,null,null,null,"",null,null,null,""]
[null,null,null,null,null,null,null,null,null,null,"",null,null,null,{"$f":"IF(OR(M1227=\"\",M1227=\"-\"),\"\",0.35*10^M1227)","v":""}]
[null,null,null,null,null,null,null,null,null,null,"",null,null,null,""]
[null,null,null,null,null,null,null,null,null,null,"",null,null,null,""]
[null,null,null,null,null,null,null,null,null,null,"",null,null,null,""]
[null,null,null,null,null,null,null,null,null,null,"",null,null,null,""]
[null,null,null,null,null,null,null,null,null,null,"",null,null,null,""]
[null,null,null,null,null,null,null,null,null,null,"",null,null,null,""]
[null,null,null,null,null,null,null,null,null,null,"",null,null,null,""]
[null,null,null,null,null,null,null,null,null,null,"",null,null,null,""]
[null,null,null,null,null,null,null,null,null,null,"",null,null,null,""]
[null,null,null,null,null,null,null,null,null,null,"",null,null,null,""]
[null,null,null,null,null,null,null,null,null,null,"",null,null,null,""]
[null,null,null,null,null,null,null,null,null,null,"",null,null,null,""]
[null,null,null,null,null,null,null,null,null,null,"",null,null,null,""]
[null,null,null,null,null,null,null,null,null,null,"",null,null,null,""]
[null,null,null,null,null,null,null,null,null,null,"",null,null,null,""]
[null,null,null,null,null,null,null,null,null,null,"",null,null,null,""]
[null,null,null,null,null,null,null,null,null,null,"",null,null,null,""]
[null,null,null,null,null,null,null,null,null,null,"",null,null,null,""]
[null,null,null,null,null,null,null,null,null,null,"",null,null,null,""]
[null,null,null,null,null,null,null,null,null,null,"",null,null,null,""]
[null,null,null,null,null,null,null,null,null,null,"",null,null,null,""]
[null,null,null,null,null,null,null,null,null,null,"",null,null,null,""]
[null,null,null,null,null,null,null,null,null,null,"",null,null,null,""]
[null,null,null,null,null,null,null,null,null,null,"",null,null,null,""]
[null,null,null,null,null,null,null,null,null,null,"",null,null,null,""]
[null,null,null,null,null,null,null,null,null,null,"",null,null,null,""]
[null,null,null,null,null,null,null,null,null,null,"",null,null,null,""]
[null,null,null,null,null,null,null,null,null,null,"",null,null,null,""]
[null,null,null,null,null,null,null,null,null,null,"",null,null,null,""]
[null,null,null,null,null,null,null,null,null,null,"",null,null,null,""]
[null,null,null,null,null,null,null,null,null,null,"",null,null,null,""]
[null,null,null,null,null,null,null,null,null,null,"",null,null,null,""]
[null,null,null,null,null,null,null,null,null,null,"",null,null,null,""]
[null,null,null,null,null,null,null,null,null,null,"",null,null,null,""]
[null,null,null,null,null,null,null,null,null,null,"",null,null,null,""]
[null,null,null,null,null,null,null,null,null,null,"",null,null,null,""]
[null,null,null,null,null,null,null,null,null,null,"",null,null,null,""]
[null,null,null,null,null,null,null,null,null,null,"",null,null,null,""]
[null,null,null,null,null,null,null,null,null,null,"",null,null,null,""]
[null,null,null,null,null,null,null,null,null,null,"",null,null,null,""]
[null,null,null,null,null,null,null,null,null,null,"",null,null,null,""]
[null,null,null,null,null,null,null,null,null,null,"",null,null,null,""]
[null,null,null,null,null,null,null,null,null,null,"",null,null,null,""]
[null,null,null,null,null,null,null,null,null,null,"",null,null,null,""]
[null,null,null,null,null,null,null,null,null,null,"",null,null,null,""]
[null,null,null,null,null,null,null,null,null,null,"",null,null,null,""]
[null,null,null,null,null,null,null,null,null,null,"",null,null,null,""]
[null,null,null,null,null,null,null,null,null,null,"",null,null,null,""]
[null,null,null,null,null,null,null,null,null,null,"",null,null,null,""]
[null,null,null,null,null,null,null,null,null,null,"",null,null,null,""]
[null,null,null,null,null,null,null,null,null,null,"",null,null,null,""]
[null,null,null,null,null,null,null,null,null,null,"",null,null,null,""]
[null,null,null,null,null,null,null,null,null,null,"",null,null,null,""]
[null,null,null,null,null,null,null,null,null,null,"",null,null,null,""]
[null,null,null,null,null,null,null,null,null,null,"",null,null,null,""]
[null,null,null,null,null,null,null,null,null,null,"",null,null,null,""]
[null,null,null,null,null,null,null,null,null,null,"",null,null,null,""]
[null,null,null,null,null,null,null,null,null,null,"",null,null,null,""]
[null,null,null,null,null,null,null,null,null,null,"",null,null,null,""]
[null,null,null,null,null,null,null,null,null,null,"",null,null,null,""]
[null,null,null,null,null,null,null,null,null,null,{"$f":"IF(OR(B1288=\"\",G1288=\"\",B1288=\"-\",G1288=\"-\"),\"\",G1288*C1288/I1288)","v":""},null,null,null,""]
[null,null,null,null,null,null,null,null,null,null,"",null,null,null,""]
[null,null,null,null,null,null,null,null,null,null,"",null,null,null,""]
[null,null,null,null,null,null,null,null,null,null,"",null,null,null,{"$f":"IF(OR(M1291=\"\",M1291=\"-\"),\"\",0.35*10^M1291)","v":""}]
[null,null,null,null,null,null,null,null,null,null,"",null,null,null,""]
[null,null,null,null,null,null,null,null,null,null,"",null,null,null,""]
[null,null,null,null,null,null,null,null,null,null,"",null,null,null,""]
[null,null,null,null,null,null,null,null,null,null,"",null,null,null,""]
[null,null,null,null,null,null,null,null,null,null,"",null,null,null,""]
[null,null,null,null,null,null,null,null,null,null,"",null,null,null,""]
[null,null,null,null,null,null,null,null,null,null,"",null,null,null,""]
[null,null,null,null,null,null,null,null,null,null,"",null,null,null,""]
[null,null,null,null,null,null,null,null,null,null,"",null,null,null,""]
[null,null,null,null,null,null,null,null,null,null,"",null,null,null,""]
[null,null,null,null,null,null,null,null,null,null,"",null,null,null,""]
[null,null,null,null,null,null,null,null,null,null,"",null,null,null,""]
[null,null,null,null,null,null,null,null,null,null,"",null,null,null,""]
[null,null,null,null,null,null,null,null,null,null,"",null,null,null,""]
[null,null,null,null,null,null,null,null,null,null,"",null,null,null,""]
[null,null,null,null,null,null,null,null,null,null,"",null,null,null,""]
[null,null,null,null,null,null,null,null,null,null,"",null,null,null,""]
[null,null,null,null,null,null,null,null,null,null,"",null,null,null,""]
[null,null,null,null,null,null,null,null,null,null,"",null,null,null,""]
[null,null,null,null,null,null,null,null,null,null,"",null,null,null,""]
[null,null,null,null,null,null,null,null,null,null,"",null,null,null,""]
[null,null,null,null,null,null,null,null,null,null,"",null,null,null,""]
[null,null,null,null,null,null,null,null,null,null,"",null,null,null,""]
[null,null,null,null,null,null,null,null,null,null,"",null,null,null,""]
[null,null,null,null,null,null,null,null,null,null,"",null,null,null,""]
[null,null,null,null,null,null,null,null,null,null,"",null,null,null,""]
[null,null,null,null,null,null,null,null,null,null,"",null,null,null,""]
[null,null,null,null,null,null,null,null,null,null,"",null,null,null,""]
[null,null,null,null,null,null,null,null,null,null,"",null,null,null,""]
[null,null,null,null,null,null,null,null,null,null,"",null,null,null,""]
[null,null,null,null,null,null,null,null,null,null,"",null,null,null,""]
[null,null,null,null,null,null,null,null,null,null,"",null,null,null,""]
[null,null,null,null,null,null,null,null,null,null,"",null,null,null,""]
[null,null,null,null,null,null,null,null,null,null,"",null,null,null,""]
[null,null,null,null,null,null,null,null,null,null,"",null,null,null,""]
[null,null,null,null,null,null,null,null,null,null,"",null,null,null,""]
[null,null,null,null,null,null,null,null,null,null,"",null,null,null,""]
[null,null,null,null,null,null,null,null,null,null,"",null,null,null,""]
[null,null,null,null,null,null,null,null,null,null,"",null,null,null,""]
[null,null,null,null,null,null,null,null,null,null,"",null,null,null,""]
[null,null,null,null,null,null,null,null,null,null,"",null,null,null,""]
[null,null,null,null,null,null,null,null,null,null,"",null,null,null,""]
[null,null,null,null,null,null,null,null,null,null,"",null,null,null,""]
[null,null,null,null,null,null,null,null,null,null,"",null,null,null,""]
[null,null,null,null,null,null,null,null,null,null,"",null,null,null,""]
[null,null,null,null,null,null,null,null,null,null,"",null,null,null,""]
[null,null,null,null,null,null,null,null,null,null,"",null,null,null,""]
[null,null,null,null,null,null,null,null,null,null,"",null,null,null,""]
[null,null,null,null,null,null,null,null,null,null,"",null,null,null,""]
[null,null,null,null,null,null,null,null,null,null,"",null,null,null,""]
[null,null,null,null,null,null,null,null,null,null,"",null,null,null,""]
[null,null,null,null,null,null,null,null,null,null,"",null,null,null,""]
[null,null,null,null,null,null,null,null,null,null,"",null,null,null,""]
[null,null,null,null,null,null,null,null,null,null,"",null,null,null,""]
[null,null,null,null,null,null,null,null,null,null,"",null,null,null,""]
[null,null,null,null,null,null,null,null,null,null,"",null,null,null,""]
[null,null,null,null,null,null,null,null,null,null,"",null,null,null,""]
[null,null,null,null,null,null,null,null,null,null,"",null,null,null,""]
[null,null,null,null,null,null,null,null,null,null,"",null,null,null,""]
[null,null,null,null,null,null,null,null,null,null,"",null,null,null,""]
[null,null,null,null,null,null,null,null,null,null,{"$f":"IF(OR(B1352=\"\",G1352=\"\",B1352=\"-\",G1352=\"-\"),\"\",G1352*C1352/I1352)","v":""},null,null,null,""]
[null,null,null,null,null,null,null,null,null,null,"",null,null,null,""]
[null,null,null,null,null,null,null,null,null,null,"",null,null,null,""]
[null,null,null,null,null,null,null,null,null,null,"",null,null,null,{"$f":"IF(OR(M1355=\"\",M1355=\"-\"),\"\",0.35*10^M1355)","v":""}]
[null,null,null,null,null,null,null,null,null,null,"",null,null,null,""]
[null,null,null,null,null,null,null,null,null,null,"",null,null,null,""]
[null,null,null,null,null,null,null,null,null,null,"",null,null,null,""]
[null,null,null,null,null,null,null,null,null,null,"",null,null,null,""]
[null,null,null,null,null,null,null,null,null,null,"",null,null,null,""]
[null,null,null,null,null,null,null,null,null,null,"",null,null,null,""]
[null,null,null,null,null,null,null,null,null,null,"",null,null,null,""]
[null,null,null,null,null,null,null,null,null,null,"",null,null,null,""]
[null,null,null,null,null,null,null,null,null,null,"",null,null,null,""]
[null,null,null,null,null,null,null,null,null,null,"",null,null,null,""]
[null,null,null,null,null,null,null,null,null,null,"",null,null,null,""]
[null,null,null,null,null,null,null,null,null,null,"",null,null,null,""]
[null,null,null,null,null,null,null,null,null,null,"",null,null,null,""]
[null,null,null,null,null,null,null,null,null,null,"",null,null,null,""]
[null,null,null,null,null,null,null,null,null,null,"",null,null,null,""]
[null,null,null,null,null,null,null,null,null,null,"",null,null,null,""]
[null,null,null,null,null,null,null,null,null,null,"",null,null,null,""]
[null,null,null,null,null,null,null,null,null,null,"",null,null,null,""]
[null,null,null,null,null,null,null,null,null,null,"",null,null,null,""]
[null,null,null,null,null,null,null,null,null,null,"",null,null,null,""]
[null,null,null,null,null,null,null,null,null,null,"",null,null,null,""]
[null,null,null,null,null,null,null,null,null,null,"",null,null,null,""]
[null,null,null,null,null,null,null,null,null,null,"",null,null,null,""]
[null,null,null,null,null,null,null,null,null,null,"",null,null,null,""]
[null,null,null,null,null,null,null,null,null,null,"",null,null,null,""]
[null,null,null,null,null,null,null,null,null,null,"",null,null,null,""]
[null,null,null,null,null,null,null,null,null,null,"",null,null,null,""]
[null,null,null,null,null,null,null,null,null,null,"",null,null,null,""]
[null,null,null,null,null,null,null,null,null,null,"",null,null,null,""]
[null,null,null,null,null,null,null,null,null,null,"",null,null,null,""]
[null,null,null,null,null,null,null,null,null,null,"",null,null,null,""]
[null,null,null,null,null,null,null,null,null,null,"",null,null,null,""]
[null,null,null,null,null,null,null,null,null,null,"",null,null,null,""]
[null,null,null,null,null,null,null,null,null,null,"",null,null,null,""]
[null,null,null,null,null,null,null,null,null,null,"",null,null,null,""]
[null,null,null,null,null,null,null,null,null,null,"",null,null,null,""]
[null,null,null,null,null,null,null,null,null,null,"",null,null,null,""]
[null,null,null,null,null,null,null,null,null,null,"",null,null,null,""]
[null,null,null,null,null,null,null,null,null,null,"",null,null,null,""]
[null,null,null,null,null,null,null,null,null,null,"",null,null,null,""]
[null,null,null,null,null,null,null,null,null,null,"",null,null,null,""]
[null,null,null,null,null,null,null,null,null,null,"",null,null,null,""]
[null,null,null,null,null,null,null,null,null,null,"",null,null,null,""]
[null,null,null,null,null,null,null,null,null,null,"",null,null,null,""]
[null,null,null,null,null,null,null,null,null,null,"",null,null,null,""]
[null,null,null,null,null,null,null,null,null,null,"",null,null,null,""]
[null,null,null,null,null,null,null,null,null,null,"",null,null,null,""]
[null,null,null,null,null,null,null,null,null,null,"",null,null,null,""]
[null,null,null,null,null,null,null,null,null,null,"",null,null,null,""]
[null,null,null,null,null,null,null,null,null,null,"",null,null,null,""]
[null,null,null,null,null,null,null,null,null,null,"",null,null,null,""]
[null,null,null,null,null,null,null,null,null,null,"",null,null,null,""]
[null,null,null,null,null,null,null,null,null,null,"",null,null,null,""]
[null,null,null,null,null,null,null,null,null,null,"",null,null,null,""]
[null,null,null,null,null,null,null,null,null,null,"",null,null,null,""]
[null,null,null,null,null,null,null,null,null,null,"",null,null,null,""]
[null,null,null,null,null,null,null,null,null,null,"",null,null,null,""]
[null,null,null,null,null,null,null,null,null,null,"",null,null,null,""]
[null,null,null,null,null,null,null,null,null,null,"",null,null,null,""]
[null,null,null,null,null,null,null,null,null,null,"",null,null,null,""]
[null,null,null,null,null,null,null,null,null,null,{"$f":"IF(OR(B1416=\"\",G1416=\"\",B1416=\"-\",G1416=\"-\"),\"\",G1416*C1416/I1416)","v":""},null,null,null,""]
[null,null,null,null,null,null,null,null,null,null,"",null,null,null,""]
[null,null,null,null,null,null,null,null,null,null,"",null,null,null,""]
[null,null,null,null,null,null,null,null,null,null,"",null,null,null,{"$f":"IF(OR(M1419=\"\",M1419=\"-\"),\"\",0.35*10^M1419)","v":""}]
[null,null,null,null,null,null,null,null,null,null,"",null,null,null,""]
[null,null,null,null,null,null,null,null,null,null,"",null,null,null,""]
[null,null,null,null,null,null,null,null,null,null,"",null,null,null,""]
[null,null,null,null,null,null,null,null,null,null,"",null,null,null,""]
[null,null,null,null,null,null,null,null,null,null,"",null,null,null,""]
[null,null,null,null,null,null,null,null,null,null,"",null,null,null,""]
[null,null,null,null,null,null,null,null,null,null,"",null,null,null,""]
[null,null,null,null,null,null,null,null,null,null,"",null,null,null,""]
[null,null,null,null,null,null,null,null,null,null,"",null,null,null,""]
[null,null,null,null,null,null,null,null,null,null,"",null,null,null,""]
[null,null,null,null,null,null,null,null,null,null,"",null,null,null,""]
[null,null,null,null,null,null,null,null,null,null,"",null,null,null,""]
[null,null,null,null,null,null,null,null,null,null,"",null,null,null,""]
[null,null,null,null,null,null,null,null,null,null,"",null,null,null,""]
[null,null,null,null,null,null,null,null,null,null,"",null,null,null,""]
[null,null,null,null,null,null,null,null,null,null,"",null,null,null,""]
[null,null,null,null,null,null,null,null,null,null,"",null,null,null,""]
[null,null,null,null,null,null,null,null,null,null,"",null,null,null,""]
[null,null,null,null,null,null,null,null,null,null,"",null,null,null,""]
[null,null,null,null,null,null,null,null,null,null,"",null,null,null,""]
[null,null,null,null,null,null,null,null,null,null,"",null,null,null,""]
[null,null,null,null,null,null,null,null,null,null,"",null,null,null,""]
[null,null,null,null,null,null,null,null,null,null,"",null,null,null,""]
[null,null,null,null,null,null,null,null,null,null,"",null,null,null,""]
[null,null,null,null,null,null,null,null,null,null,"",null,null,null,""]
[null,null,null,null,null,null,null,null,null,null,"",null,null,null,""]
[null,null,null,null,null,null,null,null,null,null,"",null,null,null,""]
[null,null,null,null,null,null,null,null,null,null,"",null,null,null,""]
[null,null,null,null,null,null,null,null,null,null,"",null,null,null,""]
[null,null,null,null,null,null,null,null,null,null,"",null,null,null,""]
[null,null,null,null,null,null,null,null,null,null,"",null,null,null,""]
[null,null,null,null,null,null,null,null,null,null,"",null,null,null,""]
[null,null,null,null,null,null,null,null,null,null,"",null,null,null,""]
[null,null,null,null,null,null,null,null,null,null,"",null,null,null,""]
[null,null,null,null,null,null,null,null,null,null,"",null,null,null,""]
[null,null,null,null,null,null,null,null,null,null,"",null,null,null,""]
[null,null,null,null,null,null,null,null,null,null,"",null,null,null,""]
[null,null,null,null,null,null,null,null,null,null,"",null,null,null,""]
[null,null,null,null,null,null,null,null,null,null,"",null,null,null,""]
[null,null,null,null,null,null,null,null,null,null,"",null,null,null,""]
[null,null,null,null,null,null,null,null,null,null,"",null,null,null,""]
[null,null,null,null,null,null,null,null,null,null,"",null,null,null,""]
[null,null,null,null,null,null,null,null,null,null,"",null,null,null,""]
[null,null,null,null,null,null,null,null,null,null,"",null,null,null,""]
[null,null,null,null,null,null,null,null,null,null,"",null,null,null,""]
[null,null,null,null,null,null,null,null,null,null,"",null,null,null,""]
[null,null,null,null,null,null,null,null,null,null,"",null,null,null,""]
[null,null,null,null,null,null,null,null,null,null,"",null,null,null,""]
[null,null,null,null,null,null,null,null,null,null,"",null,null,null,""]
[null,null,null,null,null,null,null,null,null,null,"",null,null,null,""]
[null,null,null,null,null,null,null,null,null,null,"",null,null,null,""]
[null,null,null,null,null,null,null,null,null,null,"",null,null,null,""]
[null,null,null,null,null,null,null,null,null,null,"",null,null,null,""]
[null,null,null,null,null,null,null,null,null,null,"",null,null,null,""]
[null,null,null,null,null,null,null,null,null,null,"",null,null,null,""]
[null,null,null,null,null,null,null,null,null,null,"",null,null,null,""]
[null,null,null,null,null,null,null,null,null,null,"",null,null,null,""]
[null,null,null,null,null,null,null,null,null,null,"",null,null,null,""]
[null,null,null,null,null,null,null,null,null,null,"",null,null,null,""]
[null,null,null,null,null,null,null,null,null,null,"",null,null,null,""]
[null,null,null,null,null,null,null,null,null,null,{"$f":"IF(OR(B1480=\"\",G1480=\"\",B1480=\"-\",G1480=\"-\"),\"\",G1480*C1480/I1480)","v":""},null,null,null,""]
[null,null,null,null,null,null,null,null,null,null,"",null,null,null,""]
[null,null,null,null,null,null,null,null,null,null,"",null,null,null,""]
[null,null,null,null,null,null,null,null,null,null,"",null,null,null,{"$f":"IF(OR(M1483=\"\",M1483=\"-\"),\"\",0.35*10^M1483)","v":""}]
[null,null,null,null,null,null,null,null,null,null,"",null,null,null,""]
[null,null,null,null,null,null,null,null,null,null,"",null,null,null,""]
[null,null,null,null,null,null,null,null,null,null,"",null,null,null,""]
[null,null,null,null,null,null,null,null,null,null,"",null,null,null,""]
[null,null,null,null,null,null,null,null,null,null,"",null,null,null,""]
[null,null,null,null,null,null,null,null,null,null,"",null,null,null,""]
[null,null,null,null,null,null,null,null,null,null,"",null,null,null,""]
[null,null,null,null,null,null,null,null,null,null,"",null,null,null,""]
[null,null,null,null,null,null,null,null,null,null,"",null,null,null,""]
[null,null,null,null,null,null,null,null,null,null,"",null,null,null,""]
[null,null,null,null,null,null,null,null,null,null,"",null,null,null,""]
[null,null,null,null,null,null,null,null,null,null,"",null,null,null,""]
[null,null,null,null,null,null,null,null,null,null,"",null,null,null,""]
[null,null,null,null,null,null,null,null,null,null,"",null,null,null,""]
[null,null,null,null,null,null,null,null,null,null,"",null,null,null,""]
[null,null,null,null,null,null,null,null,null,null,"",null,null,null,""]
[null,null,null,null,null,null,null,null,null,null,"",null,null,null,""]
[null,null,null,null,null,null,null,null,null,null,"",null,null,null,""]
[null,null,null,null,null,null,null,null,null,null,"",null,null,null,""]
[null,null,null,null,null,null,null,null,null,null,"",null,null,null,""]
[null,null,null,null,null,null,null,null,null,null,"",null,null,null,""]
[null,null,null,null,null,null,null,null,null,null,"",null,null,null,""]
[null,null,null,null,null,null,null,null,null,null,"",null,null,null,""]
[null,null,null,null,null,null,null,null,null,null,"",null,null,null,""]
[null,null,null,null,null,null,null,null,null,null,"",null,null,null,""]
[null,null,null,null,null,null,null,null,null,null,"",null,null,null,""]
[null,null,null,null,null,null,null,null,null,null,"",null,null,null,""]
[null,null,null,null,null,null,null,null,null,null,"",null,null,null,""]
[null,null,null,null,null,null,null,null,null,null,"",null,null,null,""]
[null,null,null,null,null,null,null,null,null,null,"",null,null,null,""]
[null,null,null,null,null,null,null,null,null,null,"",null,null,null,""]
[null,null,null,null,null,null,null,null,null,null,"",null,null,null,""]
[null,null,null,null,null,null,null,null,null,null,"",null,null,null,""]
[null,null,null,null,null,null,null,null,null,null,"",null,null,null,""]
[null,null,null,null,null,null,null,null,null,null,"",null,null,null,""]
[null,null,null,null,null,null,null,null,null,null,"",null,null,null,""]
[null,null,null,null,null,null,null,null,null,null,"",null,null,null,""]
[null,null,null,null,null,null,null,null,null,null,"",null,null,null,""]
[null,null,null,null,null,null,null,null,null,null,"",null,null,null,""]
[null,null,null,null,null,null,null,null,null,null,"",null,null,null,""]
[null,null,null,null,null,null,null,null,null,null,"",null,null,null,""]
[null,null,null,null,null,null,null,null,null,null,"",null,null,null,""]
[null,null,null,null,null,null,null,null,null,null,"",null,null,null,""]
[null,null,null,null,null,null,null,null,null,null,"",null,null,null,""]
[null,null,null,null,null,null,null,null,null,null,"",null,null,null,""]
[null,null,null,null,null,null,null,null,null,null,"",null,null,null,""]
[null,null,null,null,null,null,null,null,null,null,"",null,null,null,""]
[null,null,null,null,null,null,null,null,null,null,"",null,null,null,""]
[null,null,null,null,null,null,null,null,null,null,"",null,null,null,""]
[null,null,null,null,null,null,null,null,null,null,"",null,null,null,""]
[null,null,null,null,null,null,null,null,null,null,"",null,null,null,""]
[null,null,null,null,null,null,null,null,null,null,"",null,null,null,""]
[null,null,null,null,null,null,null,null,null,null,"",null,null,null,""]
[null,null,null,null,null,null,null,null,null,null,"",null,null,null,""]
[null,null,null,null,null,null,null,null,null,null,"",null,null,null,""]
[null,null,null,null,null,null,null,null,null,null,"",null,null,null,""]
[null,null,null,null,null,null,null,null,null,null,"",null,null,null,""]
[null,null,null,null,null,null,null,null,null,null,"",null,null,null,""]
[null,null,null,null,null,null,null,null,null,null,"",null,null,null,""]
[null,null,null,null,null,null,null,null,null,null,"",null,null,null,""]
[null,null,null,null,null,null,null,null,null,null,{"$f":"IF(OR(B1544=\"\",G1544=\"\",B1544=\"-\",G1544=\"-\"),\"\",G1544*C1544/I1544)","v":""},null,null,null,""]
[null,null,null,null,null,null,null,null,null,null,"",null,null,null,""]
[null,null,null,null,null,null,null,null,null,null,"",null,null,null,""]
[null,null,null,null,null,null,null,null,null,null,"",null,null,null,{"$f":"IF(OR(M1547=\"\",M1547=\"-\"),\"\",0.35*10^M1547)","v":""}]
[null,null,null,null,null,null,null,null,null,null,"",null,null,null,""]
[null,null,null,null,null,null,null,null,null,null,"",null,null,null,""]
[null,null,null,null,null,null,null,null,null,null,"",null,null,null,""]
[null,null,null,null,null,null,null,null,null,null,"",null,null,null,""]
[null,null,null,null,null,null,null,null,null,null,"",null,null,null,""]
[null,null,null,null,null,null,null,null,null,null,"",null,null,null,""]
[null,null,null,null,null,null,null,null,null,null,"",null,null,null,""]
[null,null,null,null,null,null,null,null,null,null,"",null,null,null,""]
[null,null,null,null,null,null,null,null,null,null,"",null,null,null,""]
[null,null,null,null,null,null,null,null,null,null,"",null,null,null,""]
[null,null,null,null,null,null,null,null,null,null,"",null,null,null,""]
[null,null,null,null,null,null,null,null,null,null,"",null,null,null,""]
[null,null,null,null,null,null,null,null,null,null,"",null,null,null,""]
[null,null,null,null,null,null,null,null,null,null,"",null,null,null,""]
[null,null,null,null,null,null,null,null,null,null,"",null,null,null,""]
[null,null,null,null,null,null,null,null,null,null,"",null,null,null,""]
[null,null,null,null,null,null,null,null,null,null,"",null,null,null,""]
[null,null,null,null,null,null,null,null,null,null,"",null,null,null,""]
[null,null,null,null,null,null,null,null,null,null,"",null,null,null,""]
[null,null,null,null,null,null,null,null,null,null,"",null,null,null,""]
[null,null,null,null,null,null,null,null,null,null,"",null,null,null,""]
[null,null,null,null,null,null,null,null,null,null,"",null,null,null,""]
[null,null,null,null,null,null,null,null,null,null,"",null,null,null,""]
[null,null,null,null,null,null,null,null,null,null,"",null,null,null,""]
[null,null,null,null,null,null,null,null,null,null,"",null,null,null,""]
[null,null,null,null,null,null,null,null,null,null,"",null,null,null,""]
[null,null,null,null,null,null,null,null,null,null,"",null,null,null,""]
[null,null,null,null,null,null,null,null,null,null,"",null,null,null,""]
[null,null,null,null,null,null,null,null,null,null,"",null,null,null,""]
[null,null,null,null,null,null,null,null,null,null,"",null,null,null,""]
[null,null,null,null,null,null,null,null,null,null,"",null,null,null,""]
[null,null,null,null,null,null,null,null,null,null,"",null,null,null,""]
[null,null,null,null,null,null,null,null,null,null,"",null,null,null,""]
[null,null,null,null,null,null,null,null,null,null,"",null,null,null,""]
[null,null,null,null,null,null,null,null,null,null,"",null,null,null,""]
[null,null,null,null,null,null,null,null,null,null,"",null,null,null,""]
[null,null,null,null,null,null,null,null,null,null,"",null,null,null,""]
[null,null,null,null,null,null,null,null,null,null,"",null,null,null,""]
[null,null,null,null,null,null,null,null,null,null,"",null,null,null,""]
[null,null,null,null,null,null,null,null,null,null,"",null,null,null,""]
[null,null,null,null,null,null,null,null,null,null,"",null,null,null,""]
[null,null,null,null,null,null,null,null,null,null,"",null,null,null,""]
[null,null,null,null,null,null,null,null,null,null,"",null,null,null,""]
[null,null,null,null,null,null,null,null,null,null,"",null,null,null,""]
[null,null,null,null,null,null,null,null,null,null,"",null,null,null,""]
[null,null,null,null,null,null,null,null,null,null,"",null,null,null,""]
[null,null,null,null,null,null,null,null,null,null,"",null,null,null,""]
[null,null,null,null,null,null,null,null,null,null,"",null,null,null,""]
[null,null,null,null,null,null,null,null,null,null,"",null,null,null,""]
[null,null,null,null,null,null,null,null,null,null,"",null,null,null,""]
[null,null,null,null,null,null,null,null,null,null,"",null,null,null,""]
[null,null,null,null,null,null,null,null,null,null,"",null,null,null,""]
[null,null,null,null,null,null,null,null,null,null,"",null,null,null,""]
[null,null,null,null,null,null,null,null,null,null,"",null,null,null,""]
[null,null,null,null,null,null,null,null,null,null,"",null,null,null,""]
[null,null,null,null,null,null,null,null,null,null,"",null,null,null,""]
[null,null,null,null,null,null,null,null,null,null,"",null,null,null,""]
[null,null,null,null,null,null,null,null,null,null,"",null,null,null,""]
[null,null,null,null,null,null,null,null,null,null,"",null,null,null,""]
[null,null,null,null,null,null,null,null,null,null,"",null,null,null,""]
[null,null,null,null,null,null,null,null,null,null,{"$f":"IF(OR(B1608=\"\",G1608=\"\",B1608=\"-\",G1608=\"-\"),\"\",G1608*C1608/I1608)","v":""},null,null,null,""]
[null,null,null,null,null,null,null,null,null,null,"",null,null,null,""]
[null,null,null,null,null,null,null,null,null,null,"",null,null,null,""]
[null,null,null,null,null,null,null,null,null,null,"",null,null,null,{"$f":"IF(OR(M1611=\"\",M1611=\"-\"),\"\",0.35*10^M1611)","v":""}]
[null,null,null,null,null,null,null,null,null,null,"",null,null,null,""]
[null,null,null,null,null,null,null,null,null,null,"",null,null,null,""]
[null,null,null,null,null,null,null,null,null,null,"",null,null,null,""]
[null,null,null,null,null,null,null,null,null,null,"",null,null,null,""]
[null,null,null,null,null,null,null,null,null,null,"",null,null,null,""]
[null,null,null,null,null,null,null,null,null,null,"",null,null,null,""]
[null,null,null,null,null,null,null,null,null,null,"",null,null,null,""]
[null,null,null,null,null,null,null,null,null,null,"",null,null,null,""]
[null,null,null,null,null,null,null,null,null,null,"",null,null,null,""]
[null,null,null,null,null,null,null,null,null,null,"",null,null,null,""]
[null,null,null,null,null,null,null,null,null,null,"",null,null,null,""]
[null,null,null,null,null,null,null,null,null,null,"",null,null,null,""]
[null,null,null,null,null,null,null,null,null,null,"",null,null,null,""]
[null,null,null,null,null,null,null,null,null,null,"",null,null,null,""]
[null,null,null,null,null,null,null,null,null,null,"",null,null,null,""]
[null,null,null,null,null,null,null,null,null,null,"",null,null,null,""]
[null,null,null,null,null,null,null,null,null,null,"",null,null,null,""]
[null,null,null,null,null,null,null,null,null,null,"",null,null,null,""]
[null,null,null,null,null,null,null,null,null,null,"",null,null,null,""]
[null,null,null,null,null,null,null,null,null,null,"",null,null,null,""]
[null,null,null,null,null,null,null,null,null,null,"",null,null,null,""]
[null,null,null,null,null,null,null,null,null,null,"",null,null,null,""]
[null,null,null,null,null,null,null,null,null,null,"",null,null,null,""]
[null,null,null,null,null,null,null,null,null,null,"",null,null,null,""]
[null,null,null,null,null,null,null,null,null,null,"",null,null,null,""]
[null,null,null,null,null,null,null,null,null,null,"",null,null,null,""]
[null,null,null,null,null,null,null,null,null,null,"",null,null,null,""]
[null,null,null,null,null,null,null,null,null,null,"",null,null,null,""]
[null,null,null,null,null,null,null,null,null,null,"",null,null,null,""]
[null,null,null,null,null,null,null,null,null,null,"",null,null,null,""]
[null,null,null,null,null,null,null,null,null,null,"",null,null,null,""]
[null,null,null,null,null,null,null,null,null,null,"",null,null,null,""]
[null,null,null,null,null,null,null,null,null,null,"",null,null,null,""]
[null,null,null,null,null,null,null,null,null,null,"",null,null,null,""]
[null,null,null,null,null,null,null,null,null,null,"",null,null,null,""]
[null,null,null,null,null,null,null,null,null,null,"",null,null,null,""]
[null,null,null,null,null,null,null,null,null,null,"",null,null,null,""]
[null,null,null,null,null,null,null,null,null,null,"",null,null,null,""]
[null,null,null,null,null,null,null,null,null,null,"",null,null,null,""]
[null,null,null,null,null,null,null,null,null,null,"",null,null,null,""]
[null,null,null,null,null,null,null,null,null,null,"",null,null,null,""]
[null,null,null,null,null,null,null,null,null,null,"",null,null,null,""]
[null,null,null,null,null,null,null,null,null,null,"",null,null,null,""]
[null,null,null,null,null,null,null,null,null,null,"",null,null,null,""]
[null,null,null,null,null,null,null,null,null,null,"",null,null,null,""]
[null,null,null,null,null,null,null,null,null,null,"",null,null,null,""]
[null,null,null,null,null,null,null,null,null,null,"",null,null,null,""]
[null,null,null,null,null,null,null,null,null,null,"",null,null,null,""]
[null,null,null,null,null,null,null,null,null,null,"",null,null,null,""]
[null,null,null,null,null,null,null,null,null,null,"",null,null,null,""]
[null,null,null,null,null,null,null,null,null,null,"",null,null,null,""]
[null,null,null,null,null,null,null,null,null,null,"",null,null,null,""]
[null,null,null,null,null,null,null,null,null,null,"",null,null,null,""]
[null,null,null,null,null,null,null,null,null,null,"",null,null,null,""]
[null,null,null,null,null,null,null,null,null,null,"",null,null,null,""]
[null,null,null,null,null,null,null,null,null,null,"",null,null,null,""]
[null,null,null,null,null,null,null,null,null,null,"",null,null,null,""]
[null,null,null,null,null,null,null,null,null,null,"",null,null,null,""]
[null,null,null,null,null,null,null,null,null,null,"",null,null,null,""]
[null,null,null,null,null,null,null,null,null,null,"",null,null,null,""]
[null,null,null,null,null,null,null,null,null,null,{"$f":"IF(OR(B1672=\"\",G1672=\"\",B1672=\"-\",G1672=\"-\"),\"\",G1672*C1672/I1672)","v":""},null,null,null,""]
[null,null,null,null,null,null,null,null,null,null,"",null,null,null,""]
[null,null,null,null,null,null,null,null,null,null,"",null,null,null,""]
[null,null,null,null,null,null,null,null,null,null,"",null,null,null,{"$f":"IF(OR(M1675=\"\",M1675=\"-\"),\"\",0.35*10^M1675)","v":""}]
[null,null,null,null,null,null,null,null,null,null,"",null,null,null,""]
[null,null,null,null,null,null,null,null,null,null,"",null,null,null,""]
[null,null,null,null,null,null,null,null,null,null,"",null,null,null,""]
[null,null,null,null,null,null,null,null,null,null,"",null,null,null,""]
[null,null,null,null,null,null,null,null,null,null,"",null,null,null,""]
[null,null,null,null,null,null,null,null,null,null,"",null,null,null,""]
[null,null,null,null,null,null,null,null,null,null,"",null,null,null,""]
[null,null,null,null,null,null,null,null,null,null,"",null,null,null,""]
[null,null,null,null,null,null,null,null,null,null,"",null,null,null,""]
[null,null,null,null,null,null,null,null,null,null,"",null,null,null,""]
[null,null,null,null,null,null,null,null,null,null,"",null,null,null,""]
[null,null,null,null,null,null,null,null,null,null,"",null,null,null,""]
[null,null,null,null,null,null,null,null,null,null,"",null,null,null,""]
[null,null,null,null,null,null,null,null,null,null,"",null,null,null,""]
[null,null,null,null,null,null,null,null,null,null,"",null,null,null,""]
[null,null,null,null,null,null,null,null,null,null,"",null,null,null,""]
[null,null,null,null,null,null,null,null,null,null,"",null,null,null,""]
[null,null,null,null,null,null,null,null,null,null,"",null,null,null,""]
[null,null,null,null,null,null,null,null,null,null,"",null,null,null,""]
[null,null,null,null,null,null,null,null,null,null,"",null,null,null,""]
[null,null,null,null,null,null,null,null,null,null,"",null,null,null,""]
[null,null,null,null,null,null,null,null,null,null,"",null,null,null,""]
[null,null,null,null,null,null,null,null,null,null,"",null,null,null,""]
[null,null,null,null,null,null,null,null,null,null,"",null,null,null,""]
[null,null,null,null,null,null,null,null,null,null,"",null,null,null,""]
[null,null,null,null,null,null,null,null,null,null,"",null,null,null,""]
[null,null,null,null,null,null,null,null,null,null,"",null,null,null,""]
[null,null,null,null,null,null,null,null,null,null,"",null,null,null,""]
[null,null,null,null,null,null,null,null,null,null,"",null,null,null,""]
[null,null,null,null,null,null,null,null,null,null,"",null,null,null,""]
[null,null,null,null,null,null,null,null,null,null,"",null,null,null,""]
[null,null,null,null,null,null,null,null,null,null,"",null,null,null,""]
[null,null,null,null,null,null,null,null,null,null,"",null,null,null,""]
[null,null,null,null,null,null,null,null,null,null,"",null,null,null,""]
[null,null,null,null,null,null,null,null,null,null,"",null,null,null,""]
[null,null,null,null,null,null,null,null,null,null,"",null,null,null,""]
[null,null,null,null,null,null,null,null,null,null,"",null,null,null,""]
[null,null,null,null,null,null,null,null,null,null,"",null,null,null,""]
[null,null,null,null,null,null,null,null,null,null,"",null,null,null,""]
[null,null,null,null,null,null,null,null,null,null,"",null,null,null,""]
[null,null,null,null,null,null,null,null,null,null,"",null,null,null,""]
[null,null,null,null,null,null,null,null,null,null,"",null,null,null,""]
[null,null,null,null,null,null,null,null,null,null,"",null,null,null,""]
[null,null,null,null,null,null,null,null,null,null,"",null,null,null,""]
[null,null,null,null,null,null,null,null,null,null,"",null,null,null,""]
[null,null,null,null,null,null,null,null,null,null,"",null,null,null,""]
[null,null,null,null,null,null,null,null,null,null,"",null,null,null,""]
[null,null,null,null,null,null,null,null,null,null,"",null,null,null,""]
[null,null,null,null,null,null,null,null,null,null,"",null,null,null,""]
[null,null,null,null,null,null,null,null,null,null,"",null,null,null,""]
[null,null,null,null,null,null,null,null,null,null,"",null,null,null,""]
[null,null,null,null,null,null,null,null,null,null,"",null,null,null,""]
[null,null,null,null,null,null,null,null,null,null,"",null,null,null,""]
[null,null,null,null,null,null,null,null,null,null,"",null,null,null,""]
[null,null,null,null,null,null,null,null,null,null,"",null,null,null,""]
[null,null,null,null,null,null,null,null,null,null,"",null,null,null,""]
[null,null,null,null,null,null,null,null,null,null,"",null,null,null,""]
[null,null,null,null,null,null,null,null,null,null,"",null,null,null,""]
[null,null,null,null,null,null,null,null,null,null,"",null,null,null,""]
[null,null,null,null,null,null,null,null,null,null,"",null,null,null,""]
[null,null,null,null,null,null,null,null,null,null,{"$f":"IF(OR(B1736=\"\",G1736=\"\",B1736=\"-\",G1736=\"-\"),\"\",G1736*C1736/I1736)","v":""},null,null,null,""]
[null,null,null,null,null,null,null,null,null,null,"",null,null,null,""]
[null,null,null,null,null,null,null,null,null,null,"",null,null,null,""]
[null,null,null,null,null,null,null,null,null,null,"",null,null,null,{"$f":"IF(OR(M1739=\"\",M1739=\"-\"),\"\",0.35*10^M1739)","v":""}]
[null,null,null,null,null,null,null,null,null,null,"",null,null,null,""]
[null,null,null,null,null,null,null,null,null,null,"",null,null,null,""]
[null,null,null,null,null,null,null,null,null,null,"",null,null,null,""]
[null,null,null,null,null,null,null,null,null,null,"",null,null,null,""]
[null,null,null,null,null,null,null,null,null,null,"",null,null,null,""]
[null,null,null,null,null,null,null,null,null,null,"",null,null,null,""]
[null,null,null,null,null,null,null,null,null,null,"",null,null,null,""]
[null,null,null,null,null,null,null,null,null,null,"",null,null,null,""]
[null,null,null,null,null,null,null,null,null,null,"",null,null,null,""]
[null,null,null,null,null,null,null,null,null,null,"",null,null,null,""]
[null,null,null,null,null,null,null,null,null,null,"",null,null,null,""]
[null,null,null,null,null,null,null,null,null,null,"",null,null,null,""]
[null,null,null,null,null,null,null,null,null,null,"",null,null,null,""]
[null,null,null,null,null,null,null,null,null,null,"",null,null,null,""]
[null,null,null,null,null,null,null,null,null,null,"",null,null,null,""]
[null,null,null,null,null,null,null,null,null,null,"",null,null,null,""]
[null,null,null,null,null,null,null,null,null,null,"",null,null,null,""]
[null,null,null,null,null,null,null,null,null,null,"",null,null,null,""]
[null,null,null,null,null,null,null,null,null,null,"",null,null,null,""]
[null,null,null,null,null,null,null,null,null,null,"",null,null,null,""]
[null,null,null,null,null,null,null,null,null,null,"",null,null,null,""]
[null,null,null,null,null,null,null,null,null,null,"",null,null,null,""]
[null,null,null,null,null,null,null,null,null,null,"",null,null,null,""]
[null,null,null,null,null,null,null,null,null,null,"",null,null,null,""]
[null,null,null,null,null,null,null,null,null,null,"",null,null,null,""]
[null,null,null,null,null,null,null,null,null,null,"",null,null,null,""]
[null,null,null,null,null,null,null,null,null,null,"",null,null,null,""]
[null,null,null,null,null,null,null,null,null,null,"",null,null,null,""]
[null,null,null,null,null,null,null,null,null,null,"",null,null,null,""]
[null,null,null,null,null,null,null,null,null,null,"",null,null,null,""]
[null,null,null,null,null,null,null,null,null,null,"",null,null,null,""]
[null,null,null,null,null,null,null,null,null,null,"",null,null,null,""]
[null,null,null,null,null,null,null,null,null,null,"",null,null,null,""]
[null,null,null,null,null,null,null,null,null,null,"",null,null,null,""]
[null,null,null,null,null,null,null,null,null,null,"",null,null,null,""]
[null,null,null,null,null,null,null,null,null,null,"",null,null,null,""]
[null,null,null,null,null,null,null,null,null,null,"",null,null,null,""]
[null,null,null,null,null,null,null,null,null,null,"",null,null,null,""]
[null,null,null,null,null,null,null,null,null,null,"",null,null,null,""]
[null,null,null,null,null,null,null,null,null,null,"",null,null,null,""]
[null,null,null,null,null,null,null,null,null,null,"",null,null,null,""]
[null,null,null,null,null,null,null,null,null,null,"",null,null,null,""]
[null,null,null,null,null,null,null,null,null,null,"",null,null,null,""]
[null,null,null,null,null,null,null,null,null,null,"",null,null,null,""]
[null,null,null,null,null,null,null,null,null,null,"",null,null,null,""]
[null,null,null,null,null,null,null,null,null,null,"",null,null,null,""]
[null,null,null,null,null,null,null,null,null,null,"",null,null,null,""]
[null,null,null,null,null,null,null,null,null,null,"",null,null,null,""]
[null,null,null,null,null,null,null,null,null,null,"",null,null,null,""]
[null,null,null,null,null,null,null,null,null,null,"",null,null,null,""]
[null,null,null,null,null,null,null,null,null,null,"",null,null,null,""]
[null,null,null,null,null,null,null,null,null,null,"",null,null,null,""]
[null,null,null,null,null,null,null,null,null,null,"",null,null,null,""]
[null,null,null,null,null,null,null,null,null,null,"",null,null,null,""]
[null,null,null,null,null,null,null,null,null,null,"",null,null,null,""]
[null,null,null,null,null,null,null,null,null,null,"",null,null,null,""]
[null,null,null,null,null,null,null,null,null,null,"",null,null,null,""]
[null,null,null,null,null,null,null,null,null,null,"",null,null,null,""]
[null,null,null,null,null,null,null,null,null,null,"",null,null,null,""]
[null,null,null,null,null,null,null,null,null,null,"",null,null,null,""]
[null,null,null,null,null,null,null,null,null,null,{"$f":"IF(OR(B1800=\"\",G1800=\"\",B1800=\"-\",G1800=\"-\"),\"\",G1800*C1800/I1800)","v":""},null,null,null,""]
[null,null,null,null,null,null,null,null,null,null,"",null,null,null,""]
[null,null,null,null,null,null,null,null,null,null,"",null,null,null,""]
[null,null,null,null,null,null,null,null,null,null,"",null,null,null,{"$f":"IF(OR(M1803=\"\",M1803=\"-\"),\"\",0.35*10^M1803)","v":""}]
[null,null,null,null,null,null,null,null,null,null,"",null,null,null,""]
[null,null,null,null,null,null,null,null,null,null,"",null,null,null,""]
[null,null,null,null,null,null,null,null,null,null,"",null,null,null,""]
[null,null,null,null,null,null,null,null,null,null,"",null,null,null,""]
[null,null,null,null,null,null,null,null,null,null,"",null,null,null,""]
[null,null,null,null,null,null,null,null,null,null,"",null,null,null,""]
[null,null,null,null,null,null,null,null,null,null,"",null,null,null,""]
[null,null,null,null,null,null,null,null,null,null,"",null,null,null,""]
[null,null,null,null,null,null,null,null,null,null,"",null,null,null,""]
[null,null,null,null,null,null,null,null,null,null,"",null,null,null,""]
[null,null,null,null,null,null,null,null,null,null,"",null,null,null,""]
[null,null,null,null,null,null,null,null,null,null,"",null,null,null,""]
[null,null,null,null,null,null,null,null,null,null,"",null,null,null,""]
[null,null,null,null,null,null,null,null,null,null,"",null,null,null,""]
[null,null,null,null,null,null,null,null,null,null,"",null,null,null,""]
[null,null,null,null,null,null,null,null,null,null,"",null,null,null,""]
[null,null,null,null,null,null,null,null,null,null,"",null,null,null,""]
[null,null,null,null,null,null,null,null,null,null,"",null,null,null,""]
[null,null,null,null,null,null,null,null,null,null,"",null,null,null,""]
[null,null,null,null,null,null,null,null,null,null,"",null,null,null,""]
[null,null,null,null,null,null,null,null,null,null,"",null,null,null,""]
[null,null,null,null,null,null,null,null,null,null,"",null,null,null,""]
[null,null,null,null,null,null,null,null,null,null,"",null,null,null,""]
[null,null,null,null,null,null,null,null,null,null,"",null,null,null,""]
[null,null,null,null,null,null,null,null,null,null,"",null,null,null,""]
[null,null,null,null,null,null,null,null,null,null,"",null,null,null,""]
[null,null,null,null,null,null,null,null,null,null,"",null,null,null,""]
[null,null,null,null,null,null,null,null,null,null,"",null,null,null,""]
[null,null,null,null,null,null,null,null,null,null,"",null,null,null,""]
[null,null,null,null,null,null,null,null,null,null,"",null,null,null,""]
[null,null,null,null,null,null,null,null,null,null,"",null,null,null,""]
[null,null,null,null,null,null,null,null,null,null,"",null,null,null,""]
[null,null,null,null,null,null,null,null,null,null,"",null,null,null,""]
[null,null,null,null,null,null,null,null,null,null,"",null,null,null,""]
[null,null,null,null,null,null,null,null,null,null,"",null,null,null,""]
[null,null,null,null,null,null,null,null,null,null,"",null,null,null,""]
[null,null,null,null,null,null,null,null,null,null,"",null,null,null,""]
[null,null,null,null,null,null,null,null,null,null,"",null,null,null,""]
[null,null,null,null,null,null,null,null,null,null,"",null,null,null,""]
[null,null,null,null,null,null,null,null,null,null,"",null,null,null,""]
[null,null,null,null,null,null,null,null,null,null,"",null,null,null,""]
[null,null,null,null,null,null,null,null,null,null,"",null,null,null,""]
[null,null,null,null,null,null,null,null,null,null,"",null,null,null,""]
[null,null,null,null,null,null,null,null,null,null,"",null,null,null,""]
[null,null,null,null,null,null,null,null,null,null,"",null,null,null,""]
[null,null,null,null,null,null,null,null,null,null,"",null,null,null,""]
[null,null,null,null,null,null,null,null,null,null,"",null,null,null,""]
[null,null,null,null,null,null,null,null,null,null,"",null,null,null,""]
[null,null,null,null,null,null,null,null,null,null,"",null,null,null,""]
[null,null,null,null,null,null,null,null,null,null,"",null,null,null,""]
[null,null,null,null,null,null,null,null,null,null,"",null,null,null,""]
[null,null,null,null,null,null,null,null,null,null,"",null,null,null,""]
[null,null,null,null,null,null,null,null,null,null,"",null,null,null,""]
[null,null,null,null,null,null,null,null,null,null,"",null,null,null,""]
[null,null,null,null,null,null,null,null,null,null,"",null,null,null,""]
[null,null,null,null,null,null,null,null,null,null,"",null,null,null,""]
[null,null,null,null,null,null,null,null,null,null,"",null,null,null,""]
[null,null,null,null,null,null,null,null,null,null,"",null,null,null,""]
[null,null,null,null,null,null,null,null,null,null,"",null,null,null,""]
[null,null,null,null,null,null,null,null,null,null,"",null,null,null,""]
[null,null,null,null,null,null,null,null,null,null,{"$f":"IF(OR(B1864=\"\",G1864=\"\",B1864=\"-\",G1864=\"-\"),\"\",G1864*C1864/I1864)","v":""},null,null,null,""]
[null,null,null,null,null,null,null,null,null,null,"",null,null,null,""]
[null,null,null,null,null,null,null,null,null,null,"",null,null,null,""]
[null,null,null,null,null,null,null,null,null,null,"",null,null,null,{"$f":"IF(OR(M1867=\"\",M1867=\"-\"),\"\",0.35*10^M1867)","v":""}]
[null,null,null,null,null,null,null,null,null,null,"",null,null,null,""]
[null,null,null,null,null,null,null,null,null,null,"",null,null,null,""]
[null,null,null,null,null,null,null,null,null,null,"",null,null,null,""]
[null,null,null,null,null,null,null,null,null,null,"",null,null,null,""]
[null,null,null,null,null,null,null,null,null,null,"",null,null,null,""]
[null,null,null,null,null,null,null,null,null,null,"",null,null,null,""]
[null,null,null,null,null,null,null,null,null,null,"",null,null,null,""]
[null,null,null,null,null,null,null,null,null,null,"",null,null,null,""]
[null,null,null,null,null,null,null,null,null,null,"",null,null,null,""]
[null,null,null,null,null,null,null,null,null,null,"",null,null,null,""]
[null,null,null,null,null,null,null,null,null,null,"",null,null,null,""]
[null,null,null,null,null,null,null,null,null,null,"",null,null,null,""]
[null,null,null,null,null,null,null,null,null,null,"",null,null,null,""]
[null,null,null,null,null,null,null,null,null,null,"",null,null,null,""]
[null,null,null,null,null,null,null,null,null,null,"",null,null,null,""]
[null,null,null,null,null,null,null,null,null,null,"",null,null,null,""]
[null,null,null,null,null,null,null,null,null,null,"",null,null,null,""]
[null,null,null,null,null,null,null,null,null,null,"",null,null,null,""]
[null,null,null,null,null,null,null,null,null,null,"",null,null,null,""]
[null,null,null,null,null,null,null,null,null,null,"",null,null,null,""]
[null,null,null,null,null,null,null,null,null,null,"",null,null,null,""]
[null,null,null,null,null,null,null,null,null,null,"",null,null,null,""]
[null,null,null,null,null,null,null,null,null,null,"",null,null,null,""]
[null,null,null,null,null,null,null,null,null,null,"",null,null,null,""]
[null,null,null,null,null,null,null,null,null,null,"",null,null,null,""]
[null,null,null,null,null,null,null,null,null,null,"",null,null,null,""]
[null,null,null,null,null,null,null,null,null,null,"",null,null,null,""]
[null,null,null,null,null,null,null,null,null,null,"",null,null,null,""]
[null,null,null,null,null,null,null,null,null,null,"",null,null,null,""]
[null,null,null,null,null,null,null,null,null,null,"",null,null,null,""]
[null,null,null,null,null,null,null,null,null,null,"",null,null,null,""]
[null,null,null,null,null,null,null,null,null,null,"",null,null,null,""]
[null,null,null,null,null,null,null,null,null,null,"",null,null,null,""]
[null,null,null,null,null,null,null,null,null,null,"",null,null,null,""]
[null,null,null,null,null,null,null,null,null,null,"",null,null,null,""]
[null,null,null,null,null,null,null,null,null,null,"",null,null,null,""]
[null,null,null,null,null,null,null,null,null,null,"",null,null,null,""]
[null,null,null,null,null,null,null,null,null,null,"",null,null,null,""]
[null,null,null,null,null,null,null,null,null,null,"",null,null,null,""]
[null,null,null,null,null,null,null,null,null,null,"",null,null,null,""]
[null,null,null,null,null,null,null,null,null,null,"",null,null,null,""]
[null,null,null,null,null,null,null,null,null,null,"",null,null,null,""]
[null,null,null,null,null,null,null,null,null,null,"",null,null,null,""]
[null,null,null,null,null,null,null,null,null,null,"",null,null,null,""]
[null,null,null,null,null,null,null,null,null,null,"",null,null,null,""]
[null,null,null,null,null,null,null,null,null,null,"",null,null,null,""]
[null,null,null,null,null,null,null,null,null,null,"",null,null,null,""]
[null,null,null,null,null,null,null,null,null,null,"",null,null,null,""]
[null,null,null,null,null,null,null,null,null,null,"",null,null,null,""]
[null,null,null,null,null,null,null,null,null,null,"",null,null,null,""]
[null,null,null,null,null,null,null,null,null,null,"",null,null,null,""]
[null,null,null,null,null,null,null,null,null,null,"",null,null,null,""]
[null,null,null,null,null,null,null,null,null,null,"",null,null,null,""]
[null,null,null,null,null,null,null,null,null,null,"",null,null,null,""]
[null,null,null,null,null,null,null,null,null,null,"",null,null,null,""]
[null,null,null,null,null,null,null,null,null,null,"",null,null,null,""]
[null,null,null,null,null,null,null,null,null,null,"",null,null,null,""]
[null,null,null,null,null,null,null,null,null,null,"",null,null,null,""]
[null,null,null,null,null,null,null,null,null,null,"",null,null,null,""]
[null,null,null,null,null,null,null,null,null,null,"",null,null,null,""]
[null,null,null,null,null,null,null,null,null,null,{"$f":"IF(OR(B1928=\"\",G1928=\"\",B1928=\"-\",G1928=\"-\"),\"\",G1928*C1928/I1928)","v":""},null,null,null,""]
[null,null,null,null,null,null,null,null,null,null,"",null,null,null,""]
[null,null,null,null,null,null,null,null,null,null,"",null,null,null,""]
[null,null,null,null,null,null,null,null,null,null,"",null,null,null,{"$f":"IF(OR(M1931=\"\",M1931=\"-\"),\"\",0.35*10^M1931)","v":""}]
[null,null,null,null,null,null,null,null,null,null,"",null,null,null,""]
[null,null,null,null,null,null,null,null,null,null,"",null,null,null,""]
[null,null,null,null,null,null,null,null,null,null,"",null,null,null,""]
[null,null,null,null,null,null,null,null,null,null,"",null,null,null,""]
[null,null,null,null,null,null,null,null,null,null,"",null,null,null,""]
[null,null,null,null,null,null,null,null,null,null,"",null,null,null,""]
[null,null,null,null,null,null,null,null,null,null,"",null,null,null,""]
[null,null,null,null,null,null,null,null,null,null,"",null,null,null,""]
[null,null,null,null,null,null,null,null,null,null,"",null,null,null,""]
[null,null,null,null,null,null,null,null,null,null,"",null,null,null,""]
[null,null,null,null,null,null,null,null,null,null,"",null,null,null,""]
[null,null,null,null,null,null,null,null,null,null,"",null,null,null,""]
[null,null,null,null,null,null,null,null,null,null,"",null,null,null,""]
[null,null,null,null,null,null,null,null,null,null,"",null,null,null,""]
[null,null,null,null,null,null,null,null,null,null,"",null,null,null,""]
[null,null,null,null,null,null,null,null,null,null,"",null,null,null,""]
[null,null,null,null,null,null,null,null,null,null,"",null,null,null,""]
[null,null,null,null,null,null,null,null,null,null,"",null,null,null,""]
[null,null,null,null,null,null,null,null,null,null,"",null,null,null,""]
[null,null,null,null,null,null,null,null,null,null,"",null,null,null,""]
[null,null,null,null,null,null,null,null,null,null,"",null,null,null,""]
[null,null,null,null,null,null,null,null,null,null,"",null,null,null,""]
[null,null,null,null,null,null,null,null,null,null,"",null,null,null,""]
[null,null,null,null,null,null,null,null,null,null,"",null,null,null,""]
[null,null,null,null,null,null,null,null,null,null,"",null,null,null,""]
[null,null,null,null,null,null,null,null,null,null,"",null,null,null,""]
[null,null,null,null,null,null,null,null,null,null,"",null,null,null,""]
[null,null,null,null,null,null,null,null,null,null,"",null,null,null,""]
[null,null,null,null,null,null,null,null,null,null,"",null,null,null,""]
[null,null,null,null,null,null,null,null,null,null,"",null,null,null,""]
[null,null,null,null,null,null,null,null,null,null,"",null,null,null,""]
[null,null,null,null,null,null,null,null,null,null,"",null,null,null,""]
[null,null,null,null,null,null,null,null,null,null,"",null,null,null,""]
[null,null,null,null,null,null,null,null,null,null,"",null,null,null,""]
[null,null,null,null,null,null,null,null,null,null,"",null,null,null,""]
[null,null,null,null,null,null,null,null,null,null,"",null,null,null,""]
[null,null,null,null,null,null,null,null,null,null,"",null,null,null,""]
[null,null,null,null,null,null,null,null,null,null,"",null,null,null,""]
[null,null,null,null,null,null,null,null,null,null,"",null,null,null,""]
[null,null,null,null,null,null,null,null,null,null,"",null,null,null,""]
[null,null,null,null,null,null,null,null,null,null,"",null,null,null,""]
[null,null,null,null,null,null,null,null,null,null,"",null,null,null,""]
[null,null,null,null,null,null,null,null,null,null,"",null,null,null,""]
[null,null,null,null,null,null,null,null,null,null,"",null,null,null,""]
[null,null,null,null,null,null,null,null,null,null,"",null,null,null,""]
[null,null,null,null,null,null,null,null,null,null,"",null,null,null,""]
[null,null,null,null,null,null,null,null,null,null,"",null,null,null,""]
[null,null,null,null,null,null,null,null,null,null,"",null,null,null,""]
[null,null,null,null,null,null,null,null,null,null,"",null,null,null,""]
[null,null,null,null,null,null,null,null,null,null,"",null,null,null,""]
[null,null,null,null,null,null,null,null,null,null,"",null,null,null,""]
[null,null,null,null,null,null,null,null,null,null,"",null,null,null,""]
[null,null,null,null,null,null,null,null,null,null,"",null,null,null,""]
[null,null,null,null,null,null,null,null,null,null,"",null,null,null,""]
[null,null,null,null,null,null,null,null,null,null,"",null,null,null,""]
[null,null,null,null,null,null,null,null,null,null,"",null,null,null,""]
[null,null,null,null,null,null,null,null,null,null,"",null,null,null,""]
[null,null,null,null,null,null,null,null,null,null,"",null,null,null,""]
[null,null,null,null,null,null,null,null,null,null,"",null,null,null,""]
[null,null,null,null,null,null,null,null,null,null,"",null,null,null,""]
[null,null,null,null,null,null,null,null,null,null,{"$f":"IF(OR(B1992=\"\",G1992=\"\",B1992=\"-\",G1992=\"-\"),\"\",G1992*C1992/I1992)","v":""},null,null,null,""]
[null,null,null,null,null,null,null,null,null,null,"",null,null,null,""]
[null,null,null,null,null,null,null,null,null,null,"",null,null,null,""]
[null,null,null,null,null,null,null,null,null,null,"",null,null,null,{"$f":"IF(OR(M1995=\"\",M1995=\"-\"),\"\",0.35*10^M1995)","v":""}]
[null,null,null,null,null,null,null,null,null,null,"",null,null,null,""]
[null,null,null,null,null,null,null,null,null,null,"",null,null,null,""]
[null,null,null,null,null,null,null,null,null,null,"",null,null,null,""]
[null,null,null,null,null,null,null,null,null,null,"",null,null,null,""]
[null,null,null,null,null,null,null,null,null,null,"",null,null,null,""]
[null,null,null,null,null,null,null,null,null,null,"",null,null,null,""]
[null,null,null,null,null,null,null,null,null,null,"",null,null,null,""]
[null,null,null,null,null,null,null,null,null,null,"",null,null,null,""]
[null,null,null,null,null,null,null,null,null,null,"",null,null,null,""]
[null,null,null,null,null,null,null,null,null,null,"",null,null,null,""]
[null,null,null,null,null,null,null,null,null,null,"",null,null,null,""]
[null,null,null,null,null,null,null,null,null,null,"",null,null,null,""]
[null,null,null,null,null,null,null,null,null,null,"",null,null,null,""]
[null,null,null,null,null,null,null,null,null,null,"",null,null,null,""]
[null,null,null,null,null,null,null,null,null,null,"",null,null,null,""]
[null,null,null,null,null,null,null,null,null,null,"",null,null,null,""]
[null,null,null,null,null,null,null,null,null,null,"",null,null,null,""]
[null,null,null,null,null,null,null,null,null,null,"",null,null,null,""]
[null,null,null,null,null,null,null,null,null,null,"",null,null,null,""]
[null,null,null,null,null,null,null,null,null,null,"",null,null,null,""]
[null,null,null,null,null,null,null,null,null,null,"",null,null,null,""]
[null,null,null,null,null,null,null,null,null,null,"",null,null,null,""]
[null,null,null,null,null,null,null,null,null,null,"",null,null,null,""]
[null,null,null,null,null,null,null,null,null,null,"",null,null,null,""]
[null,null,null,null,null,null,null,null,null,null,"",null,null,null,""]
[null,null,null,null,null,null,null,null,null,null,"",null,null,null,""]
[null,null,null,null,null,null,null,null,null,null,"",null,null,null,""]
[null,null,null,null,null,null,null,null,null,null,"",null,null,null,""]
[null,null,null,null,null,null,null,null,null,null,"",null,null,null,""]
[null,null,null,null,null,null,null,null,null,null,"",null,null,null,""]
[null,null,null,null,null,null,null,null,null,null,"",null,null,null,""]
[null,null,null,null,null,null,null,null,null,null,"",null,null,null,""]
[null,null,null,null,null,null,null,null,null,null,"",null,null,null,""]
[null,null,null,null,null,null,null,null,null,null,"",null,null,null,""]
[null,null,null,null,null,null,null,null,null,null,"",null,null,null,""]
[null,null,null,null,null,null,null,null,null,null,"",null,null,null,""]
[null,null,null,null,null,null,null,null,null,null,"",null,null,null,""]
[null,null,null,null,null,null,null,null,null,null,"",null,null,null,""]
[null,null,null,null,null,null,null,null,null,null,"",null,null,null,""]
[null,null,null,null,null,null,null,null,null,null,"",null,null,null,""]
[null,null,null,null,null,null,null,null,null,null,"",null,null,null,""]
[null,null,null,null,null,null,null,null,null,null,"",null,null,null,""]
[null,null,null,null,null,null,null,null,null,null,"",null,null,null,""]
[null,null,null,null,null,null,null,null,null,null,"",null,null,null,""]
[null,null,null,null,null,null,null,null,null,null,"",null,null,null,""]
[null,null,null,null,null,null,null,null,null,null,"",null,null,null,""]
[null,null,null,null,null,null,null,null,null,null,"",null,null,null,""]
[null,null,null,null,null,null,null,null,null,null,"",null,null,null,""]
[null,null,null,null,null,null,null,null,null,null,"",null,null,null,""]
[null,null,null,null,null,null,null,null,null,null,"",null,null,null,""]
[null,null,null,null,null,null,null,null,null,null,"",null,null,null,""]
[null,null,null,null,null,null,null,null,null,null,"",null,null,null,""]
[null,null,null,null,null,null,null,null,null,null,"",null,null,null,""]
[null,null,null,null,null,null,null,null,null,null,"",null,null,null,""]
[null,null,null,null,null,null,null,null,null,null,"",null,null,null,""]
[null,null,null,null,null,null,null,null,null,null,"",null,null,null,""]
[null,null,null,null,null,null,null,null,null,null,"",null,null,null,""]
[null,null,null,null,null,null,null,null,null,null,"",null,null,null,""]
[null,null,null,null,null,null,null,null,null,null,"",null,null,null,""]
[null,null,null,null,null,null,null,null,null,null,"",null,null,null,""]
[null,null,null,null,null,null,null,null,null,null,{"$f":"IF(OR(B2056=\"\",G2056=\"\",B2056=\"-\",G2056=\"-\"),\"\",G2056*C2056/I2056)","v":""},null,null,null,""]
[null,null,null,null,null,null,null,null,null,null,"",null,null,null,""]
[null,null,null,null,null,null,null,null,null,null,"",null,null,null,""]
[null,null,null,null,null,null,null,null,null,null,"",null,null,null,{"$f":"IF(OR(M2059=\"\",M2059=\"-\"),\"\",0.35*10^M2059)","v":""}]
[null,null,null,null,null,null,null,null,null,null,"",null,null,null,""]
[null,null,null,null,null,null,null,null,null,null,"",null,null,null,""]
[null,null,null,null,null,null,null,null,null,null,"",null,null,null,""]
[null,null,null,null,null,null,null,null,null,null,"",null,null,null,""]
[null,null,null,null,null,null,null,null,null,null,"",null,null,null,""]
[null,null,null,null,null,null,null,null,null,null,"",null,null,null,""]
[null,null,null,null,null,null,null,null,null,null,"",null,null,null,""]
[null,null,null,null,null,null,null,null,null,null,"",null,null,null,""]
[null,null,null,null,null,null,null,null,null,null,"",null,null,null,""]
[null,null,null,null,null,null,null,null,null,null,"",null,null,null,""]
[null,null,null,null,null,null,null,null,null,null,"",null,null,null,""]
[null,null,null,null,null,null,null,null,null,null,"",null,null,null,""]
[null,null,null,null,null,null,null,null,null,null,"",null,null,null,""]
[null,null,null,null,null,null,null,null,null,null,"",null,null,null,""]
[null,null,null,null,null,null,null,null,null,null,"",null,null,null,""]
[null,null,null,null,null,null,null,null,null,null,"",null,null,null,""]
[null,null,null,null,null,null,null,null,null,null,"",null,null,null,""]
[null,null,null,null,null,null,null,null,null,null,"",null,null,null,""]
[null,null,null,null,null,null,null,null,null,null,"",null,null,null,""]
[null,null,null,null,null,null,null,null,null,null,"",null,null,null,""]
[null,null,null,null,null,null,null,null,null,null,"",null,null,null,""]
[null,null,null,null,null,null,null,null,null,null,"",null,null,null,""]
[null,null,null,null,null,null,null,null,null,null,"",null,null,null,""]
[null,null,null,null,null,null,null,null,null,null,"",null,null,null,""]
[null,null,null,null,null,null,null,null,null,null,"",null,null,null,""]
[null,null,null,null,null,null,null,null,null,null,"",null,null,null,""]
[null,null,null,null,null,null,null,null,null,null,"",null,null,null,""]
[null,null,null,null,null,null,null,null,null,null,"",null,null,null,""]
[null,null,null,null,null,null,null,null,null,null,"",null,null,null,""]
[null,null,null,null,null,null,null,null,null,null,"",null,null,null,""]
[null,null,null,null,null,null,null,null,null,null,"",null,null,null,""]
[null,null,null,null,null,null,null,null,null,null,"",null,null,null,""]
[null,null,null,null,null,null,null,null,null,null,"",null,null,null,""]
[null,null,null,null,null,null,null,null,null,null,"",null,null,null,""]
[null,null,null,null,null,null,null,null,null,null,"",null,null,null,""]
[null,null,null,null,null,null,null,null,null,null,"",null,null,null,""]
[null,null,null,null,null,null,null,null,null,null,"",null,null,null,""]
[null,null,null,null,null,null,null,null,null,null,"",null,null,null,""]
[null,null,null,null,null,null,null,null,null,null,"",null,null,null,""]
[null,null,null,null,null,null,null,null,null,null,"",null,null,null,""]
[null,null,null,null,null,null,null,null,null,null,"",null,null,null,""]
[null,null,null,null,null,null,null,null,null,null,"",null,null,null,""]
[null,null,null,null,null,null,null,null,null,null,"",null,null,null,""]
[null,null,null,null,null,null,null,null,null,null,"",null,null,null,""]
[null,null,null,null,null,null,null,null,null,null,"",null,null,null,""]
[null,null,null,null,null,null,null,null,null,null,"",null,null,null,""]
[null,null,null,null,null,null,null,null,null,null,"",null,null,null,""]
[null,null,null,null,null,null,null,null,null,null,"",null,null,null,""]
[null,null,null,null,null,null,null,null,null,null,"",null,null,null,""]
[null,null,null,null,null,null,null,null,null,null,"",null,null,null,""]
[null,null,null,null,null,null,null,null,null,null,"",null,null,null,""]
[null,null,null,null,null,null,null,null,null,null,"",null,null,null,""]
[null,null,null,null,null,null,null,null,null,null,"",null,null,null,""]
[null,null,null,null,null,null,null,null,null,null,"",null,null,null,""]
[null,null,null,null,null,null,null,null,null,null,"",null,null,null,""]
[null,null,null,null,null,null,null,null,null,null,"",null,null,null,""]
[null,null,null,null,null,null,null,null,null,null,"",null,null,null,""]
[null,null,null,null,null,null,null,null,null,null,"",null,null,null,""]
[null,null,null,null,null,null,null,null,null,null,"",null,null,null,""]
[null,null,null,null,null,null,null,null,null,null,"",null,null,null,""]
[null,null,null,null,null,null,null,null,null,null,{"$f":"IF(OR(B2120=\"\",G2120=\"\",B2120=\"-\",G2120=\"-\"),\"\",G2120*C2120/I2120)","v":""},null,null,null,""]
[null,null,null,null,null,null,null,null,null,null,"",null,null,null,""]
[null,null,null,null,null,null,null,null,null,null,"",null,null,null,""]
[null,null,null,null,null,null,null,null,null,null,"",null,null,null,{"$f":"IF(OR(M2123=\"\",M2123=\"-\"),\"\",0.35*10^M2123)","v":""}]
[null,null,null,null,null,null,null,null,null,null,"",null,null,null,""]
[null,null,null,null,null,null,null,null,null,null,"",null,null,null,""]
[null,null,null,null,null,null,null,null,null,null,"",null,null,null,""]
[null,null,null,null,null,null,null,null,null,null,"",null,null,null,""]
[null,null,null,null,null,null,null,null,null,null,"",null,null,null,""]
[null,null,null,null,null,null,null,null,null,null,"",null,null,null,""]
[null,null,null,null,null,null,null,null,null,null,"",null,null,null,""]
[null,null,null,null,null,null,null,null,null,null,"",null,null,null,""]
[null,null,null,null,null,null,null,null,null,null,"",null,null,null,""]
[null,null,null,null,null,null,null,null,null,null,"",null,null,null,""]
[null,null,null,null,null,null,null,null,null,null,"",null,null,null,""]
[null,null,null,null,null,null,null,null,null,null,"",null,null,null,""]
[null,null,null,null,null,null,null,null,null,null,"",null,null,null,""]
[null,null,null,null,null,null,null,null,null,null,"",null,null,null,""]
[null,null,null,null,null,null,null,null,null,null,"",null,null,null,""]
[null,null,null,null,null,null,null,null,null,null,"",null,null,null,""]
[null,null,null,null,null,null,null,null,null,null,"",null,null,null,""]
[null,null,null,null,null,null,null,null,null,null,"",null,null,null,""]
[null,null,null,null,null,null,null,null,null,null,"",null,null,null,""]
[null,null,null,null,null,null,null,null,null,null,"",null,null,null,""]
[null,null,null,null,null,null,null,null,null,null,"",null,null,null,""]
[null,null,null,null,null,null,null,null,null,null,"",null,null,null,""]
[null,null,null,null,null,null,null,null,null,null,"",null,null,null,""]
[null,null,null,null,null,null,null,null,null,null,"",null,null,null,""]
[null,null,null,null,null,null,null,null,null,null,"",null,null,null,""]
[null,null,null,null,null,null,null,null,null,null,"",null,null,null,""]
[null,null,null,null,null,null,null,null,null,null,"",null,null,null,""]
[null,null,null,null,null,null,null,null,null,null,"",null,null,null,""]
[null,null,null,null,null,null,null,null,null,null,"",null,null,null,""]
[null,null,null,null,null,null,null,null,null,null,"",null,null,null,""]
[null,null,null,null,null,null,null,null,null,null,"",null,null,null,""]
[null,null,null,null,null,null,null,null,null,null,"",null,null,null,""]
[null,null,null,null,null,null,null,null,null,null,"",null,null,null,""]
[null,null,null,null,null,null,null,null,null,null,"",null,null,null,""]
[null,null,null,null,null,null,null,null,null,null,"",null,null,null,""]
[null,null,null,null,null,null,null,null,null,null,"",null,null,null,""]
[null,null,null,null,null,null,null,null,null,null,"",null,null,null,""]
[null,null,null,null,null,null,null,null,null,null,"",null,null,null,""]
[null,null,null,null,null,null,null,null,null,null,"",null,null,null,""]
[null,null,null,null,null,null,null,null,null,null,"",null,null,null,""]
[null,null,null,null,null,null,null,null,null,null,"",null,null,null,""]
[null,null,null,null,null,null,null,null,null,null,"",null,null,null,""]
[null,null,null,null,null,null,null,null,null,null,"",null,null,null,""]
[null,null,null,null,null,null,null,null,null,null,"",null,null,null,""]
[null,null,null,null,null,null,null,null,null,null,"",null,null,null,""]
[null,null,null,null,null,null,null,null,null,null,"",null,null,null,""]
[null,null,null,null,null,null,null,null,null,null,"",null,null,null,""]
[null,null,null,null,null,null,null,null,null,null,"",null,null,null,""]
[null,null,null,null,null,null,null,null,null,null,"",null,null,null,""]
[null,null,null,null,null,null,null,null,null,null,"",null,null,null,""]
[null,null,null,null,null,null,null,null,null,null,"",null,null,null,""]
[null,null,null,null,null,null,null,null,null,null,"",null,null,null,""]
[null,null,null,null,null,null,null,null,null,null,"",null,null,null,""]
[null,null,null,null,null,null,null,null,null,null,"",null,null,null,""]
[null,null,null,null,null,null,null,null,null,null,"",null,null,null,""]
[null,null,null,null,null,null,null,null,null,null,"",null,null,null,""]
[null,null,null,null,null,null,null,null,null,null,"",null,null,null,""]
[null,null,null,null,null,null,null,null,null,null,"",null,null,null,""]
[null,null,null,null,null,null,null,null,null,null,"",null,null,null,""]
[null,null,null,null,null,null,null,null,null,null,"",null,null,null,""]
[null,null,null,null,null,null,null,null,null,null,{"$f":"IF(OR(B2184=\"\",G2184=\"\",B2184=\"-\",G2184=\"-\"),\"\",G2184*C2184/I2184)","v":""},null,null,null,""]
[null,null,null,null,null,null,null,null,null,null,"",null,null,null,""]
[null,null,null,null,null,null,null,null,null,null,"",null,null,null,""]
[null,null,null,null,null,null,null,null,null,null,"",null,null,null,{"$f":"IF(OR(M2187=\"\",M2187=\"-\"),\"\",0.35*10^M2187)","v":""}]
[null,null,null,null,null,null,null,null,null,null,"",null,null,null,""]
[null,null,null,null,null,null,null,null,null,null,"",null,null,null,""]
[null,null,null,null,null,null,null,null,null,null,"",null,null,null,""]
[null,null,null,null,null,null,null,null,null,null,"",null,null,null,""]
[null,null,null,null,null,null,null,null,null,null,"",null,null,null,""]
[null,null,null,null,null,null,null,null,null,null,"",null,null,null,""]
[null,null,null,null,null,null,null,null,null,null,"",null,null,null,""]
[null,null,null,null,null,null,null,null,null,null,"",null,null,null,""]
[null,null,null,null,null,null,null,null,null,null,"",null,null,null,""]
[null,null,null,null,null,null,null,null,null,null,"",null,null,null,""]
[null,null,null,null,null,null,null,null,null,null,"",null,null,null,""]
[null,null,null,null,null,null,null,null,null,null,"",null,null,null,""]
[null,null,null,null,null,null,null,null,null,null,"",null,null,null,""]
[null,null,null,null,null,null,null,null,null,null,"",null,null,null,""]
[null,null,null,null,null,null,null,null,null,null,"",null,null,null,""]
[null,null,null,null,null,null,null,null,null,null,"",null,null,null,""]
[null,null,null,null,null,null,null,null,null,null,"",null,null,null,""]
[null,null,null,null,null,null,null,null,null,null,"",null,null,null,""]
[null,null,null,null,null,null,null,null,null,null,"",null,null,null,""]
[null,null,null,null,null,null,null,null,null,null,"",null,null,null,""]
[null,null,null,null,null,null,null,null,null,null,"",null,null,null,""]
[null,null,null,null,null,null,null,null,null,null,"",null,null,null,""]
[null,null,null,null,null,null,null,null,null,null,"",null,null,null,""]
[null,null,null,null,null,null,null,null,null,null,"",null,null,null,""]
[null,null,null,null,null,null,null,null,null,null,"",null,null,null,""]
[null,null,null,null,null,null,null,null,null,null,"",null,null,null,""]
[null,null,null,null,null,null,null,null,null,null,"",null,null,null,""]
[null,null,null,null,null,null,null,null,null,null,"",null,null,null,""]
[null,null,null,null,null,null,null,null,null,null,"",null,null,null,""]
[null,null,null,null,null,null,null,null,null,null,"",null,null,null,""]
[null,null,null,null,null,null,null,null,null,null,"",null,null,null,""]
[null,null,null,null,null,null,null,null,null,null,"",null,null,null,""]
[null,null,null,null,null,null,null,null,null,null,"",null,null,null,""]
[null,null,null,null,null,null,null,null,null,null,"",null,null,null,""]
[null,null,null,null,null,null,null,null,null,null,"",null,null,null,""]
[null,null,null,null,null,null,null,null,null,null,"",null,null,null,""]
[null,null,null,null,null,null,null,null,null,null,"",null,null,null,""]
[null,null,null,null,null,null,null,null,null,null,"",null,null,null,""]
[null,null,null,null,null,null,null,null,null,null,"",null,null,null,""]
[null,null,null,null,null,null,null,null,null,null,"",null,null,null,""]
[null,null,null,null,null,null,null,null,null,null,"",null,null,null,""]
[null,null,null,null,null,null,null,null,null,null,"",null,null,null,""]
[null,null,null,null,null,null,null,null,null,null,"",null,null,null,""]
[null,null,null,null,null,null,null,null,null,null,"",null,null,null,""]
[null,null,null,null,null,null,null,null,null,null,"",null,null,null,""]
[null,null,null,null,null,null,null,null,null,null,"",null,null,null,""]
[null,null,null,null,null,null,null,null,null,null,"",null,null,null,""]
[null,null,null,null,null,null,null,null,null,null,"",null,null,null,""]
[null,null,null,null,null,null,null,null,null,null,"",null,null,null,""]
[null,null,null,null,null,null,null,null,null,null,"",null,null,null,""]
[null,null,null,null,null,null,null,null,null,null,"",null,null,null,""]
[null,null,null,null,null,null,null,null,null,null,"",null,null,null,""]
[null,null,null,null,null,null,null,null,null,null,"",null,null,null,""]
[null,null,null,null,null,null,null,null,null,null,"",null,null,null,""]
[null,null,null,null,null,null,null,null,null,null,"",null,null,null,""]
[null,null,null,null,null,null,null,null,null,null,"",null,null,null,""]
[null,null,null,null,null,null,null,null,null,null,"",null,null,null,""]
[null,null,null,null,null,null,null,null,null,null,"",null,null,null,""]
[null,null,null,null,null,null,null,null,null,null,"",null,null,null,""]
[null,null,null,null,null,null,null,null,null,null,"",null,null,null,""]
[null,null,null,null,null,null,null,null,null,null,{"$f":"IF(OR(B2248=\"\",G2248=\"\",B2248=\"-\",G2248=\"-\"),\"\",G2248*C2248/I2248)","v":""},null,null,null,""]
[null,null,null,null,null,null,null,null,null,null,"",null,null,null,""]
[null,null,null,null,null,null,null,null,null,null,"",null,null,null,""]
[null,null,null,null,null,null,null,null,null,null,"",null,null,null,{"$f":"IF(OR(M2251=\"\",M2251=\"-\"),\"\",0.35*10^M2251)","v":""}]
[null,null,null,null,null,null,null,null,null,null,"",null,null,null,""]
[null,null,null,null,null,null,null,null,null,null,"",null,null,null,""]
[null,null,null,null,null,null,null,null,null,null,"",null,null,null,""]
[null,null,null,null,null,null,null,null,null,null,"",null,null,null,""]
[null,null,null,null,null,null,null,null,null,null,"",null,null,null,""]
[null,null,null,null,null,null,null,null,null,null,"",null,null,null,""]
[null,null,null,null,null,null,null,null,null,null,"",null,null,null,""]
[null,null,null,null,null,null,null,null,null,null,"",null,null,null,""]
[null,null,null,null,null,null,null,null,null,null,"",null,null,null,""]
[null,null,null,null,null,null,null,null,null,null,"",null,null,null,""]
[null,null,null,null,null,null,null,null,null,null,"",null,null,null,""]
[null,null,null,null,null,null,null,null,null,null,"",null,null,null,""]
[null,null,null,null,null,null,null,null,null,null,"",null,null,null,""]
[null,null,null,null,null,null,null,null,null,null,"",null,null,null,""]
[null,null,null,null,null,null,null,null,null,null,"",null,null,null,""]
[null,null,null,null,null,null,null,null,null,null,"",null,null,null,""]
[null,null,null,null,null,null,null,null,null,null,"",null,null,null,""]
[null,null,null,null,null,null,null,null,null,null,"",null,null,null,""]
[null,null,null,null,null,null,null,null,null,null,"",null,null,null,""]
[null,null,null,null,null,null,null,null,null,null,"",null,null,null,""]
[null,null,null,null,null,null,null,null,null,null,"",null,null,null,""]
[null,null,null,null,null,null,null,null,null,null,"",null,null,null,""]
[null,null,null,null,null,null,null,null,null,null,"",null,null,null,""]
[null,null,null,null,null,null,null,null,null,null,"",null,null,null,""]
[null,null,null,null,null,null,null,null,null,null,"",null,null,null,""]
[null,null,null,null,null,null,null,null,null,null,"",null,null,null,""]
[null,null,null,null,null,null,null,null,null,null,"",null,null,null,""]
[null,null,null,null,null,null,null,null,null,null,"",null,null,null,""]
[null,null,null,null,null,null,null,null,null,null,"",null,null,null,""]
[null,null,null,null,null,null,null,null,null,null,"",null,null,null,""]
[null,null,null,null,null,null,null,null,null,null,"",null,null,null,""]
[null,null,null,null,null,null,null,null,null,null,"",null,null,null,""]
[null,null,null,null,null,null,null,null,null,null,"",null,null,null,""]
[null,null,null,null,null,null,null,null,null,null,"",null,null,null,""]
[null,null,null,null,null,null,null,null,null,null,"",null,null,null,""]
[null,null,null,null,null,null,null,null,null,null,"",null,null,null,""]
[null,null,null,null,null,null,null,null,null,null,"",null,null,null,""]
[null,null,null,null,null,null,null,null,null,null,"",null,null,null,""]
[null,null,null,null,null,null,null,null,null,null,"",null,null,null,""]
[null,null,null,null,null,null,null,null,null,null,"",null,null,null,""]
[null,null,null,null,null,null,null,null,null,null,"",null,null,null,""]
[null,null,null,null,null,null,null,null,null,null,"",null,null,null,""]
[null,null,null,null,null,null,null,null,null,null,"",null,null,null,""]
[null,null,null,null,null,null,null,null,null,null,"",null,null,null,""]
[null,null,null,null,null,null,null,null,null,null,"",null,null,null,""]
[null,null,null,null,null,null,null,null,null,null,"",null,null,null,""]
[null,null,null,null,null,null,null,null,null,null,"",null,null,null,""]
[null,null,null,null,null,null,null,null,null,null,"",null,null,null,""]
[null,null,null,null,null,null,null,null,null,null,"",null,null,null,""]
[null,null,null,null,null,null,null,null,null,null,"",null,null,null,""]
[null,null,null,null,null,null,null,null,null,null,"",null,null,null,""]
[null,null,null,null,null,null,null,null,null,null,"",null,null,null,""]
[null,null,null,null,null,null,null,null,null,null,"",null,null,null,""]
[null,null,null,null,null,null,null,null,null,null,"",null,null,null,""]
[null,null,null,null,null,null,null,null,null,null,"",null,null,null,""]
[null,null,null,null,null,null,null,null,null,null,"",null,null,null,""]
[null,null,null,null,null,null,null,null,null,null,"",null,null,null,""]
[null,null,null,null,null,null,null,null,null,null,"",null,null,null,""]
[null,null,null,null,null,null,null,null,null,null,"",null,null,null,""]
[null,null,null,null,null,null,null,null,null,null,"",null,null,null,""]
[null,null,null,null,null,null,null,null,null,null,{"$f":"IF(OR(B2312=\"\",G2312=\"\",B2312=\"-\",G2312=\"-\"),\"\",G2312*C2312/I2312)","v":""},null,null,null,""]
[null,null,null,null,null,null,null,null,null,null,"",null,null,null,""]
[null,null,null,null,null,null,null,null,null,null,"",null,null,null,""]
[null,null,null,null,null,null,null,null,null,null,"",null,null,null,{"$f":"IF(OR(M2315=\"\",M2315=\"-\"),\"\",0.35*10^M2315)","v":""}]
[null,null,null,null,null,null,null,null,null,null,"",null,null,null,""]
[null,null,null,null,null,null,null,null,null,null,"",null,null,null,""]
[null,null,null,null,null,null,null,null,null,null,"",null,null,null,""]
[null,null,null,null,null,null,null,null,null,null,"",null,null,null,""]
[null,null,null,null,null,null,null,null,null,null,"",null,null,null,""]
[null,null,null,null,null,null,null,null,null,null,"",null,null,null,""]
[null,null,null,null,null,null,null,null,null,null,"",null,null,null,""]
[null,null,null,null,null,null,null,null,null,null,"",null,null,null,""]
[null,null,null,null,null,null,null,null,null,null,"",null,null,null,""]
[null,null,null,null,null,null,null,null,null,null,"",null,null,null,""]
[null,null,null,null,null,null,null,null,null,null,"",null,null,null,""]
[null,null,null,null,null,null,null,null,null,null,"",null,null,null,""]
[null,null,null,null,null,null,null,null,null,null,"",null,null,null,""]
[null,null,null,null,null,null,null,null,null,null,"",null,null,null,""]
[null,null,null,null,null,null,null,null,null,null,"",null,null,null,""]
[null,null,null,null,null,null,null,null,null,null,"",null,null,null,""]
[null,null,null,null,null,null,null,null,null,null,"",null,null,null,""]
[null,null,null,null,null,null,null,null,null,null,"",null,null,null,""]
[null,null,null,null,null,null,null,null,null,null,"",null,null,null,""]
[null,null,null,null,null,null,null,null,null,null,"",null,null,null,""]
[null,null,null,null,null,null,null,null,null,null,"",null,null,null,""]
[null,null,null,null,null,null,null,null,null,null,"",null,null,null,""]
[null,null,null,null,null,null,null,null,null,null,"",null,null,null,""]
[null,null,null,null,null,null,null,null,null,null,"",null,null,null,""]
[null,null,null,null,null,null,null,null,null,null,"",null,null,null,""]
[null,null,null,null,null,null,null,null,null,null,"",null,null,null,""]
[null,null,null,null,null,null,null,null,null,null,"",null,null,null,""]
[null,null,null,null,null,null,null,null,null,null,"",null,null,null,""]
[null,null,null,null,null,null,null,null,null,null,"",null,null,null,""]
[null,null,null,null,null,null,null,null,null,null,"",null,null,null,""]
[null,null,null,null,null,null,null,null,null,null,"",null,null,null,""]
[null,null,null,null,null,null,null,null,null,null,"",null,null,null,""]
[null,null,null,null,null,null,null,null,null,null,"",null,null,null,""]
[null,null,null,null,null,null,null,null,null,null,"",null,null,null,""]
[null,null,null,null,null,null,null,null,null,null,"",null,null,null,""]
[null,null,null,null,null,null,null,null,null,null,"",null,null,null,""]
[null,null,null,null,null,null,null,null,null,null,"",null,null,null,""]
[null,null,null,null,null,null,null,null,null,null,"",null,null,null,""]
[null,null,null,null,null,null,null,null,null,null,"",null,null,null,""]
[null,null,null,null,null,null,null,null,null,null,"",null,null,null,""]
[null,null,null,null,null,null,null,null,null,null,"",null,null,null,""]
[null,null,null,null,null,null,null,null,null,null,"",null,null,null,""]
[null,null,null,null,null,null,null,null,null,null,"",null,null,null,""]
[null,null,null,null,null,null,null,null,null,null,"",null,null,null,""]
[null,null,null,null,null,null,null,null,null,null,"",null,null,null,""]
[null,null,null,null,null,null,null,null,null,null,"",null,null,null,""]
[null,null,null,null,null,null,null,null,null,null,"",null,null,null,""]
[null,null,null,null,null,null,null,null,null,null,"",null,null,null,""]
[null,null,null,null,null,null,null,null,null,null,"",null,null,null,""]
[null,null,null,null,null,null,null,null,null,null,"",null,null,null,""]
[null,null,null,null,null,null,null,null,null,null,"",null,null,null,""]
[null,null,null,null,null,null,null,null,null,null,"",null,null,null,""]
[null,null,null,null,null,null,null,null,null,null,"",null,null,null,""]
[null,null,null,null,null,null,null,null,null,null,"",null,null,null,""]
[null,null,null,null,null,null,null,null,null,null,"",null,null,null,""]
[null,null,null,null,null,null,null,null,null,null,"",null,null,null,""]
[null,null,null,null,null,null,null,null,null,null,"",null,null,null,""]
[null,null,null,null,null,null,null,null,null,null,"",null,null,null,""]
[null,null,null,null,null,null,null,null,null,null,"",null,null,null,""]
[null,null,null,null,null,null,null,null,null,null,"",null,null,null,""]
[null,null,null,null,null,null,null,null,null,null,{"$f":"IF(OR(B2376=\"\",G2376=\"\",B2376=\"-\",G2376=\"-\"),\"\",G2376*C2376/I2376)","v":""},null,null,null,""]
[null,null,null,null,null,null,null,null,null,null,"",null,null,null,""]
[null,null,null,null,null,null,null,null,null,null,"",null,null,null,""]
[null,null,null,null,null,null,null,null,null,null,"",null,null,null,{"$f":"IF(OR(M2379=\"\",M2379=\"-\"),\"\",0.35*10^M2379)","v":""}]
[null,null,null,null,null,null,null,null,null,null,"",null,null,null,""]
[null,null,null,null,null,null,null,null,null,null,"",null,null,null,""]
[null,null,null,null,null,null,null,null,null,null,"",null,null,null,""]
[null,null,null,null,null,null,null,null,null,null,"",null,null,null,""]
[null,null,null,null,null,null,null,null,null,null,"",null,null,null,""]
[null,null,null,null,null,null,null,null,null,null,"",null,null,null,""]
[null,null,null,null,null,null,null,null,null,null,"",null,null,null,""]
[null,null,null,null,null,null,null,null,null,null,"",null,null,null,""]
[null,null,null,null,null,null,null,null,null,null,"",null,null,null,""]
[null,null,null,null,null,null,null,null,null,null,"",null,null,null,""]
[null,null,null,null,null,null,null,null,null,null,"",null,null,null,""]
[null,null,null,null,null,null,null,null,null,null,"",null,null,null,""]
[null,null,null,null,null,null,null,null,null,null,"",null,null,null,""]
[null,null,null,null,null,null,null,null,null,null,"",null,null,null,""]
[null,null,null,null,null,null,null,null,null,null,"",null,null,null,""]
[null,null,null,null,null,null,null,null,null,null,"",null,null,null,""]
[null,null,null,null,null,null,null,null,null,null,"",null,null,null,""]
[null,null,null,null,null,null,null,null,null,null,"",null,null,null,""]
[null,null,null,null,null,null,null,null,null,null,"",null,null,null,""]
[null,null,null,null,null,null,null,null,null,null,"",null,null,null,""]
[null,null,null,null,null,null,null,null,null,null,"",null,null,null,""]
[null,null,null,null,null,null,null,null,null,null,"",null,null,null,""]
[null,null,null,null,null,null,null,null,null,null,"",null,null,null,""]
[null,null,null,null,null,null,null,null,null,null,"",null,null,null,""]
[null,null,null,null,null,null,null,null,null,null,"",null,null,null,""]
[null,null,null,null,null,null,null,null,null,null,"",null,null,null,""]
[null,null,null,null,null,null,null,null,null,null,"",null,null,null,""]
[null,null,null,null,null,null,null,null,null,null,"",null,null,null,""]
[null,null,null,null,null,null,null,null,null,null,"",null,null,null,""]
[null,null,null,null,null,null,null,null,null,null,"",null,null,null,""]
[null,null,null,null,null,null,null,null,null,null,"",null,null,null,""]
[null,null,null,null,null,null,null,null,null,null,"",null,null,null,""]
[null,null,null,null,null,null,null,null,null,null,"",null,null,null,""]
[null,null,null,null,null,null,null,null,null,null,"",null,null,null,""]
[null,null,null,null,null,null,null,null,null,null,"",null,null,null,""]
[null,null,null,null,null,null,null,null,null,null,"",null,null,null,""]
[null,null,null,null,null,null,null,null,null,null,"",null,null,null,""]
[null,null,null,null,null,null,null,null,null,null,"",null,null,null,""]
[null,null,null,null,null,null,null,null,null,null,"",null,null,null,""]
[null,null,null,null,null,null,null,null,null,null,"",null,null,null,""]
[null,null,null,null,null,null,null,null,null,null,"",null,null,null,""]
[null,null,null,null,null,null,null,null,null,null,"",null,null,null,""]
[null,null,null,null,null,null,null,null,null,null,"",null,null,null,""]
[null,null,null,null,null,null,null,null,null,null,"",null,null,null,""]
[null,null,null,null,null,null,null,null,null,null,"",null,null,null,""]
[null,null,null,null,null,null,null,null,null,null,"",null,null,null,""]
[null,null,null,null,null,null,null,null,null,null,"",null,null,null,""]
[null,null,null,null,null,null,null,null,null,null,"",null,null,null,""]
[null,null,null,null,null,null,null,null,null,null,"",null,null,null,""]
[null,null,null,null,null,null,null,null,null,null,"",null,null,null,""]
[null,null,null,null,null,null,null,null,null,null,"",null,null,null,""]
[null,null,null,null,null,null,null,null,null,null,"",null,null,null,""]
[null,null,null,null,null,null,null,null,null,null,"",null,null,null,""]
[null,null,null,null,null,null,null,null,null,null,"",null,null,null,""]
[null,null,null,null,null,null,null,null,null,null,"",null,null,null,""]
[null,null,null,null,null,null,null,null,null,null,"",null,null,null,""]
[null,null,null,null,null,null,null,null,null,null,"",null,null,null,""]
[null,null,null,null,null,null,null,null,null,null,"",null,null,null,""]
[null,null,null,null,null,null,null,null,null,null,"",null,null,null,""]
[null,null,null,null,null,null,null,null,null,null,"",null,null,null,""]
[null,null,null,null,null,null,null,null,null,null,{"$f":"IF(OR(B2440=\"\",G2440=\"\",B2440=\"-\",G2440=\"-\"),\"\",G2440*C2440/I2440)","v":""},null,null,null,""]
[null,null,null,null,null,null,null,null,null,null,"",null,null,null,""]
[null,null,null,null,null,null,null,null,null,null,"",null,null,null,""]
[null,null,null,null,null,null,null,null,null,null,"",null,null,null,{"$f":"IF(OR(M2443=\"\",M2443=\"-\"),\"\",0.35*10^M2443)","v":""}]
[null,null,null,null,null,null,null,null,null,null,"",null,null,null,""]
[null,null,null,null,null,null,null,null,null,null,"",null,null,null,""]
[null,null,null,null,null,null,null,null,null,null,"",null,null,null,""]
[null,null,null,null,null,null,null,null,null,null,"",null,null,null,""]
[null,null,null,null,null,null,null,null,null,null,"",null,null,null,""]
[null,null,null,null,null,null,null,null,null,null,"",null,null,null,""]
[null,null,null,null,null,null,null,null,null,null,"",null,null,null,""]
[null,null,null,null,null,null,null,null,null,null,"",null,null,null,""]
[null,null,null,null,null,null,null,null,null,null,"",null,null,null,""]
[null,null,null,null,null,null,null,null,null,null,"",null,null,null,""]
[null,null,null,null,null,null,null,null,null,null,"",null,null,null,""]
[null,null,null,null,null,null,null,null,null,null,"",null,null,null,""]
[null,null,null,null,null,null,null,null,null,null,"",null,null,null,""]
[null,null,null,null,null,null,null,null,null,null,"",null,null,null,""]
[null,null,null,null,null,null,null,null,null,null,"",null,null,null,""]
[null,null,null,null,null,null,null,null,null,null,"",null,null,null,""]
[null,null,null,null,null,null,null,null,null,null,"",null,null,null,""]
[null,null,null,null,null,null,null,null,null,null,"",null,null,null,""]
[null,null,null,null,null,null,null,null,null,null,"",null,null,null,""]
[null,null,null,null,null,null,null,null,null,null,"",null,null,null,""]
[null,null,null,null,null,null,null,null,null,null,"",null,null,null,""]
[null,null,null,null,null,null,null,null,null,null,"",null,null,null,""]
[null,null,null,null,null,null,null,null,null,null,"",null,null,null,""]
[null,null,null,null,null,null,null,null,null,null,"",null,null,null,""]
[null,null,null,null,null,null,null,null,null,null,"",null,null,null,""]
[null,null,null,null,null,null,null,null,null,null,"",null,null,null,""]
[null,null,null,null,null,null,null,null,null,null,"",null,null,null,""]
[null,null,null,null,null,null,null,null,null,null,"",null,null,null,""]
[null,null,null,null,null,null,null,null,null,null,"",null,null,null,""]
[null,null,null,null,null,null,null,null,null,null,"",null,null,null,""]
[null,null,null,null,null,null,null,null,null,null,"",null,null,null,""]
[null,null,null,null,null,null,null,null,null,null,"",null,null,null,""]
[null,null,null,null,null,null,null,null,null,null,"",null,null,null,""]
[null,null,null,null,null,null,null,null,null,null,"",null,null,null,""]
[null,null,null,null,null,null,null,null,null,null,"",null,null,null,""]
[null,null,null,null,null,null,null,null,null,null,"",null,null,null,""]
[null,null,null,null,null,null,null,null,null,null,"",null,null,null,""]
[null,null,null,null,null,null,null,null,null,null,"",null,null,null,""]
[null,null,null,null,null,null,null,null,null,null,"",null,null,null,""]
[null,null,null,null,null,null,null,null,null,null,"",null,null,null,""]
[null,null,null,null,null,null,null,null,null,null,"",null,null,null,""]
[null,null,null,null,null,null,null,null,null,null,"",null,null,null,""]
[null,null,null,null,null,null,null,null,null,null,"",null,null,null,""]
[null,null,null,null,null,null,null,null,null,null,"",null,null,null,""]
[null,null,null,null,null,null,null,null,null,null,"",null,null,null,""]
[null,null,null,null,null,null,null,null,null,null,"",null,null,null,""]
[null,null,null,null,null,null,null,null,null,null,"",null,null,null,""]
[null,null,null,null,null,null,null,null,null,null,"",null,null,null,""]
[null,null,null,null,null,null,null,null,null,null,"",null,null,null,""]
[null,null,null,null,null,null,null,null,null,null,"",null,null,null,""]
[null,null,null,null,null,null,null,null,null,null,"",null,null,null,""]
[null,null,null,null,null,null,null,null,null,null,"",null,null,null,""]
[null,null,null,null,null,null,null,null,null,null,"",null,null,null,""]
[null,null,null,null,null,null,null,null,null,null,"",null,null,null,""]
[null,null,null,null,null,null,null,null,null,null,"",null,null,null,""]
[null,null,null,null,null,null,null,null,null,null,"",null,null,null,""]
[null,null,null,null,null,null,null,null,null,null,"",null,null,null,""]
[null,null,null,null,null,null,null,null,null,null,"",null,null,null,""]
[null,null,null,null,null,null,null,null,null,null,"",null,null,null,""]
[null,null,null,null,null,null,null,null,null,null,"",null,null,null,""]
[null,null,null,null,null,null,null,null,null,null,{"$f":"IF(OR(B2504=\"\",G2504=\"\",B2504=\"-\",G2504=\"-\"),\"\",G2504*C2504/I2504)","v":""},null,null,null,""]
[null,null,null,null,null,null,null,null,null,null,"",null,null,null,""]
[null,null,null,null,null,null,null,null,null,null,"",null,null,null,""]
[null,null,null,null,null,null,null,null,null,null,"",null,null,null,{"$f":"IF(OR(M2507=\"\",M2507=\"-\"),\"\",0.35*10^M2507)","v":""}]
[null,null,null,null,null,null,null,null,null,null,"",null,null,null,""]
[null,null,null,null,null,null,null,null,null,null,"",null,null,null,""]
[null,null,null,null,null,null,null,null,null,null,"",null,null,null,""]
[null,null,null,null,null,null,null,null,null,null,"",null,null,null,""]
[null,null,null,null,null,null,null,null,null,null,"",null,null,null,""]
[null,null,null,null,null,null,null,null,null,null,"",null,null,null,""]
[null,null,null,null,null,null,null,null,null,null,"",null,null,null,""]
[null,null,null,null,null,null,null,null,null,null,"",null,null,null,""]
[null,null,null,null,null,null,null,null,null,null,"",null,null,null,""]
[null,null,null,null,null,null,null,null,null,null,"",null,null,null,""]
[null,null,null,null,null,null,null,null,null,null,"",null,null,null,""]
[null,null,null,null,null,null,null,null,null,null,"",null,null,null,""]
[null,null,null,null,null,null,null,null,null,null,"",null,null,null,""]
[null,null,null,null,null,null,null,null,null,null,"",null,null,null,""]
[null,null,null,null,null,null,null,null,null,null,"",null,null,null,""]
[null,null,null,null,null,null,null,null,null,null,"",null,null,null,""]
[null,null,null,null,null,null,null,null,null,null,"",null,null,null,""]
[null,null,null,null,null,null,null,null,null,null,"",null,null,null,""]
[null,null,null,null,null,null,null,null,null,null,"",null,null,null,""]
[null,null,null,null,null,null,null,null,null,null,"",null,null,null,""]
[null,null,null,null,null,null,null,null,null,null,"",null,null,null,""]
[null,null,null,null,null,null,null,null,null,null,"",null,null,null,""]
[null,null,null,null,null,null,null,null,null,null,"",null,null,null,""]
[null,null,null,null,null,null,null,null,null,null,"",null,null,null,""]
[null,null,null,null,null,null,null,null,null,null,"",null,null,null,""]
[null,null,null,null,null,null,null,null,null,null,"",null,null,null,""]
[null,null,null,null,null,null,null,null,null,null,"",null,null,null,""]
[null,null,null,null,null,null,null,null,null,null,"",null,null,null,""]
[null,null,null,null,null,null,null,null,null,null,"",null,null,null,""]
[null,null,null,null,null,null,null,null,null,null,"",null,null,null,""]
[null,null,null,null,null,null,null,null,null,null,"",null,null,null,""]
[null,null,null,null,null,null,null,null,null,null,"",null,null,null,""]
[null,null,null,null,null,null,null,null,null,null,"",null,null,null,""]
[null,null,null,null,null,null,null,null,null,null,"",null,null,null,""]
[null,null,null,null,null,null,null,null,null,null,"",null,null,null,""]
[null,null,null,null,null,null,null,null,null,null,"",null,null,null,""]
[null,null,null,null,null,null,null,null,null,null,"",null,null,null,""]
[null,null,null,null,null,null,null,null,null,null,"",null,null,null,""]
[null,null,null,null,null,null,null,null,null,null,"",null,null,null,""]
[null,null,null,null,null,null,null,null,null,null,"",null,null,null,""]
[null,null,null,null,null,null,null,null,null,null,"",null,null,null,""]
[null,null,null,null,null,null,null,null,null,null,"",null,null,null,""]
[null,null,null,null,null,null,null,null,null,null,"",null,null,null,""]
[null,null,null,null,null,null,null,null,null,null,"",null,null,null,""]
[null,null,null,null,null,null,null,null,null,null,"",null,null,null,""]
[null,null,null,null,null,null,null,null,null,null,"",null,null,null,""]
[null,null,null,null,null,null,null,null,null,null,"",null,null,null,""]
[null,null,null,null,null,null,null,null,null,null,"",null,null,null,""]
[null,null,null,null,null,null,null,null,null,null,"",null,null,null,""]
[null,null,null,null,null,null,null,null,null,null,"",null,null,null,""]
[null,null,null,null,null,null,null,null,null,null,"",null,null,null,""]
[null,null,null,null,null,null,null,null,null,null,"",null,null,null,""]
[null,null,null,null,null,null,null,null,null,null,"",null,null,null,""]
[null,null,null,null,null,null,null,null,null,null,"",null,null,null,""]
[null,null,null,null,null,null,null,null,null,null,"",null,null,null,""]
[null,null,null,null,null,null,null,null,null,null,"",null,null,null,""]
[null,null,null,null,null,null,null,null,null,null,"",null,null,null,""]
[null,null,null,null,null,null,null,null,null,null,"",null,null,null,""]
[null,null,null,null,null,null,null,null,null,null,"",null,null,null,""]
[null,null,null,null,null,null,null,null,null,null,"",null,null,null,""]
[null,null,null,null,null,null,null,null,null,null,{"$f":"IF(OR(B2568=\"\",G2568=\"\",B2568=\"-\",G2568=\"-\"),\"\",G2568*C2568/I2568)","v":""},null,null,null,""]
[null,null,null,null,null,null,null,null,null,null,"",null,null,null,""]
[null,null,null,null,null,null,null,null,null,null,"",null,null,null,""]
[null,null,null,null,null,null,null,null,null,null,"",null,null,null,{"$f":"IF(OR(M2571=\"\",M2571=\"-\"),\"\",0.35*10^M2571)","v":""}]
[null,null,null,null,null,null,null,null,null,null,"",null,null,null,""]
[null,null,null,null,null,null,null,null,null,null,"",null,null,null,""]
[null,null,null,null,null,null,null,null,null,null,"",null,null,null,""]
[null,null,null,null,null,null,null,null,null,null,"",null,null,null,""]
[null,null,null,null,null,null,null,null,null,null,"",null,null,null,""]
[null,null,null,null,null,null,null,null,null,null,"",null,null,null,""]
[null,null,null,null,null,null,null,null,null,null,"",null,null,null,""]
[null,null,null,null,null,null,null,null,null,null,"",null,null,null,""]
[null,null,null,null,null,null,null,null,null,null,"",null,null,null,""]
[null,null,null,null,null,null,null,null,null,null,"",null,null,null,""]
[null,null,null,null,null,null,null,null,null,null,"",null,null,null,""]
[null,null,null,null,null,null,null,null,null,null,"",null,null,null,""]
[null,null,null,null,null,null,null,null,null,null,"",null,null,null,""]
[null,null,null,null,null,null,null,null,null,null,"",null,null,null,""]
[null,null,null,null,null,null,null,null,null,null,"",null,null,null,""]
[null,null,null,null,null,null,null,null,null,null,"",null,null,null,""]
[null,null,null,null,null,null,null,null,null,null,"",null,null,null,""]
[null,null,null,null,null,null,null,null,null,null,"",null,null,null,""]
[null,null,null,null,null,null,null,null,null,null,"",null,null,null,""]
[null,null,null,null,null,null,null,null,null,null,"",null,null,null,""]
[null,null,null,null,null,null,null,null,null,null,"",null,null,null,""]
[null,null,null,null,null,null,null,null,null,null,"",null,null,null,""]
[null,null,null,null,null,null,null,null,null,null,"",null,null,null,""]
[null,null,null,null,null,null,null,null,null,null,"",null,null,null,""]
[null,null,null,null,null,null,null,null,null,null,"",null,null,null,""]
[null,null,null,null,null,null,null,null,null,null,"",null,null,null,""]
[null,null,null,null,null,null,null,null,null,null,"",null,null,null,""]
[null,null,null,null,null,null,null,null,null,null,"",null,null,null,""]
[null,null,null,null,null,null,null,null,null,null,"",null,null,null,""]
[null,null,null,null,null,null,null,null,null,null,"",null,null,null,""]
[null,null,null,null,null,null,null,null,null,null,"",null,null,null,""]
[null,null,null,null,null,null,null,null,null,null,"",null,null,null,""]
[null,null,null,null,null,null,null,null,null,null,"",null,null,null,""]
[null,null,null,null,null,null,null,null,null,null,"",null,null,null,""]
[null,null,null,null,null,null,null,null,null,null,"",null,null,null,""]
[null,null,null,null,null,null,null,null,null,null,"",null,null,null,""]
[null,null,null,null,null,null,null,null,null,null,"",null,null,null,""]
[null,null,null,null,null,null,null,null,null,null,"",null,null,null,""]
[null,null,null,null,null,null,null,null,null,null,"",null,null,null,""]
[null,null,null,null,null,null,null,null,null,null,"",null,null,null,""]
[null,null,null,null,null,null,null,null,null,null,"",null,null,null,""]
[null,null,null,null,null,null,null,null,null,null,"",null,null,null,""]
[null,null,null,null,null,null,null,null,null,null,"",null,null,null,""]
[null,null,null,null,null,null,null,null,null,null,"",null,null,null,""]
[null,null,null,null,null,null,null,null,null,null,"",null,null,null,""]
[null,null,null,null,null,null,null,null,null,null,"",null,null,null,""]
[null,null,null,null,null,null,null,null,null,null,"",null,null,null,""]
[null,null,null,null,null,null,null,null,null,null,"",null,null,null,""]
[null,null,null,null,null,null,null,null,null,null,"",null,null,null,""]
[null,null,null,null,null,null,null,null,null,null,"",null,null,null,""]
[null,null,null,null,null,null,null,null,null,null,"",null,null,null,""]
[null,null,null,null,null,null,null,null,null,null,"",null,null,null,""]
[null,null,null,null,null,null,null,null,null,null,"",null,null,null,""]
[null,null,null,null,null,null,null,null,null,null,"",null,null,null,""]
[null,null,null,null,null,null,null,null,null,null,"",null,null,null,""]
[null,null,null,null,null,null,null,null,null,null,"",null,null,null,""]
[null,null,null,null,null,null,null,null,null,null,"",null,null,null,""]
[null,null,null,null,null,null,null,null,null,null,"",null,null,null,""]
[null,null,null,null,null,null,null,null,null,null,"",null,null,null,""]
[null,null,null,null,null,null,null,null,null,null,"",null,null,null,""]
[null,null,null,null,null,null,null,null,null,null,{"$f":"IF(OR(B2632=\"\",G2632=\"\",B2632=\"-\",G2632=\"-\"),\"\",G2632*C2632/I2632)","v":""},null,null,null,""]
[null,null,null,null,null,null,null,null,null,null,"",null,null,null,""]
[null,null,null,null,null,null,null,null,null,null,"",null,null,null,""]
[null,null,null,null,null,null,null,null,null,null,"",null,null,null,{"$f":"IF(OR(M2635=\"\",M2635=\"-\"),\"\",0.35*10^M2635)","v":""}]
[null,null,null,null,null,null,null,null,null,null,"",null,null,null,""]
[null,null,null,null,null,null,null,null,null,null,"",null,null,null,""]
[null,null,null,null,null,null,null,null,null,null,"",null,null,null,""]
[null,null,null,null,null,null,null,null,null,null,"",null,null,null,""]
[null,null,null,null,null,null,null,null,null,null,"",null,null,null,""]
[null,null,null,null,null,null,null,null,null,null,"",null,null,null,""]
[null,null,null,null,null,null,null,null,null,null,"",null,null,null,""]
[null,null,null,null,null,null,null,null,null,null,"",null,null,null,""]
[null,null,null,null,null,null,null,null,null,null,"",null,null,null,""]
[null,null,null,null,null,null,null,null,null,null,"",null,null,null,""]
[null,null,null,null,null,null,null,null,null,null,"",null,null,null,""]
[null,null,null,null,null,null,null,null,null,null,"",null,null,null,""]
[null,null,null,null,null,null,null,null,null,null,"",null,null,null,""]
[null,null,null,null,null,null,null,null,null,null,"",null,null,null,""]
[null,null,null,null,null,null,null,null,null,null,"",null,null,null,""]
[null,null,null,null,null,null,null,null,null,null,"",null,null,null,""]
[null,null,null,null,null,null,null,null,null,null,"",null,null,null,""]
[null,null,null,null,null,null,null,null,null,null,"",null,null,null,""]
[null,null,null,null,null,null,null,null,null,null,"",null,null,null,""]
[null,null,null,null,null,null,null,null,null,null,"",null,null,null,""]
[null,null,null,null,null,null,null,null,null,null,"",null,null,null,""]
[null,null,null,null,null,null,null,null,null,null,"",null,null,null,""]
[null,null,null,null,null,null,null,null,null,null,"",null,null,null,""]
[null,null,null,null,null,null,null,null,null,null,"",null,null,null,""]
[null,null,null,null,null,null,null,null,null,null,"",null,null,null,""]
[null,null,null,null,null,null,null,null,null,null,"",null,null,null,""]
[null,null,null,null,null,null,null,null,null,null,"",null,null,null,""]
[null,null,null,null,null,null,null,null,null,null,"",null,null,null,""]
[null,null,null,null,null,null,null,null,null,null,"",null,null,null,""]
[null,null,null,null,null,null,null,null,null,null,"",null,null,null,""]
[null,null,null,null,null,null,null,null,null,null,"",null,null,null,""]
[null,null,null,null,null,null,null,null,null,null,"",null,null,null,""]
[null,null,null,null,null,null,null,null,null,null,"",null,null,null,""]
[null,null,null,null,null,null,null,null,null,null,"",null,null,null,""]
[null,null,null,null,null,null,null,null,null,null,"",null,null,null,""]
[null,null,null,null,null,null,null,null,null,null,"",null,null,null,""]
[null,null,null,null,null,null,null,null,null,null,"",null,null,null,""]
[null,null,null,null,null,null,null,null,null,null,"",null,null,null,""]
[null,null,null,null,null,null,null,null,null,null,"",null,null,null,""]
[null,null,null,null,null,null,null,null,null,null,"",null,null,null,""]
[null,null,null,null,null,null,null,null,null,null,"",null,null,null,""]
[null,null,null,null,null,null,null,null,null,null,"",null,null,null,""]
[null,null,null,null,null,null,null,null,null,null,"",null,null,null,""]
[null,null,null,null,null,null,null,null,null,null,"",null,null,null,""]
[null,null,null,null,null,null,null,null,null,null,"",null,null,null,""]
[null,null,null,null,null,null,null,null,null,null,"",null,null,null,""]
[null,null,null,null,null,null,null,null,null,null,"",null,null,null,""]
[null,null,null,null,null,null,null,null,null,null,"",null,null,null,""]
[null,null,null,null,null,null,null,null,null,null,"",null,null,null,""]
[null,null,null,null,null,null,null,null,null,null,"",null,null,null,""]
[null,null,null,null,null,null,null,null,null,null,"",null,null,null,""]
[null,null,null,null,null,null,null,null,null,null,"",null,null,null,""]
[null,null,null,null,null,null,null,null,null,null,"",null,null,null,""]
[null,null,null,null,null,null,null,null,null,null,"",null,null,null,""]
[null,null,null,null,null,null,null,null,null,null,"",null,null,null,""]
[null,null,null,null,null,null,null,null,null,null,"",null,null,null,""]
[null,null,null,null,null,null,null,null,null,null,"",null,null,null,""]
[null,null,null,null,null,null,null,null,null,null,"",null,null,null,""]
[null,null,null,null,null,null,null,null,null,null,"",null,null,null,""]
[null,null,null,null,null,null,null,null,null,null,"",null,null,null,""]
[null,null,null,null,null,null,null,null,null,null,{"$f":"IF(OR(B2696=\"\",G2696=\"\",B2696=\"-\",G2696=\"-\"),\"\",G2696*C2696/I2696)","v":""},null,null,null,""]
[null,null,null,null,null,null,null,null,null,null,"",null,null,null,""]
[null,null,null,null,null,null,null,null,null,null,"",null,null,null,""]
[null,null,null,null,null,null,null,null,null,null,"",null,null,null,{"$f":"IF(OR(M2699=\"\",M2699=\"-\"),\"\",0.35*10^M2699)","v":""}]
[null,null,null,null,null,null,null,null,null,null,"",null,null,null,""]
[null,null,null,null,null,null,null,null,null,null,"",null,null,null,""]
[null,null,null,null,null,null,null,null,null,null,"",null,null,null,""]
[null,null,null,null,null,null,null,null,null,null,"",null,null,null,""]
[null,null,null,null,null,null,null,null,null,null,"",null,null,null,""]
[null,null,null,null,null,null,null,null,null,null,"",null,null,null,""]
[null,null,null,null,null,null,null,null,null,null,"",null,null,null,""]
[null,null,null,null,null,null,null,null,null,null,"",null,null,null,""]
[null,null,null,null,null,null,null,null,null,null,"",null,null,null,""]
[null,null,null,null,null,null,null,null,null,null,"",null,null,null,""]
[null,null,null,null,null,null,null,null,null,null,"",null,null,null,""]
[null,null,null,null,null,null,null,null,null,null,"",null,null,null,""]
[null,null,null,null,null,null,null,null,null,null,"",null,null,null,""]
[null,null,null,null,null,null,null,null,null,null,"",null,null,null,""]
[null,null,null,null,null,null,null,null,null,null,"",null,null,null,""]
[null,null,null,null,null,null,null,null,null,null,"",null,null,null,""]
[null,null,null,null,null,null,null,null,null,null,"",null,null,null,""]
[null,null,null,null,null,null,null,null,null,null,"",null,null,null,""]
[null,null,null,null,null,null,null,null,null,null,"",null,null,null,""]
[null,null,null,null,null,null,null,null,null,null,"",null,null,null,""]
[null,null,null,null,null,null,null,null,null,null,"",null,null,null,""]
[null,null,null,null,null,null,null,null,null,null,"",null,null,null,""]
[null,null,null,null,null,null,null,null,null,null,"",null,null,null,""]
[null,null,null,null,null,null,null,null,null,null,"",null,null,null,""]
[null,null,null,null,null,null,null,null,null,null,"",null,null,null,""]
[null,null,null,null,null,null,null,null,null,null,"",null,null,null,""]
[null,null,null,null,null,null,null,null,null,null,"",null,null,null,""]
[null,null,null,null,null,null,null,null,null,null,"",null,null,null,""]
[null,null,null,null,null,null,null,null,null,null,"",null,null,null,""]
[null,null,null,null,null,null,null,null,null,null,"",null,null,null,""]
[null,null,null,null,null,null,null,null,null,null,"",null,null,null,""]
[null,null,null,null,null,null,null,null,null,null,"",null,null,null,""]
[null,null,null,null,null,null,null,null,null,null,"",null,null,null,""]
[null,null,null,null,null,null,null,null,null,null,"",null,null,null,""]
[null,null,null,null,null,null,null,null,null,null,"",null,null,null,""]
[null,null,null,null,null,null,null,null,null,null,"",null,null,null,""]
[null,null,null,null,null,null,null,null,null,null,"",null,null,null,""]
[null,null,null,null,null,null,null,null,null,null,"",null,null,null,""]
[null,null,null,null,null,null,null,null,null,null,"",null,null,null,""]
[null,null,null,null,null,null,null,null,null,null,"",null,null,null,""]
[null,null,null,null,null,null,null,null,null,null,"",null,null,null,""]
[null,null,null,null,null,null,null,null,null,null,"",null,null,null,""]
[null,null,null,null,null,null,null,null,null,null,"",null,null,null,""]
[null,null,null,null,null,null,null,null,null,null,"",null,null,null,""]
[null,null,null,null,null,null,null,null,null,null,"",null,null,null,""]
[null,null,null,null,null,null,null,null,null,null,"",null,null,null,""]
[null,null,null,null,null,null,null,null,null,null,"",null,null,null,""]
[null,null,null,null,null,null,null,null,null,null,"",null,null,null,""]
[null,null,null,null,null,null,null,null,null,null,"",null,null,null,""]
[null,null,null,null,null,null,null,null,null,null,"",null,null,null,""]
[null,null,null,null,null,null,null,null,null,null,"",null,null,null,""]
[null,null,null,null,null,null,null,null,null,null,"",null,null,null,""]
[null,null,null,null,null,null,null,null,null,null,"",null,null,null,""]
[null,null,null,null,null,null,null,null,null,null,"",null,null,null,""]
[null,null,null,null,null,null,null,null,null,null,"",null,null,null,""]
[null,null,null,null,null,null,null,null,null,null,"",null,null,null,""]
[null,null,null,null,null,null,null,null,null,null,"",null,null,null,""]
[null,null,null,null,null,null,null,null,null,null,"",null,null,null,""]
[null,null,null,null,null,null,null,null,null,null,"",null,null,null,""]
[null,null,null,null,null,null,null,null,null,null,"",null,null,null,""]
[null,null,null,null,null,null,null,null,null,null,{"$f":"IF(OR(B2760=\"\",G2760=\"\",B2760=\"-\",G2760=\"-\"),\"\",G2760*C2760/I2760)","v":""},null,null,null,""]
[null,null,null,null,null,null,null,null,null,null,"",null,null,null,""]
[null,null,null,null,null,null,null,null,null,null,"",null,null,null,""]
[null,null,null,null,null,null,null,null,null,null,"",null,null,null,{"$f":"IF(OR(M2763=\"\",M2763=\"-\"),\"\",0.35*10^M2763)","v":""}]
[null,null,null,null,null,null,null,null,null,null,"",null,null,null,""]
[null,null,null,null,null,null,null,null,null,null,"",null,null,null,""]
[null,null,null,null,null,null,null,null,null,null,"",null,null,null,""]
[null,null,null,null,null,null,null,null,null,null,"",null,null,null,""]
[null,null,null,null,null,null,null,null,null,null,"",null,null,null,""]
[null,null,null,null,null,null,null,null,null,null,"",null,null,null,""]
[null,null,null,null,null,null,null,null,null,null,"",null,null,null,""]
[null,null,null,null,null,null,null,null,null,null,"",null,null,null,""]
[null,null,null,null,null,null,null,null,null,null,"",null,null,null,""]
[null,null,null,null,null,null,null,null,null,null,"",null,null,null,""]
[null,null,null,null,null,null,null,null,null,null,"",null,null,null,""]
[null,null,null,null,null,null,null,null,null,null,"",null,null,null,""]
[null,null,null,null,null,null,null,null,null,null,"",null,null,null,""]
[null,null,null,null,null,null,null,null,null,null,"",null,null,null,""]
[null,null,null,null,null,null,null,null,null,null,"",null,null,null,""]
[null,null,null,null,null,null,null,null,null,null,"",null,null,null,""]
[null,null,null,null,null,null,null,null,null,null,"",null,null,null,""]
[null,null,null,null,null,null,null,null,null,null,"",null,null,null,""]
[null,null,null,null,null,null,null,null,null,null,"",null,null,null,""]
[null,null,null,null,null,null,null,null,null,null,"",null,null,null,""]
[null,null,null,null,null,null,null,null,null,null,"",null,null,null,""]
[null,null,null,null,null,null,null,null,null,null,"",null,null,null,""]
[null,null,null,null,null,null,null,null,null,null,"",null,null,null,""]
[null,null,null,null,null,null,null,null,null,null,"",null,null,null,""]
[null,null,null,null,null,null,null,null,null,null,"",null,null,null,""]
[null,null,null,null,null,null,null,null,null,null,"",null,null,null,""]
[null,null,null,null,null,null,null,null,null,null,"",null,null,null,""]
[null,null,null,null,null,null,null,null,null,null,"",null,null,null,""]
[null,null,null,null,null,null,null,null,null,null,"",null,null,null,""]
[null,null,null,null,null,null,null,null,null,null,"",null,null,null,""]
[null,null,null,null,null,null,null,null,null,null,"",null,null,null,""]
[null,null,null,null,null,null,null,null,null,null,"",null,null,null,""]
[null,null,null,null,null,null,null,null,null,null,"",null,null,null,""]
[null,null,null,null,null,null,null,null,null,null,"",null,null,null,""]
[null,null,null,null,null,null,null,null,null,null,"",null,null,null,""]
[null,null,null,null,null,null,null,null,null,null,"",null,null,null,""]
[null,null,null,null,null,null,null,null,null,null,"",null,null,null,""]
[null,null,null,null,null,null,null,null,null,null,"",null,null,null,""]
[null,null,null,null,null,null,null,null,null,null,"",null,null,null,""]
[null,null,null,null,null,null,null,null,null,null,"",null,null,null,""]
[null,null,null,null,null,null,null,null,null,null,"",null,null,null,""]
[null,null,null,null,null,null,null,null,null,null,"",null,null,null,""]
[null,null,null,null,null,null,null,null,null,null,"",null,null,null,""]
[null,null,null,null,null,null,null,null,null,null,"",null,null,null,""]
[null,null,null,null,null,null,null,null,null,null,"",null,null,null,""]
[null,null,null,null,null,null,null,null,null,null,"",null,null,null,""]
[null,null,null,null,null,null,null,null,null,null,"",null,null,null,""]
[null,null,null,null,null,null,null,null,null,null,"",null,null,null,""]
[null,null,null,null,null,null,null,null,null,null,"",null,null,null,""]
[null,null,null,null,null,null,null,null,null,null,"",null,null,null,""]
[null,null,null,null,null,null,null,null,null,null,"",null,null,null,""]
[null,null,null,null,null,null,null,null,null,null,"",null,null,null,""]
[null,null,null,null,null,null,null,null,null,null,"",null,null,null,""]
[null,null,null,null,null,null,null,null,null,null,"",null,null,null,""]
[null,null,null,null,null,null,null,null,null,null,"",null,null,null,""]
[null,null,null,null,null,null,null,null,null,null,"",null,null,null,""]
[null,null,null,null,null,null,null,null,null,null,"",null,null,null,""]
[null,null,null,null,null,null,null,null,null,null,"",null,null,null,""]
[null,null,null,null,null,null,null,null,null,null,"",null,null,null,""]
[null,null,null,null,null,null,null,null,null,null,"",null,null,null,""]
[null,null,null,null,null,null,null,null,null,null,{"$f":"IF(OR(B2824=\"\",G2824=\"\",B2824=\"-\",G2824=\"-\"),\"\",G2824*C2824/I2824)","v":""},null,null,null,""]
[null,null,null,null,null,null,null,null,null,null,"",null,null,null,""]
[null,null,null,null,null,null,null,null,null,null,"",null,null,null,""]
[null,null,null,null,null,null,null,null,null,null,"",null,null,null,{"$f":"IF(OR(M2827=\"\",M2827=\"-\"),\"\",0.35*10^M2827)","v":""}]
[null,null,null,null,null,null,null,null,null,null,"",null,null,null,""]
[null,null,null,null,null,null,null,null,null,null,"",null,null,null,""]
[null,null,null,null,null,null,null,null,null,null,"",null,null,null,""]
[null,null,null,null,null,null,null,null,null,null,"",null,null,null,""]
[null,null,null,null,null,null,null,null,null,null,"",null,null,null,""]
[null,null,null,null,null,null,null,null,null,null,"",null,null,null,""]
[null,null,null,null,null,null,null,null,null,null,"",null,null,null,""]
[null,null,null,null,null,null,null,null,null,null,"",null,null,null,""]
[null,null,null,null,null,null,null,null,null,null,"",null,null,null,""]
[null,null,null,null,null,null,null,null,null,null,"",null,null,null,""]
[null,null,null,null,null,null,null,null,null,null,"",null,null,null,""]
[null,null,null,null,null,null,null,null,null,null,"",null,null,null,""]
[null,null,null,null,null,null,null,null,null,null,"",null,null,null,""]
[null,null,null,null,null,null,null,null,null,null,"",null,null,null,""]
[null,null,null,null,null,null,null,null,null,null,"",null,null,null,""]
[null,null,null,null,null,null,null,null,null,null,"",null,null,null,""]
[null,null,null,null,null,null,null,null,null,null,"",null,null,null,""]
[null,null,null,null,null,null,null,null,null,null,"",null,null,null,""]
[null,null,null,null,null,null,null,null,null,null,"",null,null,null,""]
[null,null,null,null,null,null,null,null,null,null,"",null,null,null,""]
[null,null,null,null,null,null,null,null,null,null,"",null,null,null,""]
[null,null,null,null,null,null,null,null,null,null,"",null,null,null,""]
[null,null,null,null,null,null,null,null,null,null,"",null,null,null,""]
[null,null,null,null,null,null,null,null,null,null,"",null,null,null,""]
[null,null,null,null,null,null,null,null,null,null,"",null,null,null,""]
[null,null,null,null,null,null,null,null,null,null,"",null,null,null,""]
[null,null,null,null,null,null,null,null,null,null,"",null,null,null,""]
[null,null,null,null,null,null,null,null,null,null,"",null,null,null,""]
[null,null,null,null,null,null,null,null,null,null,"",null,null,null,""]
[null,null,null,null,null,null,null,null,null,null,"",null,null,null,""]
[null,null,null,null,null,null,null,null,null,null,"",null,null,null,""]
[null,null,null,null,null,null,null,null,null,null,"",null,null,null,""]
[null,null,null,null,null,null,null,null,null,null,"",null,null,null,""]
[null,null,null,null,null,null,null,null,null,null,"",null,null,null,""]
[null,null,null,null,null,null,null,null,null,null,"",null,null,null,""]
[null,null,null,null,null,null,null,null,null,null,"",null,null,null,""]
[null,null,null,null,null,null,null,null,null,null,"",null,null,null,""]
[null,null,null,null,null,null,null,null,null,null,"",null,null,null,""]
[null,null,null,null,null,null,null,null,null,null,"",null,null,null,""]
[null,null,null,null,null,null,null,null,null,null,"",null,null,null,""]
[null,null,null,null,null,null,null,null,null,null,"",null,null,null,""]
[null,null,null,null,null,null,null,null,null,null,"",null,null,null,""]
[null,null,null,null,null,null,null,null,null,null,"",null,null,null,""]
[null,null,null,null,null,null,null,null,null,null,"",null,null,null,""]
[null,null,null,null,null,null,null,null,null,null,"",null,null,null,""]
[null,null,null,null,null,null,null,null,null,null,"",null,null,null,""]
[null,null,null,null,null,null,null,null,null,null,"",null,null,null,""]
[null,null,null,null,null,null,null,null,null,null,"",null,null,null,""]
[null,null,null,null,null,null,null,null,null,null,"",null,null,null,""]
[null,null,null,null,null,null,null,null,null,null,"",null,null,null,""]
[null,null,null,null,null,null,null,null,null,null,"",null,null,null,""]
[null,null,null,null,null,null,null,null,null,null,"",null,null,null,""]
[null,null,null,null,null,null,null,null,null,null,"",null,null,null,""]
[null,null,null,null,null,null,null,null,null,null,"",null,null,null,""]
[null,null,null,null,null,null,null,null,null,null,"",null,null,null,""]
[null,null,null,null,null,null,null,null,null,null,"",null,null,null,""]
[null,null,null,null,null,null,null,null,null,null,"",null,null,null,""]
[null,null,null,null,null,null,null,null,null,null,"",null,null,null,""]
[null,null,null,null,null,null,null,null,null,null,"",null,null,null,""]
[null,null,null,null,null,null,null,null,null,null,"",null,null,null,""]
[null,null,null,null,null,null,null,null,null,null,{"$f":"IF(OR(B2888=\"\",G2888=\"\",B2888=\"-\",G2888=\"-\"),\"\",G2888*C2888/I2888)","v":""},null,null,null,""]
[null,null,null,null,null,null,null,null,null,null,"",null,null,null,""]
[null,null,null,null,null,null,null,null,null,null,"",null,null,null,""]
[null,null,null,null,null,null,null,null,null,null,"",null,null,null,{"$f":"IF(OR(M2891=\"\",M2891=\"-\"),\"\",0.35*10^M2891)","v":""}]
[null,null,null,null,null,null,null,null,null,null,"",null,null,null,""]
[null,null,null,null,null,null,null,null,null,null,"",null,null,null,""]
[null,null,null,null,null,null,null,null,null,null,"",null,null,null,""]
[null,null,null,null,null,null,null,null,null,null,"",null,null,null,""]
[null,null,null,null,null,null,null,null,null,null,"",null,null,null,""]
[null,null,null,null,null,null,null,null,null,null,"",null,null,null,""]
[null,null,null,null,null,null,null,null,null,null,"",null,null,null,""]
[null,null,null,null,null,null,null,null,null,null,"",null,null,null,""]
[null,null,null,null,null,null,null,null,null,null,"",null,null,null,""]
[null,null,null,null,null,null,null,null,null,null,"",null,null,null,""]
[null,null,null,null,null,null,null,null,null,null,"",null,null,null,""]
[null,null,null,null,null,null,null,null,null,null,"",null,null,null,""]
[null,null,null,null,null,null,null,null,null,null,"",null,null,null,""]
[null,null,null,null,null,null,null,null,null,null,"",null,null,null,""]
[null,null,null,null,null,null,null,null,null,null,"",null,null,null,""]
[null,null,null,null,null,null,null,null,null,null,"",null,null,null,""]
[null,null,null,null,null,null,null,null,null,null,"",null,null,null,""]
[null,null,null,null,null,null,null,null,null,null,"",null,null,null,""]
[null,null,null,null,null,null,null,null,null,null,"",null,null,null,""]
[null,null,null,null,null,null,null,null,null,null,"",null,null,null,""]
[null,null,null,null,null,null,null,null,null,null,"",null,null,null,""]
[null,null,null,null,null,null,null,null,null,null,"",null,null,null,""]
[null,null,null,null,null,null,null,null,null,null,"",null,null,null,""]
[null,null,null,null,null,null,null,null,null,null,"",null,null,null,""]
[null,null,null,null,null,null,null,null,null,null,"",null,null,null,""]
[null,null,null,null,null,null,null,null,null,null,"",null,null,null,""]
[null,null,null,null,null,null,null,null,null,null,"",null,null,null,""]
[null,null,null,null,null,null,null,null,null,null,"",null,null,null,""]
[null,null,null,null,null,null,null,null,null,null,"",null,null,null,""]
[null,null,null,null,null,null,null,null,null,null,"",null,null,null,""]
[null,null,null,null,null,null,null,null,null,null,"",null,null,null,""]
[null,null,null,null,null,null,null,null,null,null,"",null,null,null,""]
[null,null,null,null,null,null,null,null,null,null,"",null,null,null,""]
[null,null,null,null,null,null,null,null,null,null,"",null,null,null,""]
[null,null,null,null,null,null,null,null,null,null,"",null,null,null,""]
[null,null,null,null,null,null,null,null,null,null,"",null,null,null,""]
[null,null,null,null,null,null,null,null,null,null,"",null,null,null,""]
[null,null,null,null,null,null,null,null,null,null,"",null,null,null,""]
[null,null,null,null,null,null,null,null,null,null,"",null,null,null,""]
[null,null,null,null,null,null,null,null,null,null,"",null,null,null,""]
[null,null,null,null,null,null,null,null,null,null,"",null,null,null,""]
[null,null,null,null,null,null,null,null,null,null,"",null,null,null,""]
[null,null,null,null,null,null,null,null,null,null,"",null,null,null,""]
[null,null,null,null,null,null,null,null,null,null,"",null,null,null,""]
[null,null,null,null,null,null,null,null,null,null,"",null,null,null,""]
[null,null,null,null,null,null,null,null,null,null,"",null,null,null,""]
[null,null,null,null,null,null,null,null,null,null,"",null,null,null,""]
[null,null,null,null,null,null,null,null,null,null,"",null,null,null,""]
[null,null,null,null,null,null,null,null,null,null,"",null,null,null,""]
[null,null,null,null,null,null,null,null,null,null,"",null,null,null,""]
[null,null,null,null,null,null,null,null,null,null,"",null,null,null,""]
[null,null,null,null,null,null,null,null,null,null,"",null,null,null,""]
[null,null,null,null,null,null,null,null,null,null,"",null,null,null,""]
[null,null,null,null,null,null,null,null,null,null,"",null,null,null,""]
[null,null,null,null,null,null,null,null,null,null,"",null,null,null,""]
[null,null,null,null,null,null,null,null,null,null,"",null,null,null,""]
[null,null,null,null,null,null,null,null,null,null,"",null,null,null,""]
[null,null,null,null,null,null,null,null,null,null,"",null,null,null,""]
[null,null,null,null,null,null,null,null,null,null,"",null,null,null,""]
[null,null,null,null,null,null,null,null,null,null,"",null,null,null,""]
[null,null,null,null,null,null,null,null,null,null,{"$f":"IF(OR(B2952=\"\",G2952=\"\",B2952=\"-\",G2952=\"-\"),\"\",G2952*C2952/I2952)","v":""},null,null,null,""]
[null,null,null,null,null,null,null,null,null,null,"",null,null,null,""]
[null,null,null,null,null,null,null,null,null,null,"",null,null,null,""]
[null,null,null,null,null,null,null,null,null,null,"",null,null,null,{"$f":"IF(OR(M2955=\"\",M2955=\"-\"),\"\",0.35*10^M2955)","v":""}]
[null,null,null,null,null,null,null,null,null,null,"",null,null,null,""]
[null,null,null,null,null,null,null,null,null,null,"",null,null,null,""]
[null,null,null,null,null,null,null,null,null,null,"",null,null,null,""]
[null,null,null,null,null,null,null,null,null,null,"",null,null,null,""]
[null,null,null,null,null,null,null,null,null,null,"",null,null,null,""]
[null,null,null,null,null,null,null,null,null,null,"",null,null,null,""]
[null,null,null,null,null,null,null,null,null,null,"",null,null,null,""]
[null,null,null,null,null,null,null,null,null,null,"",null,null,null,""]
[null,null,null,null,null,null,null,null,null,null,"",null,null,null,""]
[null,null,null,null,null,null,null,null,null,null,"",null,null,null,""]
[null,null,null,null,null,null,null,null,null,null,"",null,null,null,""]
[null,null,null,null,null,null,null,null,null,null,"",null,null,null,""]
[null,null,null,null,null,null,null,null,null,null,"",null,null,null,""]
[null,null,null,null,null,null,null,null,null,null,"",null,null,null,""]
[null,null,null,null,null,null,null,null,null,null,"",null,null,null,""]
[null,null,null,null,null,null,null,null,null,null,"",null,null,null,""]
[null,null,null,null,null,null,null,null,null,null,"",null,null,null,""]
[null,null,null,null,null,null,null,null,null,null,"",null,null,null,""]
[null,null,null,null,null,null,null,null,null,null,"",null,null,null,""]
[null,null,null,null,null,null,null,null,null,null,"",null,null,null,""]
[null,null,null,null,null,null,null,null,null,null,"",null,null,null,""]
[null,null,null,null,null,null,null,null,null,null,"",null,null,null,""]
[null,null,null,null,null,null,null,null,null,null,"",null,null,null,""]
[null,null,null,null,null,null,null,null,null,null,"",null,null,null,""]
[null,null,null,null,null,null,null,null,null,null,"",null,null,null,""]
[null,null,null,null,null,null,null,null,null,null,"",null,null,null,""]
[null,null,null,null,null,null,null,null,null,null,"",null,null,null,""]
[null,null,null,null,null,null,null,null,null,null,"",null,null,null,""]
[null,null,null,null,null,null,null,null,null,null,"",null,null,null,""]
[null,null,null,null,null,null,null,null,null,null,"",null,null,null,""]
[null,null,null,null,null,null,null,null,null,null,"",null,null,null,""]
[null,null,null,null,null,null,null,null,null,null,"",null,null,null,""]
[null,null,null,null,null,null,null,null,null,null,"",null,null,null,""]
[null,null,null,null,null,null,null,null,null,null,"",null,null,null,""]
[null,null,null,null,null,null,null,null,null,null,"",null,null,null,""]
[null,null,null,null,null,null,null,null,null,null,"",null,null,null,""]
[null,null,null,null,null,null,null,null,null,null,"",null,null,null,""]
[null,null,null,null,null,null,null,null,null,null,"",null,null,null,""]
[null,null,null,null,null,null,null,null,null,null,"",null,null,null,""]
[null,null,null,null,null,null,null,null,null,null,"",null,null,null,""]
[null,null,null,null,null,null,null,null,null,null,"",null,null,null,""]
[null,null,null,null,null,null,null,null,null,null,"",null,null,null,""]
[null,null,null,null,null,null,null,null,null,null,"",null,null,null,""]
[null,null,null,null,null,null,null,null,null,null,"",null,null,null,""]
[null,null,null,null,null,null,null,null,null,null,"",null,null,null,""]
[null,null,null,null,null,null,null,null,null,null,"",null,null,null,""]
[null,null,null,null,null,null,null,null,null,null,"",null,null,null,""]
[null,null,null,null,null,null,null,null,null,null,"",null,null,null,""]
[null,null,null,null,null,null,null,null,null,null,"",null,null,null,""]
[null,null,null,null,null,null,null,null,null,null,"",null,null,null,""]
[null,null,null,null,null,null,null,null,null,null,"",null,null,null,""]
[null,null,null,null,null,null,null,null,null,null,"",null,null,null,""]
[null,null,null,null,null,null,null,null,null,null,"",null,null,null,""]
[null,null,null,null,null,null,null,null,null,null,"",null,null,null,""]
[null,null,null,null,null,null,null,null,null,null,"",null,null,null,""]
[null,null,null,null,null,null,null,null,null,null,"",null,null,null,""]
[null,null,null,null,null,null,null,null,null,null,"",null,null,null,""]
[null,null,null,null,null,null,null,null,null,null,"",null,null,null,""]
[null,null,null,null,null,null,null,null,null,null,"",null,null,null,""]
[null,null,null,null,null,null,null,null,null,null,"",null,null,null,""]
[null,null,null,null,null,null,null,null,null,null,{"$f":"IF(OR(B3016=\"\",G3016=\"\",B3016=\"-\",G3016=\"-\"),\"\",G3016*C3016/I3016)","v":""},null,null,null,""]
[null,null,null,null,null,null,null,null,null,null,"",null,null,null,""]
[null,null,null,null,null,null,null,null,null,null,"",null,null,null,""]
[null,null,null,null,null,null,null,null,null,null,"",null,null,null,{"$f":"IF(OR(M3019=\"\",M3019=\"-\"),\"\",0.35*10^M3019)","v":""}]
[null,null,null,null,null,null,null,null,null,null,"",null,null,null,""]
[null,null,null,null,null,null,null,null,null,null,"",null,null,null,""]
[null,null,null,null,null,null,null,null,null,null,"",null,null,null,""]
[null,null,null,null,null,null,null,null,null,null,"",null,null,null,""]
[null,null,null,null,null,null,null,null,null,null,"",null,null,null,""]
[null,null,null,null,null,null,null,null,null,null,"",null,null,null,""]
[null,null,null,null,null,null,null,null,null,null,"",null,null,null,""]
[null,null,null,null,null,null,null,null,null,null,"",null,null,null,""]
[null,null,null,null,null,null,null,null,null,null,"",null,null,null,""]
[null,null,null,null,null,null,null,null,null,null,"",null,null,null,""]
[null,null,null,null,null,null,null,null,null,null,"",null,null,null,""]
[null,null,null,null,null,null,null,null,null,null,"",null,null,null,""]
[null,null,null,null,null,null,null,null,null,null,"",null,null,null,""]
[null,null,null,null,null,null,null,null,null,null,"",null,null,null,""]
[null,null,null,null,null,null,null,null,null,null,"",null,null,null,""]
[null,null,null,null,null,null,null,null,null,null,"",null,null,null,""]
[null,null,null,null,null,null,null,null,null,null,"",null,null,null,""]
[null,null,null,null,null,null,null,null,null,null,"",null,null,null,""]
[null,null,null,null,null,null,null,null,null,null,"",null,null,null,""]
[null,null,null,null,null,null,null,null,null,null,"",null,null,null,""]
[null,null,null,null,null,null,null,null,null,null,"",null,null,null,""]
[null,null,null,null,null,null,null,null,null,null,"",null,null,null,""]
[null,null,null,null,null,null,null,null,null,null,"",null,null,null,""]
[null,null,null,null,null,null,null,null,null,null,"",null,null,null,""]
[null,null,null,null,null,null,null,null,null,null,"",null,null,null,""]
[null,null,null,null,null,null,null,null,null,null,"",null,null,null,""]
[null,null,null,null,null,null,null,null,null,null,"",null,null,null,""]
[null,null,null,null,null,null,null,null,null,null,"",null,null,null,""]
[null,null,null,null,null,null,null,null,null,null,"",null,null,null,""]
[null,null,null,null,null,null,null,null,null,null,"",null,null,null,""]
[null,null,null,null,null,null,null,null,null,null,"",null,null,null,""]
[null,null,null,null,null,null,null,null,null,null,"",null,null,null,""]
[null,null,null,null,null,null,null,null,null,null,"",null,null,null,""]
[null,null,null,null,null,null,null,null,null,null,"",null,null,null,""]
[null,null,null,null,null,null,null,null,null,null,"",null,null,null,""]
[null,null,null,null,null,null,null,null,null,null,"",null,null,null,""]
[null,null,null,null,null,null,null,null,null,null,"",null,null,null,""]
[null,null,null,null,null,null,null,null,null,null,"",null,null,null,""]
[null,null,null,null,null,null,null,null,null,null,"",null,null,null,""]
[null,null,null,null,null,null,null,null,null,null,"",null,null,null,""]
[null,null,null,null,null,null,null,null,null,null,"",null,null,null,""]
[null,null,null,null,null,null,null,null,null,null,"",null,null,null,""]
[null,null,null,null,null,null,null,null,null,null,"",null,null,null,""]
[null,null,null,null,null,null,null,null,null,null,"",null,null,null,""]
[null,null,null,null,null,null,null,null,null,null,"",null,null,null,""]
[null,null,null,null,null,null,null,null,null,null,"",null,null,null,""]
[null,null,null,null,null,null,null,null,null,null,"",null,null,null,""]
[null,null,null,null,null,null,null,null,null,null,"",null,null,null,""]
[null,null,null,null,null,null,null,null,null,null,"",null,null,null,""]
[null,null,null,null,null,null,null,null,null,null,"",null,null,null,""]
[null,null,null,null,null,null,null,null,null,null,"",null,null,null,""]
[null,null,null,null,null,null,null,null,null,null,"",null,null,null,""]
[null,null,null,null,null,null,null,null,null,null,"",null,null,null,""]
[null,null,null,null,null,null,null,null,null,null,"",null,null,null,""]
[null,null,null,null,null,null,null,null,null,null,"",null,null,null,""]
[null,null,null,null,null,null,null,null,null,null,"",null,null,null,""]
[null,null,null,null,null,null,null,null,null,null,"",null,null,null,""]
[null,null,null,null,null,null,null,null,null,null,"",null,null,null,""]
[null,null,null,null,null,null,null,null,null,null,"",null,null,null,""]
[null,null,null,null,null,null,null,null,null,null,"",null,null,null,""]
[null,null,null,null,null,null,null,null,null,null,{"$f":"IF(OR(B3080=\"\",G3080=\"\",B3080=\"-\",G3080=\"-\"),\"\",G3080*C3080/I3080)","v":""},null,null,null,""]

{"sheet":"Environment Database","index":6,"n_rows":11,"n_cols":17,"rows_kept":11,"cut":false,"hidden":false,"merged":[]}
[]
[]
[]
[]
[]
[]
[null,"Dimensions",null,null,"Density",null,null,null,"Organic Carbon","Particle Concnetrations",null,"Transport Velocities"]
["Name","Area","Water Depth","Atmosphere Height","Air","Aerosol","Water","Susp. Particles","Susp. Particles","Susp. Particles in Water","Aerosols in Air","Water-Side MTC","Air-Side MTC","Dry Deposition Velocity","Rain Rate","Scavenging Coefficient","NOTES"]
[null,"m2","m","m","kg/m³","kg/m³","kg/m³","kg/m³","g/g","g/m³","µg/m³","m/h","m/h","cm/s","m/year","unitless"]
["Default (Air-Water)",1,10,1000,1.2270000000000001,2000,1000,1500,0.05,12,100,7.1999999999999995E-2,18,0.3,0.5,200000]
["EnvAirWater86",1,10,1000,1.23,2000,1000,1500,0.05,12,100,7.1999999999999995E-2,18,0.3,0.5,200000]